Entity,Vendor Name,Expenditure Account ,Document Number,Clearing Date,Amount (�),Merchant Category
TRANSPORT TRADING LTD,RAIL SETTLEMENT PLAN,Rail Settlement Plan - PAYG Creditor,1004\1901672559,17-Apr-20,"32,342,127.61",
RAIL FOR LONDON LIMITED,ARRIVA RAIL LONDON,Franchise/Concession Fixed Fee,1020\5109752807,01-May-20,"18,912,602.61",
RAIL FOR LONDON LIMITED,MTR CORPORATION (CROSSRAIL) LTD,Franchise/Concession Fixed Fee,1020\5109752379,29-Apr-20,"15,926,018.93",
LONDON BUS SERVICES LTD,METROLINE TRAVEL LTD,Bus Contract Payments,1006\1900044094,17-Apr-20,"14,774,766.86",
LONDON BUS SERVICES LTD,ARRIVA LONDON NORTH LTD,Bus Contract Payments,1006\1900044083,17-Apr-20,"14,618,831.31",
LONDON UNDERGROUND LTD,FERROVIAL LAING O ROURKE ,Civil Engineering Construction Works,1005\5109751758,24-Apr-20,"13,440,900.75",
LONDON BUS SERVICES LTD,LONDON GENERAL TRANSPORT SERVICES,Bus Contract Payments,1006\1900044090,17-Apr-20,"11,544,567.20",
LONDON BUS SERVICES LTD,LONDON CENTRAL BUS COMPANY LTD ,Bus Contract Payments,1006\1900044089,17-Apr-20,"10,564,008.54",
LONDON BUS SERVICES LTD,LONDON UNITED BUSWAYS,Bus Contract Payments,1006\1900044092,17-Apr-20,"9,570,192.48",
SURFACE TRANSPORT CORP,LONDON BOROUGH OF HOUNSLOW,Borough Services,1002\1900064503,20-Apr-20,"8,322,500.00",
RAIL FOR LONDON LIMITED,MORGAN SINDALL  PLC,Civil Engineering Construction Works,1020\5109744640,22-Apr-20,"8,188,241.17",
LUL NOMINEE SSL LIMITED,THALES RAIL SIGNALLING SOLUTIONS,Civil Engineering Construction Works,1031\5109748070,20-Apr-20,"8,107,231.94",
LONDON BUS SERVICES LTD,EAST LONDON BUS & COACH COMPANY LTD,Bus Contract Payments,1006\1900044087,17-Apr-20,"8,085,091.33",
DOCKLANDS LIGHT RAILWAY,KEOLIS AMEY DOCKLANDS LIMITED,Civil Engineering Construction Works,1012\5109748578,20-Apr-20,"7,628,387.01",
SURFACE TRANSPORT CORP,METROPOLITAN POLICE,MPS Employment Costs SM,1002\5109739779,22-Apr-20,"7,605,365.52",
LONDON UNDERGROUND LTD,DRAGADOS S.A.,Civil Engineering Construction Works,1005\5109744056,20-Apr-20,"7,261,307.75",
LONDON UNDERGROUND LTD,BRITISH TRANSPORT POLICE,MPS Employment Costs SM,1005\5109737880,29-Apr-20,"6,833,128.00",
LONDON UNDERGROUND LTD,CAPITA BUSINESS SERVICES LTD,Maintenance of Telecommunications Equipment,1005\5109732912,20-Apr-20,"6,552,139.92",
LONDON BUS SERVICES LTD,ARRIVA LONDON SOUTH LTD,Bus Contract Payments,1006\1900044084,17-Apr-20,"6,434,493.56",
DOCKLANDS LIGHT RAILWAY,CONST. Y AUX. DE FERROCARRILES S.A,Vehicle Purchases,1012\5109742333,07-Apr-20,"6,388,182.36",
LONDON BUS SERVICES LTD,ABELLIO LONDON LTD,Bus Contract Payments,1006\1900044081,17-Apr-20,"6,270,264.59",
LONDON UNDERGROUND LTD,CAPITA BUSINESS SERVICES LTD,Maintenance of Telecommunications Equipment,1005\5109730799,15-Apr-20,"6,021,637.20",
TRANSPORT TRADING LTD,CUBIC TRANSPORTATION SYSTEMS LTD,Cubic Oyster Contract Costs,1004\5109747208,15-Apr-20,"5,744,657.88",
LONDON BUS SERVICES LTD,STAGECOACH,Bus Contract Payments,1006\1900044097,17-Apr-20,"5,725,844.30",
SURFACE TRANSPORT CORP,ENTERPRISEMOUCHEL LTD ,Contracted Services - Roads,1002\5109754446,29-Apr-20,"5,559,168.13",
SURFACE TRANSPORT CORP,ENTERPRISEMOUCHEL LTD ,Contracted Services - Roads,1002\5109732505,01-Apr-20,"5,512,912.90",
LONDON BUS SERVICES LTD,TOWER TRANSIT OPERATIONS LTD,Bus Contract Payments,1006\1900044099,17-Apr-20,"5,339,680.00",
SURFACE TRANSPORT CORP,AECOM LTD,Contracted Services - Roads,1002\5109754331,29-Apr-20,"5,302,975.37",
LONDON BUS SERVICES LTD,METROLINE TRAVEL LTD,Bus Contract Payments,1006\1900044154,24-Apr-20,"4,801,163.81",
SURFACE TRANSPORT CORP,AECOM LTD,Contracted Services - Roads,1002\5109733210,01-Apr-20,"4,532,295.19",
LONDON BUS SERVICES LTD,ARRIVA LONDON NORTH LTD,Bus Contract Payments,1006\1900044143,24-Apr-20,"4,515,866.55",
TFL CORPORATE,NETWORK RAIL,National Rail Fixed Track Access Charges,1001\5109720415,08-Apr-20,"4,493,228.62",
TFL CORPORATE,NETWORK RAIL,National Rail Fixed Track Access Charges,1001\5109751156,27-Apr-20,"4,493,228.62",
LONDON BUS SERVICES LTD,METROLINE WEST LTD,Bus Contract Payments,1006\1900044095,17-Apr-20,"4,491,065.20",
LUL NOMINEE SSL LIMITED,BALFOUR BEATTY RAIL LTD,Track General Maintenance,1031\5109752376,29-Apr-20,"4,429,189.17",
LONDON BUS SERVICES LTD,METROBUS LIMITED,Bus Contract Payments,1006\1900044093,17-Apr-20,"3,963,102.69",
TRANSPORT TRADING LTD,RAIL SETTLEMENT PLAN,Rail Settlement Plan - PAYG Creditor,1004\1901672561,17-Apr-20,"3,925,944.28",
LONDON BUS SERVICES LTD,ABELLIO LONDON LTD,Bus Contract Payments,1006\1900044082,17-Apr-20,"3,813,616.96",
LONDON BUS SERVICES LTD,LONDON GENERAL TRANSPORT SERVICES,Bus Contract Payments,1006\1900044150,24-Apr-20,"3,690,539.34",
LONDON UNDERGROUND LTD,CITYLINK TELECOMMUNICATIONS LTD,PFI Service Costs - Power,1005\5109722680,02-Apr-20,"3,465,122.82",
LONDON BUS SERVICES LTD,LONDON CENTRAL BUS COMPANY LTD ,Bus Contract Payments,1006\1900044149,24-Apr-20,"3,428,316.43",
LONDON UNDERGROUND LTD,HEATHROW AIRPORT LTD ,Terminal 5 PFI Service Costs,1005\5109751139,29-Apr-20,"3,406,673.00",
LONDON UNDERGROUND LTD,ALSTOM NL SERVICE PROVISION LTD,TLL Lease Costs,1005\5109741387,27-Apr-20,"3,302,262.00",
SURFACE TRANSPORT CORP,CITY OF WESTMINSTER,Borough Services - Claim Against Pr Yr Accrual,1002\1900064765,29-Apr-20,"3,295,000.00",
LONDON BUS SERVICES LTD,LONDON UNITED BUSWAYS,Bus Contract Payments,1006\1900044152,24-Apr-20,"3,103,052.91",
LUL NOMINEE SSL LIMITED,THALES GROUND TRANSPORTATION SYSTEM,Civil Engineering Construction Works,1031\5109748088,24-Apr-20,"3,060,922.47",
RAIL FOR LONDON LIMITED,QW RAIL LEASING LIMITED,Vehicle Operating Leases,1020\5109741742,08-Apr-20,"2,964,548.41",
RAIL FOR LONDON LIMITED,CLESHAR CONTRACT SERVICES LTD,Maintenance of Plant & Equipment,1020\5109743974,08-Apr-20,"2,956,278.87",
DOCKLANDS LIGHT RAILWAY,DYER & BUTLER LTD,Civil Engineering Construction Works,1012\5109741520,08-Apr-20,"2,910,000.00",
LONDON BUS SERVICES LTD,BLUE TRIANGLE BUSES LTD,Bus Contract Payments,1006\1900044085,17-Apr-20,"2,893,226.27",
SURFACE TRANSPORT CORP,LONDON BOROUGH OF HARINGEY,Borough Services - Claim Against Pr Yr Accrual,1002\1900064763,29-Apr-20,"2,871,256.00",
DOCKLANDS LIGHT RAILWAY,CGL RAIL,Civil Engineering Construction Works,1012\5109745929,15-Apr-20,"2,695,749.00",
LONDON UNDERGROUND LTD,GBM SERVICES LTD,Operational Cleaning,1005\5109749264,27-Apr-20,"2,636,525.31",
LONDON BUS SERVICES LTD,EAST LONDON BUS & COACH COMPANY LTD,Bus Contract Payments,1006\1900044147,24-Apr-20,"2,625,857.81",
LONDON BUS SERVICES LTD,LONDON SOVEREIGN LTD ,Bus Contract Payments,1006\1900044091,17-Apr-20,"2,619,208.09",
SURFACE TRANSPORT CORP,RINGWAY JACOBS LIMITED,Contracted Services - Roads,1002\5109733584,01-Apr-20,"2,449,817.94",
LONDON UNDERGROUND LTD,ALSTOM NL SERVICE PROVISION LTD,TLL Lease Costs,1005\5109741457,22-Apr-20,"2,336,417.45",
SURFACE TRANSPORT CORP,LONDON BOROUGH OF LEWISHAM,Borough Services,1002\1900064651,20-Apr-20,"2,147,763.18",
LONDON BUS SERVICES LTD,ARRIVA LONDON SOUTH LTD,Bus Contract Payments,1006\1900044144,24-Apr-20,"2,093,886.94",
LONDON BUS SERVICES LTD,ABELLIO LONDON LTD,Bus Contract Payments,1006\1900044141,24-Apr-20,"1,969,543.65",
DOCKLANDS LIGHT RAILWAY,CONST. Y AUX. DE FERROCARRILES S.A,Vehicle Purchases,1012\5109742342,07-Apr-20,"1,928,701.21",
SURFACE TRANSPORT CORP,AECOM LTD,Road Maintenance,1002\5109753021,29-Apr-20,"1,899,530.96",
LONDON BUS SERVICES LTD,CT PLUS LIMITED,Bus Contract Payments,1006\1900044088,17-Apr-20,"1,895,876.79",
LONDON UNDERGROUND LTD,GBM SERVICES LTD,Operational Cleaning,1005\5109749254,27-Apr-20,"1,885,349.90",
SURFACE TRANSPORT CORP,RINGWAY JACOBS LIMITED,Contracted Services - Roads,1002\5109754486,29-Apr-20,"1,879,554.23",
LONDON UNDERGROUND LTD,CAPITA BUSINESS SERVICES LTD,Maintenance of Telecommunications Equipment,1005\5109732908,20-Apr-20,"1,866,765.42",
TRANSPORT TRADING LTD,EARLS COURT PARTNERSHIP LIMITED,Purchase of Associates Loan Notes (Activity),1004\1901671512,15-Apr-20,"1,850,000.00",
LONDON BUS SERVICES LTD,STAGECOACH,Bus Contract Payments,1006\1900044157,24-Apr-20,"1,843,093.75",
SURFACE TRANSPORT CORP,ROAD MANAGEMENT SERVICES PLC,A13 PFI Service Costs,1002\5109744726,15-Apr-20,"1,835,579.00",
LONDON BUS SERVICES LTD,TOWER TRANSIT OPERATIONS LTD,Bus Contract Payments,1006\1900044159,24-Apr-20,"1,641,057.97",
RAIL FOR LONDON LIMITED,QW RAIL LEASING LIMITED,Vehicle Operating Leases,1020\5109741745,08-Apr-20,"1,623,953.76",
LONDON BUS SERVICES LTD,METROLINE WEST LTD,Bus Contract Payments,1006\1900044155,24-Apr-20,"1,469,443.67",
LONDON UNDERGROUND LTD,BRITISH TRANSPORT POLICE,MPS Employment Costs SM,1005\5109737630,22-Apr-20,"1,432,632.18",
SURFACE TRANSPORT CORP,ENTERPRISEMOUCHEL LTD ,Road Maintenance,1002\5109754568,29-Apr-20,"1,374,362.53",
RAIL FOR LONDON LIMITED,TRAM OPERATIONS LIMITED,Franchise/Concession Fixed Fee,1020\5109745973,15-Apr-20,"1,290,205.50",
LONDON BUS SERVICES LTD,METROBUS LIMITED,Bus Contract Payments,1006\1900044153,24-Apr-20,"1,287,289.31",
SURFACE TRANSPORT CORP,RINGWAY JACOBS LIMITED,Maintenance of Plant & Equipment,1002\5109754648,29-Apr-20,"1,256,451.65",
TRANSPORT TRADING LTD,CUBIC TRANSPORTATION SYSTEMS LTD,Cubic Oyster Contract Costs,1004\5109747210,15-Apr-20,"1,250,216.98",
TFL CORPORATE,GBM SERVICES LTD,Operational Cleaning,1001\5109732452,01-Apr-20,"1,234,396.61",
SURFACE TRANSPORT CORP,ROAD MANAGEMENT SERVICES PLC,A13 PFI Service Costs,1002\5109744728,15-Apr-20,"1,227,500.00",
LONDON BUS SERVICES LTD,ABELLIO LONDON LTD,Bus Contract Payments,1006\1900044142,24-Apr-20,"1,178,307.96",
SURFACE TRANSPORT CORP,RINGWAY JACOBS LIMITED,Road Maintenance,1002\5109754585,29-Apr-20,"1,167,593.19",
SURFACE TRANSPORT CORP,LONDON BOROUGH OF SOUTHWARK,Borough Services - Claim Against Pr Yr Accrual,1002\1900064764,29-Apr-20,"1,161,431.00",
SURFACE TRANSPORT CORP,ENTERPRISEMOUCHEL LTD ,Road Maintenance,1002\5109740825,03-Apr-20,"1,097,580.76",
SURFACE TRANSPORT CORP,LONDON BOROUGH OF BROMLEY,Borough Services,1002\1900064600,15-Apr-20,"1,066,812.00",
SURFACE TRANSPORT CORP,RINGWAY JACOBS LIMITED,Maintenance of Plant & Equipment,1002\5109739752,01-Apr-20,"1,055,723.16",
SURFACE TRANSPORT CORP,DEPARTMENT FOR TRANSPORT,Section 159 Payments,1002\1900064835,20-Apr-20,"1,044,000.00",
LONDON UNDERGROUND LTD,LANES GROUP PLC,Building Maintenance & Repairs,1005\5109728219,06-Apr-20,"1,013,966.44",
TFL CORPORATE,KELWAY (UK),Computer Software,1001\5109745630,15-Apr-20,"1,010,050.10",
RAIL FOR LONDON LIMITED,BUCKINGHAM GROUP CONTRACTING LTD,Civil Engineering Construction Works,1020\5109739979,15-Apr-20,"1,000,000.00",
LONDON BUS SERVICES LTD,HR RICHMOND LTD T/A EPSOM BUSES,Bus Contract Payments,1006\1900044096,17-Apr-20,"997,860.83",
LONDON UNDERGROUND LTD,TELENT TECHNOLOGY SERVICES LTD,Security Equipment,1005\5109747114,20-Apr-20,"990,202.19",
DOCKLANDS LIGHT RAILWAY,POD-TRAK LTD,Civil Engineering Construction Works,1012\5109738080,02-Apr-20,"983,484.77",
LONDON UNDERGROUND LTD,MORSON HUMAN RESOURCES LTD,Track General Maintenance,1005\5109745293,15-Apr-20,"982,844.11",
LONDON UNDERGROUND LTD,NETWORK RAIL,National Rail Fixed Track Access Charges,1005\5109718176,08-Apr-20,"981,446.76",
LONDON UNDERGROUND LTD,ALSTOM NL SERVICE PROVISION LTD,Fleet Tsssa Contract,1005\5109741450,27-Apr-20,"972,677.77",
SURFACE TRANSPORT CORP,LONDON BOROUGH OF HILLINGDON,Borough Services,1002\1900063332,06-Apr-20,"965,917.59",
LONDON BUS SERVICES LTD,DOCKLANDS MINIBUS LITD ,Bus Contract Payments,1006\1900044086,17-Apr-20,"948,638.88",
LONDON UNDERGROUND LTD,MORGAN SINDALL  PLC,MR Construction Costs,1005\5109745074,29-Apr-20,"928,967.99",
SURFACE TRANSPORT CORP,CVU JOINT VENTURE,Contracted Services - Roads,1002\5109733224,01-Apr-20,"922,084.00",
TFL CORPORATE,CAPITA BUSINESS SERVICES LTD,IT Consultancy,1001\5109736350,27-Apr-20,"916,865.00",
TFL CORPORATE,CAPITA BUSINESS SERVICES LTD,IT Consultancy,1001\5109736349,20-Apr-20,"883,703.24",
SURFACE TRANSPORT CORP,RINGWAY JACOBS LIMITED,Road Maintenance,1002\5109739737,01-Apr-20,"869,408.57",
TFL CORPORATE,CAPITA BUSINESS SERVICES LTD,Maintenance of Telecommunications Equipment,1001\5109749253,27-Apr-20,"859,177.17",
LONDON BUS SERVICES LTD,LONDON SOVEREIGN LTD ,Bus Contract Payments,1006\1900044151,24-Apr-20,"842,451.15",
LONDON BUS SERVICES LTD,BLUE TRIANGLE BUSES LTD,Bus Contract Payments,1006\1900044145,24-Apr-20,"841,109.20",
SURFACE TRANSPORT CORP,MORGAN SINDALL  PLC,Contracted Services - Highway Bridges,1002\5109726237,01-Apr-20,"839,709.29",
CYCLE HIRE SCHEME,SERCO LTD,Concession Maintenance Charge,1016\5109749087,20-Apr-20,"825,963.59",
TFL CORPORATE,CAPITA BUSINESS SERVICES LTD,Maintenance of Telecommunications Equipment,1001\5109736334,15-Apr-20,"822,925.47",
LONDON UNDERGROUND LTD,LONDON PENSIONS FUND AUTHORITY,Payroll Suspense,1005\1900213699,11-Apr-20,"822,000.00",
DOCKLANDS LIGHT RAILWAY,TRUSTEES OF THE DOCKLANDS LIGHT,Exchange Loss Realised,1012\1900005033,08-Apr-20,"800,000.00",
LONDON UNDERGROUND LTD,UK POWER NETWORKS LTD,Traction Current,1005\5109737283,27-Apr-20,"775,000.00",
SURFACE TRANSPORT CORP,CVU JOINT VENTURE,Contracted Services - Roads,1002\5109749308,29-Apr-20,"771,607.00",
SURFACE TRANSPORT CORP,LONDON BOROUGH OF BARKING & DAGENHAM,Borough Services,1002\1900064455,08-Apr-20,"764,500.00",
SURFACE TRANSPORT CORP,LONDON BOROUGH OF ENFIELD,Borough Services,1002\1900064046,06-Apr-20,"746,521.20",
TRANSPORT TRADING LTD,GLOBAL OUTDOOR MEDIA LIMITED,Purchase of Associates Loan Notes (Activity),1004\5109747586,22-Apr-20,"743,206.00",
TFL CORPORATE,INSIGHT DIRECT UK LIMITED,Software Maintenance,1001\5109744292,22-Apr-20,"734,362.91",
LONDON UNDERGROUND LTD,SKANSKA CONTRUCTIONS UK LTD,Building Maintenance & Repairs,1005\5109748634,27-Apr-20,"712,111.56",
SURFACE TRANSPORT CORP,CAPITA BUSINESS SERVICES LTD,Management & Support Consultancy,1002\5109724936,08-Apr-20,"698,327.82",
LONDON BUS SERVICES LTD,TRAPEZE PTI LTD,Maintenance of Plant & Equipment,1006\5109745123,01-May-20,"675,453.29",
LONDON BUS SERVICES LTD,TRAPEZE PTI LTD,Maintenance of Plant & Equipment,1006\5109720444,01-Apr-20,"675,453.29",
LONDON UNDERGROUND LTD,THALES RAIL SIGNALLING SOLUTIONS,Civil Engineering Construction Works,1005\5109748177,20-Apr-20,"661,455.87",
LONDON UNDERGROUND LTD,SKANSKA CONTRUCTIONS UK LTD,Building Maintenance & Repairs,1005\5109724541,01-Apr-20,"637,148.01",
SURFACE TRANSPORT CORP,LONDON BOROUGH OF ENFIELD,Borough Services,1002\1900063687,06-Apr-20,"625,499.66",
TFL CORPORATE,COMPUTACENTER PLC,Computer Hardware,1001\5109736073,06-Apr-20,"616,029.95",
TRANSPORT TRADING LTD,LONDON BOROUGH OF SOUTHWARK,Rates,1004\1901671812,15-Apr-20,"601,692.00",
LONDON UNDERGROUND LTD,MORSON HUMAN RESOURCES LTD,Track General Maintenance,1005\5109745786,15-Apr-20,"596,349.10",
DOCKLANDS LIGHT RAILWAY,CONST. Y AUX. DE FERROCARRILES S.A,Vehicle Purchases,1012\5109742312,07-Apr-20,"594,012.88",
LONDON UNDERGROUND LTD,ALSTOM TRANSPORT LTD,Maintenance Materials,1005\5109737916,03-Apr-20,"583,912.50",
LONDON UNDERGROUND LTD,HOCHTIEF UK CONSTRUCTION LTD,MR Construction Costs,1005\5109744645,22-Apr-20,"578,469.54",
SURFACE TRANSPORT CORP,CITY OF WESTMINSTER,Borough Services,1002\1900064666,20-Apr-20,"566,423.00",
TFL CORPORATE,OPEN TEXT UK LTD,Computer Software,1001\5109741558,27-Apr-20,"547,835.67",
LONDON UNDERGROUND LTD,ENGIE SERVICES LTD,Equipment Repairs & Maintenance,1005\5109728780,08-Apr-20,"547,062.05",
LONDON BUS SERVICES LTD,SULLIVAN BUS & COACH LTD,Bus Contract Payments,1006\1900044098,17-Apr-20,"545,410.15",
LONDON BUS SERVICES LTD,LONDON GENERAL TRANSPORT SERVICES,Vehicle Repairs & Maintenance,1006\5109729195,08-Apr-20,"541,362.00",
RAIL FOR LONDON LIMITED,MOTT MACDONALD LIMITED,Professional Engineering Services,1020\5109728674,08-Apr-20,"539,410.15",
RAIL FOR LONDON LIMITED,MOTT MACDONALD LIMITED,Professional Engineering Services,1020\5109739957,22-Apr-20,"536,876.28",
SURFACE TRANSPORT CORP,CAPITA BUSINESS SERVICES LTD,CCS Service Contract,1002\5109730029,08-Apr-20,"534,128.70",
LONDON BUS SERVICES LTD,CT PLUS LIMITED,Bus Contract Payments,1006\1900044148,24-Apr-20,"528,714.27",
LONDON UNDERGROUND LTD,CLESHAR CONTRACT SERVICES LTD,Track General Maintenance,1005\5109752284,27-Apr-20,"511,607.85",
RAIL FOR LONDON LIMITED,THAMES WATER,Civil Engineering Construction Works,1020\5109751401,22-Apr-20,"506,147.23",
LONDON UNDERGROUND LTD,ENGIE SERVICES LTD,Equipment Repairs & Maintenance,1005\5109728775,08-Apr-20,"503,251.21",
SURFACE TRANSPORT CORP,LONDON BOROUGH OF SOUTHWARK,Borough Services,1002\1900064192,06-Apr-20,"487,294.00",
SURFACE TRANSPORT CORP,UK POWER NETWORKS LTD,Electricity,1002\5109739470,08-Apr-20,"486,762.70",
SURFACE TRANSPORT CORP,CITY OF LONDON POLICE ,MPS Employment Costs SM,1002\5109750748,22-Apr-20,"482,733.00",
LONDON BUS SERVICES LTD,RINGWAY JACOBS LIMITED,Contracted Services - Roads,1006\5109754497,29-Apr-20,"477,274.24",
SURFACE TRANSPORT CORP,RINGWAY JACOBS LIMITED,Contracted Services - Roads,1002\5109754523,29-Apr-20,"471,977.98",
LONDON UNDERGROUND LTD,THALES GROUND TRANSPORTATION SYSTEM,Civil Engineering Construction Works,1005\5109748165,24-Apr-20,"470,763.41",
SURFACE TRANSPORT CORP,SIEMENS,Cameras,1002\5109741047,29-Apr-20,"469,350.00",
SURFACE TRANSPORT CORP,AA DRIVETECH,Contracted Services - Roads,1002\5109744290,27-Apr-20,"468,560.80",
SURFACE TRANSPORT CORP,CAPITA BUSINESS SERVICES LTD,CCS Service Contract,1002\5109729892,08-Apr-20,"465,218.17",
LONDON UNDERGROUND LTD,CLESHAR CONTRACT SERVICES LTD,Track General Maintenance,1005\5109744420,15-Apr-20,"464,690.20",
SURFACE TRANSPORT CORP,CAPITA BUSINESS SERVICES LTD,Management & Support Consultancy,1002\5109724826,08-Apr-20,"457,033.88",
TRANSPORT TRADING LTD,RAIL SETTLEMENT PLAN,Rail Settlement Plan - PAYG Creditor,1004\1901672560,17-Apr-20,"456,495.21",
LONDON UNDERGROUND LTD,ALSTOM NL SERVICE PROVISION LTD,Civil Engineering Construction Works,1005\5109741447,27-Apr-20,"456,292.50",
SURFACE TRANSPORT CORP,SIEMENS,Cameras,1002\5109725323,08-Apr-20,"437,500.00",
SURFACE TRANSPORT CORP,SIEMENS,Cameras,1002\5109739390,08-Apr-20,"436,000.00",
LUL NOMINEE BCV LIMITED,SIEMENS,Signalling Systems,1033\5109741736,06-Apr-20,"432,169.04",
SURFACE TRANSPORT CORP,RINGWAY JACOBS LIMITED,Contracted Services - Roads,1002\5109733190,01-Apr-20,"430,834.82",
TRANSPORT TRADING LTD,SODEXO LTD,Caterers Service Charges,1004\5109729341,08-Apr-20,"430,701.90",
LONDON UNDERGROUND LTD,ENGIE SERVICES LTD,Fire and Safety Equipment,1005\5109728858,08-Apr-20,"421,937.85",
LONDON UNDERGROUND LTD,GEOFFREY OSBORNE LIMITED,Civil Engineering Construction Works,1005\5109747343,20-Apr-20,"419,487.62",
SURFACE TRANSPORT CORP,CAPITA BUSINESS SERVICES LTD,CCS Service Contract,1002\5109729865,08-Apr-20,"412,703.88",
SURFACE TRANSPORT CORP,CAPITA BUSINESS SERVICES LTD,CCS Service Contract,1002\5109751133,29-Apr-20,"411,755.84",
SURFACE TRANSPORT CORP,LONDON BOROUGH OF SOUTHWARK,Borough Services,1002\1900064194,06-Apr-20,"402,590.00",
TFL CORPORATE,DAISY COMMUNICATIONS LTD,Computer Hardware,1001\5109742347,27-Apr-20,"395,838.42",
LONDON UNDERGROUND LTD,TAYLOR WOODROW CONS BAM NUTTAL LTD,MR Construction Costs,1005\5109741762,22-Apr-20,"393,591.87",
LONDON UNDERGROUND LTD,GBM SERVICES LTD,Operational Cleaning,1005\5109732450,01-Apr-20,"392,864.16",
LONDON UNDERGROUND LTD,KONE PLC,Escalators,1005\5109747166,15-Apr-20,"382,260.56",
SURFACE TRANSPORT CORP,LONDON BOROUGH OF LEWISHAM,Borough Services,1002\1900064668,20-Apr-20,"381,026.41",
SURFACE TRANSPORT CORP,BRITISH TELECOMMUNICATIONS PLC,Contracted Services - Roads,1002\5109724803,01-Apr-20,"380,513.65",
LONDON UNDERGROUND LTD,ENTERPISE AMS GROUP LTD ,IT Consultancy,1005\5109740548,22-Apr-20,"375,000.00",
LONDON UNDERGROUND LTD,MORGAN SINDALL  PLC,MR Construction Costs,1005\5109737660,01-Apr-20,"373,981.00",
SURFACE TRANSPORT CORP,CAPITA BUSINESS SERVICES LTD,Management & Support Consultancy,1002\5109724492,08-Apr-20,"373,690.24",
SURFACE TRANSPORT CORP,CAPITA BUSINESS SERVICES LTD,CCS Service Contract,1002\5109729869,08-Apr-20,"371,074.89",
RAIL FOR LONDON LIMITED,MORGAN SINDALL  PLC,Management & Support Consultancy,1020\5109745032,22-Apr-20,"370,020.62",
SURFACE TRANSPORT CORP,KPMG,Professional Engineering Services,1002\5109740133,08-Apr-20,"368,731.25",
LONDON UNDERGROUND LTD,THE 4OC LIMITED,Management & Support Consultancy,1005\5109739680,15-Apr-20,"363,405.00",
DOCKLANDS LIGHT RAILWAY,MACE MACRO LTD,Professional Engineering Services,1012\5109725379,08-Apr-20,"357,592.28",
DOCKLANDS LIGHT RAILWAY,MACE MACRO LTD,Professional Engineering Services,1012\5109748843,29-Apr-20,"357,592.28",
LONDON UNDERGROUND LTD,CLESHAR CONTRACT SERVICES LTD,Track General Maintenance,1005\5109744424,15-Apr-20,"355,950.70",
SURFACE TRANSPORT CORP,GREATER LONDON AUTHORITY ,CCS Service Contract,1002\5109739423,20-Apr-20,"354,108.02",
LONDON UNDERGROUND LTD,SERVICES SUPPORT (BTP) LTD,BTP PFI Service Costs,1005\5109741730,08-Apr-20,"352,703.74",
LONDON UNDERGROUND LTD,ALBA POWER LIMITED,Electrical Equipment Maintenance,1005\5109740021,21-Apr-20,"348,323.35",
SURFACE TRANSPORT CORP,LONDON BOROUGH OF HAMM& FULHAM,Borough Services,1002\1900064191,06-Apr-20,"344,817.15",
DOCKLANDS LIGHT RAILWAY,STANNAH LIFT SERVICES LTD,Civil Engineering Construction Works,1012\5109740803,22-Apr-20,"343,063.11",
TRANSPORT TRADING LTD,GBM SERVICES LTD,Office Cleaning,1004\5109750493,27-Apr-20,"342,929.43",
LONDON UNDERGROUND LTD,SCHINDLER LTD,Lift Maintenance,1005\5109752427,27-Apr-20,"338,960.55",
TFL CORPORATE,DAISY COMMUNICATIONS LTD,Computer Hardware,1001\5109742350,27-Apr-20,"333,575.17",
TRANSPORT TRADING LTD,LONDON BOROUGH OF NEWHAM ,Rates,1004\1901671571,15-Apr-20,"332,500.00",
LONDON UNDERGROUND LTD,GEOFFREY OSBORNE LIMITED,Civil Engineering Construction Works,1005\5109747334,20-Apr-20,"326,800.91",
TRANSPORT TRADING LTD,HEATHROW EXPRESS ,JFT Suspense  - TTL,1004\1901672549,15-Apr-20,"321,122.71",
LONDON BUS SERVICES LTD,LONDON GENERAL TRANSPORT SERVICES,Vehicle Repairs & Maintenance,1006\5109729262,08-Apr-20,"318,904.00",
SURFACE TRANSPORT CORP,LONDON BOROUGH OF ISLINGTON,Borough Services,1002\1900064340,08-Apr-20,"318,351.95",
TRANSPORT TRADING LTD,COLLINS RIVER ENTERPRISES LTD,Gross Sales Clearance,1004\800041093,08-Apr-20,"315,508.70",
DOCKLANDS LIGHT RAILWAY,GRAMM BARRIER SYSTEMS LTD,Civil Engineering Construction Works,1012\5109739923,02-Apr-20,"311,292.73",
LONDON UNDERGROUND LTD,BERWIN LEIGHTON PAISNER,Legal Fees,1005\5109745608,27-Apr-20,"309,529.11",
SURFACE TRANSPORT CORP,METROPOLITAN POLICE,MPS Employment Costs SM,1002\5109739697,22-Apr-20,"308,763.04",
LONDON UNDERGROUND LTD,GEOFFREY OSBORNE LIMITED,Civil Engineering Construction Works,1005\5109747303,20-Apr-20,"305,772.20",
SURFACE TRANSPORT CORP,CAPITA BUSINESS SERVICES LTD,Management & Support Consultancy,1002\5109724495,08-Apr-20,"304,510.06",
TRANSPORT TRADING LTD,VINCI CONSTRUCTION UK LTD,Building Maintenance & Repairs,1004\5109736551,08-Apr-20,"302,941.88",
TFL CORPORATE,QINETIQ COMMERCE DECISIONS LTD.,Computer Software,1001\5109730313,15-Apr-20,"300,000.00",
SURFACE TRANSPORT CORP,CITY OF WESTMINSTER,Borough Services,1002\1900064511,20-Apr-20,"300,000.00",
LONDON BUS SERVICES LTD,TRAPEZE PTI LTD,Maintenance of Plant & Equipment,1006\5109741490,17-Apr-20,"292,755.00",
LONDON UNDERGROUND LTD,EDF ENERGY,Electricity,1005\1900213576,01-Apr-20,"292,020.09",
TFL CORPORATE,MEDIAEDGE,Radio TV Press Poster Cinema Airtime And Space,1001\5109741617,08-Apr-20,"291,783.79",
LONDON UNDERGROUND LTD,ALSTOM NL SERVICE PROVISION LTD,Vehicle Repairs & Maintenance,1005\5109715686,01-Apr-20,"290,000.00",
TRANSPORT TRADING LTD,VINCI CONSTRUCTION UK LTD,Building Maintenance & Repairs,1004\5109747330,20-Apr-20,"289,575.86",
TFL CORPORATE,AXA PPP HEALTHCARE,General Insurance,1001\5109739672,01-Apr-20,"288,804.00",
LONDON UNDERGROUND LTD,MACE Ltd,MR Construction Costs,1005\5109748518,20-Apr-20,"288,430.75",
LONDON UNDERGROUND LTD,EDF ENERGY,Electricity,1005\1900213577,01-Apr-20,"286,719.80",
SURFACE TRANSPORT CORP,LONDON BOROUGH OF ISLINGTON,Borough Services,1002\1900064049,06-Apr-20,"285,096.43",
LONDON BUS SERVICES LTD,AECOM LTD,Contracted Services - Roads,1006\5109754433,29-Apr-20,"285,030.13",
LONDON UNDERGROUND LTD,TAYLOR WOODROW CONS BAM NUTTAL LTD,MR Construction Costs,1005\5109741752,22-Apr-20,"276,720.74",
TFL CORPORATE,SAP UK LTD,Software Maintenance,1001\5109742193,29-Apr-20,"276,078.50",
SURFACE TRANSPORT CORP,SIEMENS,Cameras,1002\5109748505,20-Apr-20,"276,054.13",
CYCLE HIRE SCHEME,SERCO LTD,Concession Maintenance Charge,1016\5109751092,27-Apr-20,"274,878.57",
SURFACE TRANSPORT CORP,CAPITA BUSINESS SERVICES LTD,CCS Service Contract,1002\5109729860,08-Apr-20,"274,002.11",
LONDON UNDERGROUND LTD,QUINN INFRASTRUCTURE SERVICES LTD,Equipment Repairs & Maintenance,1005\5109748704,27-Apr-20,"272,808.01",
LONDON BUS SERVICES LTD,HR RICHMOND LTD T/A EPSOM BUSES,Bus Contract Payments,1006\1900044156,24-Apr-20,"272,748.48",
TRANSPORT TRADING LTD,ERNST & YOUNG LLP,Financial Statement Audit Fees,1004\5109743909,27-Apr-20,"270,000.00",
SURFACE TRANSPORT CORP,CITY OF WESTMINSTER,Borough Services,1002\1900064687,20-Apr-20,"270,000.00",
TFL CORPORATE,NETWORK RAIL,Planning & Development Consultancy,1001\5109717552,08-Apr-20,"269,424.16",
SURFACE TRANSPORT CORP,JENOPTIK TRAFFIC SOLUTIONS UK LTD,Traffic Signals,1002\5109751755,24-Apr-20,"267,804.24",
SURFACE TRANSPORT CORP,EDF ENERGY,Electricity,1002\5109747850,22-Apr-20,"267,151.12",
LONDON UNDERGROUND LTD,EDF ENERGY,Electricity,1005\1900213806,27-Apr-20,"266,544.80",
TFL CORPORATE,NETWORK RAIL,Planning & Development Consultancy,1001\5109748539,20-Apr-20,"263,287.53",
LONDON UNDERGROUND LTD,GEOFFREY OSBORNE LIMITED,Civil Engineering Construction Works,1005\5109747385,20-Apr-20,"262,643.89",
LONDON BUS SERVICES LTD,DOCKLANDS MINIBUS LITD ,Bus Contract Payments,1006\1900044146,24-Apr-20,"261,707.59",
PUBLIC CARRIAGE OFFICE,NSL LIMITED,PCO Outsourced Services,1003\5109754705,29-Apr-20,"260,114.05",
TFL CORPORATE,TURNER & TOWNSEND LLP,Management & Support Consultancy,1001\5109745317,27-Apr-20,"258,149.57",
LONDON UNDERGROUND LTD,LANES GROUP PLC,Building Maintenance & Repairs,1005\5109733234,08-Apr-20,"256,151.70",
TRANSPORT TRADING LTD,VINCI CONSTRUCTION UK LTD,Building Maintenance & Repairs,1004\5109747325,27-Apr-20,"256,003.07",
TFL CORPORATE,DAISY COMMUNICATIONS LTD,Computer Hardware,1001\5109744070,27-Apr-20,"255,874.72",
SURFACE TRANSPORT CORP,BRITISH TELECOMMUNICATIONS PLC,Contracted Services - Roads,1002\5109724835,01-Apr-20,"255,738.64",
TFL CORPORATE,DAISY COMMUNICATIONS LTD,Computer Hardware,1001\5109742354,27-Apr-20,"255,662.80",
SURFACE TRANSPORT CORP,GREATER LONDON AUTHORITY ,Section 159 Payments,1002\1900064707,01-Apr-20,"254,452.24",
SURFACE TRANSPORT CORP,SOPRA STERIA LTD,Computer Software,1002\5109724136,06-Apr-20,"253,305.00",
SURFACE TRANSPORT CORP,CAPITA BUSINESS SERVICES LTD,CCS Service Contract,1002\5109729866,08-Apr-20,"253,279.00",
LONDON UNDERGROUND LTD,KONE PLC,Escalators,1005\5109741576,06-Apr-20,"253,128.56",
LONDON BUS SERVICES LTD,ENTERPRISEMOUCHEL LTD ,Contracted Services - Roads,1006\5109754464,29-Apr-20,"252,637.08",
LONDON UNDERGROUND LTD,EDF ENERGY,Electricity,1005\1900213805,27-Apr-20,"252,503.75",
DOCKLANDS LIGHT RAILWAY,SOLUTION RAIL LIMITED,Civil Engineering Construction Works,1012\5109740017,09-Apr-20,"252,179.28",
TFL CORPORATE,COMPUTACENTER PLC,Computer Hardware,1001\5109751534,27-Apr-20,"251,034.93",
LONDON RIVER SERVICES LTD,BRIGGS MARINE CONTRACTORS LIMITED,Operator Costs,1007\5109740539,22-Apr-20,"250,262.45",
LONDON UNDERGROUND LTD,BRYEN & LANGLEY LTD,Building Maintenance & Repairs,1005\5109754452,29-Apr-20,"249,776.94",
LONDON BUS SERVICES LTD,STAGECOACH,Vehicle Repairs & Maintenance,1006\5109744618,29-Apr-20,"243,800.00",
TFL CORPORATE,TURNER & TOWNSEND LLP,Management & Support Consultancy,1001\5109715251,01-Apr-20,"239,690.10",
TRANSPORT TRADING LTD,LONDON BOROUGH OF GREENWICH,Rates,1004\1901672540,15-Apr-20,"236,208.00",
LONDON UNDERGROUND LTD,ONE TRANSPORT LIMITED,Travel to/from work (Unsocial Hours),1005\5109749196,21-Apr-20,"232,123.53",
LUL NOMINEE SSL LIMITED,BOMBARDIER TRANSPORT UK,Fleet Tsssa Contract,1031\5109740120,03-Apr-20,"230,321.25",
LONDON UNDERGROUND LTD,APPROVED INSPECTOR SERVICES LTD,MR Construction Costs,1005\5109742517,07-Apr-20,"230,006.00",
SURFACE TRANSPORT CORP,SIEMENS,Computer Software,1002\5109739379,29-Apr-20,"225,715.70",
TFL CORPORATE,BYTES SOFTWARE SERVICES,Computer Hardware,1001\5109736269,20-Apr-20,"224,769.09",
SURFACE TRANSPORT CORP,LONDON BOROUGH OF WALTHAM FOREST,Borough Services,1002\1900064330,06-Apr-20,"223,557.59",
SURFACE TRANSPORT CORP,ROAD MANAGEMENT SERVICES PLC,A13 PFI Service Costs,1002\5109744727,15-Apr-20,"223,265.54",
LONDON BUS SERVICES LTD,EDF ENERGY,Electricity,1006\5109747869,22-Apr-20,"220,670.09",
SURFACE TRANSPORT CORP,ASHURST LLP,Legal Fees,1002\5109733478,08-Apr-20,"219,989.50",
TFL CORPORATE,SPECIALIST COMPUTER CENTRES LTD,Software Maintenance,1001\5109752424,27-Apr-20,"219,409.76",
LONDON UNDERGROUND LTD,QUINN INFRASTRUCTURE SERVICES LTD,Building Maintenance & Repairs,1005\5109737854,01-Apr-20,"216,836.91",
SURFACE TRANSPORT CORP,SIEMENS,Maintenance of Plant & Equipment,1002\5109750772,29-Apr-20,"215,690.01",
TFL CORPORATE,INSIGHT DIRECT UK LIMITED,Software Maintenance,1001\5109728178,08-Apr-20,"215,000.00",
TFL CORPORATE,AXA PPP HEALTHCARE,General Insurance,1001\5109739700,01-Apr-20,"214,919.41",
SURFACE TRANSPORT CORP,CAPITA BUSINESS SERVICES LTD,Management & Support Consultancy,1002\5109724946,08-Apr-20,"213,712.10",
TFL CORPORATE,GALLAGHER BASSETT INTERNAT. LTD,Claim Settlements,1001\1900070542,08-Apr-20,"211,645.63",
RFL (INFRASTRUCTURE) LTD,GB RAILFREIGHT LTD,Equipment Repairs & Maintenance,1025\5109745661,15-Apr-20,"211,585.23",
LONDON BUS SERVICES LTD,TRUEFORM ENGINEERING LTD,Purchase of Bus Shelters,1006\5109745221,09-Apr-20,"211,427.40",
LUL NOMINEE SSL LIMITED,1STINRAIL LIMITED,Contractors,1031\5109747180,15-Apr-20,"211,299.41",
LONDON UNDERGROUND LTD,SPERRY RAIL SERVICE,Track General Maintenance,1005\5109728619,08-Apr-20,"210,000.00",
LONDON UNDERGROUND LTD,HAYLEY GROUP PLC,Protective Clothing,1005\5109744322,16-Apr-20,"209,464.95",
SURFACE TRANSPORT CORP,SIEMENS,Cameras,1002\5109748506,20-Apr-20,"206,809.68",
LONDON UNDERGROUND LTD,HAYLEY GROUP PLC,Protective Clothing,1005\5109744396,16-Apr-20,"206,278.47",
SURFACE TRANSPORT CORP,CORPORATION OF LONDON,Borough Services,1002\1900064303,06-Apr-20,"205,665.01",
LONDON BUS SERVICES LTD,LONDON UNITED BUSWAYS,Bus Contract Payments,1006\1900044134,24-Apr-20,"203,112.44",
LONDON UNDERGROUND LTD,CPC PROJECT SERVICES LLP,MR Construction Costs,1005\5109744271,29-Apr-20,"202,046.00",
TRANSPORT TRADING LTD,CBRE LIMITED,Management & Support Consultancy,1004\5109748573,27-Apr-20,"200,000.00",
SURFACE TRANSPORT CORP,CITY OF WESTMINSTER,Borough Services,1002\1900064686,20-Apr-20,"200,000.00",
LONDON UNDERGROUND LTD,EDF ENERGY,Electricity,1005\1900213580,01-Apr-20,"198,570.04",
SURFACE TRANSPORT CORP,CAPITA BUSINESS SERVICES LTD,Management & Support Consultancy,1002\5109724942,08-Apr-20,"198,468.62",
SURFACE TRANSPORT CORP,TELENT TECHNOLOGY SERVICES LTD,Maintenance of Plant & Equipment,1002\5109739458,02-Apr-20,"198,320.35",
TRANSPORT TRADING LTD,ATOC,Ticket & Pass Production,1004\5109720157,01-Apr-20,"192,400.00",
LONDON UNDERGROUND LTD,ABB POWER GRIDS UK LIMITED,Traction Current,1005\5109739806,06-Apr-20,"191,296.16",
SURFACE TRANSPORT CORP,CSTS LTD,Maintenance of Plant & Equipment,1002\5109745751,22-Apr-20,"190,914.35",
SURFACE TRANSPORT CORP,INSIGHT DIRECT UK LIMITED,Computer Hardware,1002\5109726247,06-Apr-20,"187,834.50",
LONDON UNDERGROUND LTD,BRYEN & LANGLEY LTD,Building Maintenance & Repairs,1005\5109754463,29-Apr-20,"186,951.11",
LUL NOMINEE BCV LIMITED,SIEMENS,Signalling Systems,1033\5109745468,22-Apr-20,"186,571.65",
SURFACE TRANSPORT CORP,LONDON BOROUGH OF SOUTHWARK,Contracted Services - Roads,1002\5109739445,08-Apr-20,"185,863.47",
TRANSPORT TRADING LTD,GLOBAL OUTDOOR MEDIA LIMITED,Purchase of Associates Loan Notes (Activity),1004\5109736457,22-Apr-20,"184,719.05",
PUBLIC CARRIAGE OFFICE,NSL LIMITED,PCO Outsourced Services,1003\5109748200,20-Apr-20,"184,272.51",
LONDON UNDERGROUND LTD,SCHWEERBAU GMBH & CO.KG *PAID BACS*,Track General Maintenance,1005\5109723696,06-Apr-20,"183,439.42",
TFL CORPORATE,HP INC UK LTD,Computer Hardware,1001\5109736247,06-Apr-20,"182,291.92",
LONDON UNDERGROUND LTD,BALFOUR BEATTY RAIL LTD,Civil Engineering Construction Works,1005\5109745222,22-Apr-20,"180,548.29",
SURFACE TRANSPORT CORP,LONDON BOROUGH OF HARROW,Borough Services,1002\1900064397,08-Apr-20,"180,350.00",
RAIL FOR LONDON LIMITED,SCHWEERBAU GMBH & CO.KG *PAID BACS*,Management & Support Consultancy,1020\5109719802,01-Apr-20,"179,365.00",
LONDON BUS SERVICES LTD,GBM SERVICES LTD,Office Cleaning,1006\5109749248,27-Apr-20,"178,828.12",
LONDON UNDERGROUND LTD,THALES GROUND TRANSPORTATION SYSTEM,Civil Engineering Construction Works,1005\5109748061,24-Apr-20,"178,597.80",
SURFACE TRANSPORT CORP,SIEMENS,Traffic Signals,1002\5109752555,29-Apr-20,"178,001.00",
VICTORIA COACH STATN LTD,RINGWAY JACOBS LIMITED,Maintenance of Plant & Equipment,1008\5109754553,29-Apr-20,"177,914.73",
LONDON BUS SERVICES LTD,ABELLIO LONDON LTD,Maintenance of Bus Stations LBL,1006\1900044068,29-Apr-20,"177,493.45",
TFL CORPORATE,COMPUTACENTER PLC,Software Maintenance,1001\5109726343,08-Apr-20,"176,188.07",
TFL CORPORATE,COMPUTACENTER PLC,Computer Hardware,1001\5109741267,27-Apr-20,"174,056.00",
SURFACE TRANSPORT CORP,LONDON BOROUGH OF BEXLEY,Borough Services,1002\1900064339,08-Apr-20,"173,821.61",
TRANSPORT TRADING LTD,EXCEET CARD AUSTRIA GMBH,Ticket & Pass Production,1004\5109744714,01-May-20,"173,700.00",
SURFACE TRANSPORT CORP,ROAD MANAGEMENT SERVICES PLC,A13 PFI Service Costs,1002\5109744731,15-Apr-20,"172,500.00",
PUBLIC CARRIAGE OFFICE,NSL LIMITED,PCO Outsourced Services,1003\5109754702,29-Apr-20,"170,997.34",
TFL CORPORATE,OVE ARUP & PARTNERS LTD,Planning & Development Consultancy,1001\5109742429,15-Apr-20,"170,880.88",
TFL CORPORATE,PCUBED LTD,Software Maintenance,1001\5109740094,22-Apr-20,"170,000.00",
LONDON UNDERGROUND LTD,DELOITTE,Management & Support Consultancy,1005\5109719437,01-Apr-20,"169,873.00",
SURFACE TRANSPORT CORP,PELL FRISCHMANN CONSULTANTS LTD,Contracted Services - Highway Bridges,1002\5109740816,22-Apr-20,"169,322.40",
SURFACE TRANSPORT CORP,LONDON BOROUGH OF BEXLEY,Borough Services,1002\1900064504,20-Apr-20,"169,278.48",
RAIL FOR LONDON LIMITED,ORION RAIL CONSTRUCTION SERVICES,Management & Support Consultancy,1020\5109726099,08-Apr-20,"168,056.23",
TRANSPORT TRADING LTD,AUSTRIA CARD GESELLSCHAFT M.B.H.,Ticket & Pass Production,1004\5109736538,08-Apr-20,"167,310.00",
TRANSPORT TRADING LTD,AUSTRIA CARD GESELLSCHAFT M.B.H.,Ticket & Pass Production,1004\5109736583,22-Apr-20,"167,310.00",
LONDON BUS SERVICES LTD,METROLINE TRAVEL LTD,Maintenance of Bus Stations LBL,1006\1900044062,29-Apr-20,"167,297.67",
LONDON UNDERGROUND LTD,CAPITA BUSINESS SERVICES LTD,IT Consultancy,1005\5109742379,29-Apr-20,"166,284.24",
LONDON UNDERGROUND LTD,EDF ENERGY,Electricity,1005\1900213578,01-Apr-20,"165,460.09",
LONDON RIVER SERVICES LTD,STEER,Maintenance of Plant & Equipment,1007\5109733354,20-Apr-20,"165,072.66",
SURFACE TRANSPORT CORP,INTEROUTE NETWORK LTD ,Telephony Fixed,1002\5109727919,08-Apr-20,"163,272.69",
TRANSPORT TRADING LTD,EDF ENERGY,Electricity,1004\1901671513,22-Apr-20,"162,589.56",
LONDON UNDERGROUND LTD,EDF ENERGY,Electricity,1005\1900213804,22-Apr-20,"161,658.51",
SURFACE TRANSPORT CORP,PELL FRISCHMANN CONSULTANTS LTD,Contracted Services - Highway Bridges,1002\5109739442,06-Apr-20,"160,778.78",
TRANSPORT TRADING LTD,BEMROSEBOOTH LIMITED,Ticket & Pass Production,1004\5109727856,08-Apr-20,"160,500.00",
TRANSPORT TRADING LTD,BEMROSEBOOTH LIMITED,Ticket & Pass Production,1004\5109732497,20-Apr-20,"160,500.00",
LUL NOMINEE SSL LIMITED,SKANSKA CONTRUCTIONS UK LTD,Track General Maintenance,1031\5109747875,20-Apr-20,"160,389.95",
TFL CORPORATE,CAPITA BUSINESS SERVICES LTD,Maintenance of Telecommunications Equipment,1001\5109736119,03-Apr-20,"159,406.24",
LONDON UNDERGROUND LTD,KONE PLC,Escalators,1005\5109751465,27-Apr-20,"159,193.81",
SURFACE TRANSPORT CORP,GREATER LONDON AUTHORITY ,CCS Service Contract,1002\5109724955,01-Apr-20,"158,610.34",
LUL NOMINEE SSL LIMITED,CPC PROJECT SERVICES LLP,Civil Engineering Construction Works,1031\5109741782,14-Apr-20,"158,542.02",
TRANSPORT TRADING LTD,NOVACROFT DIRECT LTD,Ticket & Pass Production,1004\5109745773,17-Apr-20,"157,349.65",
LONDON UNDERGROUND LTD,CLEAR ROUTE UTILITY SERVICES LTD,Electrical Equipment Maintenance,1005\5109754429,28-Apr-20,"157,060.86",
RAIL FOR LONDON LIMITED,VOLKERRAIL SPECIALIST BUSINESSES LTD,Management & Support Consultancy,1020\5109745247,15-Apr-20,"156,289.63",
TFL CORPORATE,CAPITA BUSINESS SERVICES LTD,Maintenance of Telecommunications Equipment,1001\5109730938,15-Apr-20,"153,161.01",
DOCKLANDS LIGHT RAILWAY,VOESTALPINE VAE UK LTD,Civil Engineering Construction Works,1012\5109740033,09-Apr-20,"153,084.96",
TRANSPORT TRADING LTD,CITY OF WESTMINSTER,Rates,1004\1901672227,15-Apr-20,"152,152.00",
TRANSPORT TRADING LTD,SODEXO LTD,Caterers Service Charges,1004\5109749189,22-Apr-20,"151,760.70",
LUL NOMINEE SSL LIMITED,CPC PROJECT SERVICES LLP,Civil Engineering Construction Works,1031\5109741866,14-Apr-20,"151,164.43",
LONDON BUS SERVICES LTD,ABELLIO LONDON LTD,Maintenance of Bus Stations LBL,1006\1900044118,29-Apr-20,"151,130.55",
TFL CORPORATE,LONDON BOROUGH OF LEWISHAM,Planning & Development Consultancy,1001\5109728594,08-Apr-20,"150,000.00",
TRANSPORT TRADING LTD,ERNST & YOUNG LLP,Financial Statement Audit Fees,1004\5109730652,08-Apr-20,"150,000.00",
SURFACE TRANSPORT CORP,RINGWAY JACOBS LIMITED,Maintenance of Plant & Equipment,1002\5109733188,01-Apr-20,"149,354.91",
LONDON UNDERGROUND LTD,MACE Ltd,Professional Engineering Services,1005\5109740724,22-Apr-20,"148,869.75",
DOCKLANDS LIGHT RAILWAY,TRACK AND BUILD LTD.,Civil Engineering Construction Works,1012\5109740027,06-Apr-20,"148,184.80",
LONDON UNDERGROUND LTD,RJC (UK) LTD,Escalators,1005\5109737108,01-Apr-20,"147,590.00",
SURFACE TRANSPORT CORP,LONDON BOROUGH OF ISLINGTON,Borough Services,1002\1900064050,06-Apr-20,"147,371.98",
LUL NOMINEE BCV LIMITED,AMALGAMATED CONSTRUCTION LIMITED,Signalling Systems,1033\5109752799,27-Apr-20,"146,319.27",
TFL CORPORATE,VCCP GROUP LLP,Agency Fees Paid To Marketing Agencies,1001\5109719454,01-Apr-20,"146,086.00",
RAIL FOR LONDON LIMITED,NETWORK RAIL,Civil Engineering Construction Works,1020\5109726163,08-Apr-20,"145,352.14",
LONDON UNDERGROUND LTD,MERSEN UK TEESSIDE LIMITED,Maintenance Materials,1005\5109741837,27-Apr-20,"144,175.68",
TFL CORPORATE,O2 UK LTD,Maintenance of Telecommunications Equipment,1001\5109740547,22-Apr-20,"144,000.00",
RAIL FOR LONDON LIMITED,HEATHROW AIRPORT LTD ,Franchise/Concession Fixed Fee,1020\5109744743,15-Apr-20,"143,847.61",
RAIL FOR LONDON LIMITED,HEATHROW AIRPORT LTD ,Franchise/Concession Fixed Fee,1020\5109745219,15-Apr-20,"143,847.61",
RAIL FOR LONDON LIMITED,HEATHROW AIRPORT LTD ,Franchise/Concession Fixed Fee,1020\5109748853,27-Apr-20,"143,847.61",
RAIL FOR LONDON LIMITED,HEATHROW AIRPORT LTD ,Franchise/Concession Fixed Fee,1020\5109752917,29-Apr-20,"143,847.61",
LONDON BUS SERVICES LTD,VINCI CONSTRUCTION UK LTD,Building Maintenance & Repairs,1006\5109747110,15-Apr-20,"143,708.72",
TFL CORPORATE,INSIGHT DIRECT UK LIMITED,Computer Hardware,1001\5109736203,15-Apr-20,"143,422.13",
SURFACE TRANSPORT CORP,CSTS LTD,Contracted Services - Tunnels,1002\5109728073,08-Apr-20,"142,249.24",
LONDON UNDERGROUND LTD,TELENT TECHNOLOGY SERVICES LTD,Security Equipment,1005\5109737582,15-Apr-20,"141,457.46",
SURFACE TRANSPORT CORP,CAPITA BUSINESS SERVICES LTD,CCS Service Contract,1002\5109729851,08-Apr-20,"141,243.20",
TFL CORPORATE,CAPITA BUSINESS SERVICES LTD,Maintenance of Telecommunications Equipment,1001\5109736126,08-Apr-20,"141,065.70",
TFL CORPORATE,MEDIAEDGE,Radio TV Press Poster Cinema Airtime And Space,1001\5109741620,08-Apr-20,"141,002.86",
LONDON UNDERGROUND LTD,HAYLEY GROUP PLC,Signalling Systems,1005\5109733875,20-Apr-20,"140,700.00",
LONDON UNDERGROUND LTD,ENTERPISE AMS GROUP LTD ,IT Consultancy,1005\5109720982,01-Apr-20,"140,000.00",
SURFACE TRANSPORT CORP,LONDON COUNCILS ,Borough Services,1002\1900064601,01-May-20,"140,000.00",
LONDON UNDERGROUND LTD,NETWORK RAIL,National Rail Variable Track Access Charges,1005\5109717634,08-Apr-20,"138,727.92",
TRANSPORT TRADING LTD,NOVACROFT DIRECT LTD,Ticket & Pass Production,1004\5109745772,23-Apr-20,"138,664.38",
LONDON UNDERGROUND LTD,MORGAN SINDALL  PLC,MR Construction Costs,1005\5109733566,08-Apr-20,"138,343.06",
LONDON UNDERGROUND LTD,ABELLIO EAST ANGLIA LTD,MR Construction Costs,1005\5109739794,22-Apr-20,"138,215.50",
LONDON UNDERGROUND LTD,JACOBS U.K LIMITED,Planning & Development Consultancy,1005\5109744563,27-Apr-20,"137,889.38",
LONDON UNDERGROUND LTD,SCHWEERBAU GMBH & CO.KG *PAID BACS*,Track General Maintenance,1005\5109737658,20-Apr-20,"137,852.05",
RFL (INFRASTRUCTURE) LTD,SIEMENS,Maintenance of Plant & Equipment,1025\5109728135,01-Apr-20,"137,704.87",
RFL (INFRASTRUCTURE) LTD,SIEMENS,Maintenance of Plant & Equipment,1025\5109741850,27-Apr-20,"137,704.87",
RAIL FOR LONDON LIMITED,EDF ENERGY,Traction Current,1020\5109745521,22-Apr-20,"137,008.55",
LONDON UNDERGROUND LTD,TOWER SUPPLIES,Other Spares stock issues,1005\5109744626,09-Apr-20,"136,514.87",
TRANSPORT TRADING LTD,LONDON BOROUGH OF LEWISHAM,Rates,1004\1901672492,15-Apr-20,"135,660.00",
DOCKLANDS LIGHT RAILWAY,AECOM LTD,Professional Engineering Services,1012\5109740172,22-Apr-20,"135,273.54",
SURFACE TRANSPORT CORP,ASITE SOLUTIONS LTD,Software Maintenance,1002\5109742256,27-Apr-20,"135,000.00",
TFL CORPORATE,CAPITA BUSINESS SERVICES LTD,Maintenance of Telecommunications Equipment,1001\5109736331,15-Apr-20,"134,459.08",
TFL CORPORATE,MEDIAEDGE,Radio TV Press Poster Cinema Airtime And Space,1001\5109732947,06-Apr-20,"134,128.84",
TFL CORPORATE,AECOM LTD,Planning & Development Consultancy,1001\5109725479,01-Apr-20,"133,714.33",
LONDON BUS SERVICES LTD,MITIE CLEANING & ENVIRONMENTAL,Building Maintenance & Repairs,1006\5109730576,15-Apr-20,"133,458.63",
LONDON UNDERGROUND LTD,LANES GROUP PLC,Civil Engineering Construction Works,1005\5109725629,01-Apr-20,"133,330.98",
SURFACE TRANSPORT CORP,BRITISH TELECOMMUNICATIONS PLC,Contracted Services - Roads,1002\5109739455,08-Apr-20,"133,325.80",
LONDON UNDERGROUND LTD,GEOFFREY OSBORNE LIMITED,Civil Engineering Construction Works,1005\5109747371,20-Apr-20,"133,018.39",
LONDON UNDERGROUND LTD,DELATIM LIMITED,MR Construction Costs,1005\5109752416,27-Apr-20,"132,685.86",
SURFACE TRANSPORT CORP,MOTT MACDONALD LIMITED,Contracted Services - Highway Bridges,1002\5109739413,20-Apr-20,"131,952.02",
LONDON UNDERGROUND LTD,ALSTOM NL SERVICE PROVISION LTD,Professional Engineering Services,1005\5109751995,27-Apr-20,"131,631.40",
TRANSPORT TRADING LTD,COLLINS RIVER ENTERPRISES LTD,Gross Sales Clearance,1004\800041092,08-Apr-20,"131,386.00",
SURFACE TRANSPORT CORP,GLOBAL SWITCH ESTATE 2 LTD,Commercial Property Rent,1002\5109739389,22-Apr-20,"131,304.96",
SURFACE TRANSPORT CORP,REDSPEED INTERNATIONAL  LTD,Maintenance of Plant & Equipment,1002\5109740439,08-Apr-20,"130,960.12",
DOCKLANDS LIGHT RAILWAY,CLESHAR CONTRACT SERVICES LTD,Civil Engineering Construction Works,1012\5109743997,20-Apr-20,"129,961.03",
LONDON UNDERGROUND LTD,TURNER & TOWNSEND LLP,Management & Support Consultancy,1005\5109744314,22-Apr-20,"129,347.00",
LONDON UNDERGROUND LTD,LANES GROUP PLC,Civil Engineering Construction Works,1005\5109749090,29-Apr-20,"127,772.07",
LONDON BUS SERVICES LTD,SULLIVAN BUS & COACH LTD,Bus Contract Payments,1006\1900044158,24-Apr-20,"127,147.69",
LONDON UNDERGROUND LTD,NCP SERVICES LTD,Costs of Disp Inv Prop - TTL Planning,1005\5109740300,22-Apr-20,"126,894.31",
TRANSPORT TRADING LTD,CBRE LIMITED,Planning & Development Consultancy,1004\5109730673,01-Apr-20,"126,750.00",
SURFACE TRANSPORT CORP,TELENT TECHNOLOGY SERVICES LTD,Maintenance of Plant & Equipment,1002\5109739459,02-Apr-20,"126,067.07",
LONDON UNDERGROUND LTD,CORONA ENERGY RETAIL 4 LTD,Gas,1005\1900213807,27-Apr-20,"125,561.78",
TFL CORPORATE,TOWN LEGAL LLP,Purchase of Land & Buildings,1001\1900070659,29-Apr-20,"125,000.00",
LUL NOMINEE BCV LIMITED,SIEMENS,Signalling Systems,1033\5109747352,22-Apr-20,"124,509.55",
TFL CORPORATE,CAPITA BUSINESS SERVICES LTD,Maintenance of Telecommunications Equipment,1001\5109700333,01-Apr-20,"124,502.02",
LONDON UNDERGROUND LTD,THIRDWAY CONTRACTS,Property Management Fees,1005\5109733015,20-Apr-20,"124,367.06",
LUL NOMINEE SSL LIMITED,LENDLEASE JACOBS JOINT VENTURE,MR Construction Costs,1031\5109740012,06-Apr-20,"124,265.29",
LUL NOMINEE SSL LIMITED,KN NETWORK SERVICES LTD,Retentions Control Account > 1Year,1031\5109744031,20-Apr-20,"124,028.96",
LONDON UNDERGROUND LTD,KNORR-BREMSE RAIL LTD ,Signalling Systems,1005\5109754501,29-Apr-20,"123,844.61",
TFL CORPORATE,SAP UK LTD,Software Maintenance,1001\5109736054,27-Apr-20,"123,703.62",
TRANSPORT TRADING LTD,GLOBAL OUTDOOR MEDIA LIMITED,Purchase of Associates Loan Notes (Activity),1004\5109747108,22-Apr-20,"122,925.95",
LONDON UNDERGROUND LTD,NCP SERVICES LTD,Costs of Disp Inv Prop - TTL Planning,1005\5109747301,27-Apr-20,"122,518.97",
LONDON UNDERGROUND LTD,NETWORK RAIL,Traction Current,1005\5109717644,08-Apr-20,"122,462.73",
LONDON BUS SERVICES LTD,ABELLIO LONDON LTD,Bus Contract Payments,1006\1900044124,24-Apr-20,"120,759.38",
TRANSPORT TRADING LTD,SENATOR INTERNATIONAL LTD,Furniture & Equipment,1004\5109728657,08-Apr-20,"120,276.57",
TRANSPORT TRADING LTD,SENATOR INTERNATIONAL LTD,Furniture & Equipment,1004\5109728590,08-Apr-20,"120,276.38",
LONDON UNDERGROUND LTD,DELATIM LIMITED,Building Maintenance & Repairs,1005\5109752412,28-Apr-20,"120,022.54",
SURFACE TRANSPORT CORP,MEDIAEDGE,Radio TV Press Poster Cinema Airtime And Space,1002\5109739401,08-Apr-20,"118,079.46",
LONDON BUS SERVICES LTD,TRUEFORM ENGINEERING LTD,Purchase of Bus Shelters,1006\5109739775,01-Apr-20,"117,801.39",
LONDON UNDERGROUND LTD,ENGIE SERVICES LTD,Equipment Repairs & Maintenance,1005\5109724711,01-Apr-20,"117,387.46",
LONDON UNDERGROUND LTD,SIEMENS,Signalling Systems,1005\5109740131,22-Apr-20,"117,369.00",
LONDON UNDERGROUND LTD,PCUBED LTD,Civil Engineering Construction Works,1005\5109744862,27-Apr-20,"116,536.00",
TRANSPORT TRADING LTD,SENATOR INTERNATIONAL LTD,Furniture & Equipment,1004\5109728552,08-Apr-20,"116,000.00",
SURFACE TRANSPORT CORP,CSTS LTD,Traffic Signals,1002\5109740207,08-Apr-20,"115,947.37",
LONDON UNDERGROUND LTD,ENGIE SERVICES LTD,Equipment Repairs & Maintenance,1005\5109724704,01-Apr-20,"115,592.93",
TFL CORPORATE,ATOS IT SERVICES UK LTD,Manage IT Services,1001\5109744748,27-Apr-20,"114,350.57",
RAIL FOR LONDON LIMITED,NETWORK RAIL,Civil Engineering Construction Works,1020\5109726176,08-Apr-20,"113,992.75",
SURFACE TRANSPORT CORP,INTEROUTE NETWORK LTD ,Telephony Fixed,1002\5109727933,08-Apr-20,"113,762.29",
VICTORIA COACH STATN LTD,MET SYSTEMS LTD,Software Maintenance,1008\5109747426,30-Apr-20,"113,607.15",
LONDON UNDERGROUND LTD,KNORR-BREMSE RAIL LTD ,Signalling Systems,1005\5109741153,22-Apr-20,"113,371.64",
LONDON UNDERGROUND LTD,NETWORK RAIL,National Rail Contribution,1005\5109748351,20-Apr-20,"112,907.51",
LONDON UNDERGROUND LTD,ALLFORD HALL MONAGHAN MORRIS LTD,Planning & Development Consultancy,1005\5109737761,15-Apr-20,"111,500.00",
LONDON UNDERGROUND LTD,ALLFORD HALL MONAGHAN MORRIS LTD,Planning & Development Consultancy,1005\5109737839,08-Apr-20,"111,500.00",
LONDON UNDERGROUND LTD,KONE PLC,Escalators,1005\5109739330,01-Apr-20,"110,310.71",
LONDON UNDERGROUND LTD,OTIS LIMITED,Escalators,1005\5109725536,08-Apr-20,"110,264.97",
LONDON UNDERGROUND LTD,NETWORK RAIL,National Rail Contribution,1005\5109748354,29-Apr-20,"110,263.06",
LONDON BUS SERVICES LTD,LONDON CENTRAL BUS COMPANY LTD ,Bus Contract Payments,1006\1900044114,17-Apr-20,"110,002.32",
TRANSPORT TRADING LTD,CITY OF WESTMINSTER,Rates,1004\1901672221,15-Apr-20,"109,592.00",
SURFACE TRANSPORT CORP,CAPITA BUSINESS SERVICES LTD,Management & Support Consultancy,1002\5109724917,08-Apr-20,"109,081.46",
SURFACE TRANSPORT CORP,LONDON BOROUGH OF BEXLEY,Borough Services,1002\1900064140,08-Apr-20,"109,011.59",
LONDON BUS SERVICES LTD,METROLINE TRAVEL LTD,Bus Contract Payments,1006\1900044115,17-Apr-20,"108,950.76",
LONDON UNDERGROUND LTD,QUINN INFRASTRUCTURE SERVICES LTD,Equipment Repairs & Maintenance,1005\5109750816,27-Apr-20,"108,764.93",
LONDON UNDERGROUND LTD,ATKINS LIMITED,Planning & Development Consultancy,1005\5109740534,15-Apr-20,"108,500.00",
LUL NOMINEE SSL LIMITED,DUCTCLEAN (UK) LTD T/A DCUK FM,Building Maintenance & Repairs,1031\5109745686,14-Apr-20,"108,198.92",
TRANSPORT TRADING LTD,GRAYSONS HOSPITALITY LIMITED,Caterers Service Charges,1004\5109741125,06-Apr-20,"108,161.83",
TRANSPORT TRADING LTD,GEMALTO UK LIMITED,Ticket & Pass Production,1004\5109736522,06-Apr-20,"108,000.00",
LONDON UNDERGROUND LTD,BRYEN & LANGLEY LTD,Building Maintenance & Repairs,1005\5109740542,03-Apr-20,"107,716.06",
LONDON UNDERGROUND LTD,BRYEN & LANGLEY LTD,Building Maintenance & Repairs,1005\5109740532,03-Apr-20,"107,538.06",
RAIL FOR LONDON LIMITED,NETWORK RAIL,Civil Engineering Construction Works,1020\5109721314,08-Apr-20,"107,102.90",
RAIL FOR LONDON LIMITED,NETWORK RAIL,Civil Engineering Construction Works,1020\5109741507,27-Apr-20,"107,102.90",
SURFACE TRANSPORT CORP,CITY OF WESTMINSTER,Borough Services,1002\1900064510,20-Apr-20,"107,000.00",
TRANSPORT TRADING LTD,LONDON BOROUGH OF CROYDON,Rates,1004\1901671545,15-Apr-20,"106,400.00",
SURFACE TRANSPORT CORP,SIEMENS,Traffic Signals,1002\5109732579,06-Apr-20,"106,240.86",
LONDON UNDERGROUND LTD,CITYLINK TELECOMMUNICATIONS LTD,Connect PFI Service Costs,1005\5109739843,02-Apr-20,"106,012.00",
RAIL FOR LONDON LIMITED,LEND LEASE CONSULTING (EMEA) LTD,Professional Engineering Services,1020\5109745706,17-Apr-20,"104,971.00",
LONDON RIVER SERVICES LTD,RINGWAY JACOBS LIMITED,Maintenance of Plant & Equipment,1007\5109754627,29-Apr-20,"104,926.05",
SURFACE TRANSPORT CORP,ATKINS LIMITED,Contracted Services - Tunnels,1002\5109744335,29-Apr-20,"104,556.34",
TFL CORPORATE,CORPORATE DOCUMENT SERVICES LTD,Agency Fees Paid To Marketing Agencies,1001\5109736365,02-Apr-20,"104,307.76",
TFL CORPORATE,CAPITA BUSINESS SERVICES LTD,Maintenance of Telecommunications Equipment,1001\5109736332,27-Apr-20,"104,163.94",
DOCKLANDS LIGHT RAILWAY,UK POWER NETWORKS LTD,Civil Engineering Construction Works,1012\5109738066,15-Apr-20,"103,640.21",
LONDON UNDERGROUND LTD,ALSTOM NL SERVICE PROVISION LTD,Fleet Tsssa Contract,1005\5109741439,27-Apr-20,"103,057.30",
SURFACE TRANSPORT CORP,LONDON BOROUGH OF ISLINGTON,Borough Services,1002\1900064341,08-Apr-20,"102,500.00",
LONDON BUS SERVICES LTD,TELENT TECHNOLOGY SERVICES LTD,Cameras,1006\5109739580,27-Apr-20,"100,775.78",
SURFACE TRANSPORT CORP,TELENT TECHNOLOGY SERVICES LTD,Traffic Signals,1002\5109740675,08-Apr-20,"100,726.95",
TRANSPORT TRADING LTD,GLOBAL OUTDOOR MEDIA LIMITED,Purchase of Associates Loan Notes (Activity),1004\5109747261,22-Apr-20,"100,451.82",
LONDON UNDERGROUND LTD,CORONA ENERGY RETAIL 4 LTD,Gas,1005\1900213706,15-Apr-20,"100,419.11",
TFL CORPORATE,MORSON PROJECTS LIMITED,Management & Support Consultancy,1001\5109745018,14-Apr-20,"100,029.58",
TFL CORPORATE,IPSOS MORI,Customer Research And Counts,1001\5109730994,15-Apr-20,"100,000.00",
SURFACE TRANSPORT CORP,CITY OF WESTMINSTER,Borough Services,1002\1900064688,20-Apr-20,"100,000.00",
LONDON UNDERGROUND LTD,KONE PLC,Escalators,1005\5109751449,27-Apr-20,"99,514.21",
SURFACE TRANSPORT CORP,LONDON BOROUGH OF SOUTHWARK,Contracted Services - Roads,1002\5109729832,01-Apr-20,"99,492.68",
TFL CORPORATE,DELOITTE,Planning & Development Consultancy,1001\5109748551,20-Apr-20,"98,900.00",
TRANSPORT TRADING LTD,NOVACROFT DIRECT LTD,Ticket & Pass Production,1004\5109744564,17-Apr-20,"98,127.59",
LONDON UNDERGROUND LTD,QUINN INFRASTRUCTURE SERVICES LTD,Property Management Fees,1005\5109744016,27-Apr-20,"97,869.70",
TFL CORPORATE,CAPITA BUSINESS SERVICES LTD,Maintenance of Telecommunications Equipment,1001\5109732906,20-Apr-20,"97,455.00",
LONDON UNDERGROUND LTD,KONE PLC,Lift Maintenance,1005\5109744561,29-Apr-20,"96,616.66",
RAIL FOR LONDON LIMITED,SIEMENS,Management & Support Consultancy,1020\5109741813,27-Apr-20,"96,606.00",
RAIL FOR LONDON LIMITED,XANTA LIMITED,Professional Engineering Services,1020\5109739947,07-Apr-20,"96,589.84",
TFL CORPORATE,CAPITA BUSINESS SERVICES LTD,Manage IT Services,1001\5109736348,20-Apr-20,"95,829.10",
RAIL FOR LONDON LIMITED,LEND LEASE CONSULTING (EMEA) LTD,Professional Engineering Services,1020\5109740009,02-Apr-20,"95,699.00",
LONDON UNDERGROUND LTD,CLEAR ROUTE UTILITY SERVICES LTD,Electrical Equipment Maintenance,1005\5109745177,16-Apr-20,"95,198.77",
RAIL FOR LONDON LIMITED,UK POWER NETWORKS LTD,Professional Engineering Services,1020\5109744700,22-Apr-20,"95,050.74",
TFL CORPORATE,COMPUTACENTER PLC,Software Maintenance,1001\5109750540,27-Apr-20,"94,458.80",
TFL CORPORATE,CAPITA BUSINESS SERVICES LTD,Maintenance of Telecommunications Equipment,1001\5109752231,27-Apr-20,"94,094.48",
TFL CORPORATE,2CV RESEARCH,Research For Marketing Campaigns And Activities,1001\5109732627,08-Apr-20,"93,940.00",
SURFACE TRANSPORT CORP,SIEMENS,Cameras,1002\5109741049,29-Apr-20,"93,750.00",
TFL CORPORATE,COMPUTACENTER PLC,Computer Hardware,1001\5109722975,01-Apr-20,"93,744.00",
LONDON UNDERGROUND LTD,KONE PLC,Lift Maintenance,1005\5109744559,27-Apr-20,"93,285.31",
RAIL FOR LONDON LIMITED,MOTT MACDONALD LIMITED,Professional Engineering Services,1020\5109739331,06-Apr-20,"92,999.40",
LONDON UNDERGROUND LTD,WILLIAM COOK RAIL LTD,Equipment Repairs & Maintenance,1005\5109736935,15-Apr-20,"92,859.00",
LONDON BUS SERVICES LTD,TRUEFORM ENGINEERING LTD,Purchase of Bus Shelters,1006\5109754458,28-Apr-20,"92,850.36",
LONDON BUS SERVICES LTD,TRAPEZE PTI LTD,Maintenance of Plant & Equipment,1006\5109729272,17-Apr-20,"92,016.00",
TFL CORPORATE,LENDLEASE JACOBS JOINT VENTURE,Management & Support Consultancy,1001\5109743998,27-Apr-20,"91,828.73",
SURFACE TRANSPORT CORP,DELOITTE,Professional Engineering Services,1002\5109723149,06-Apr-20,"91,500.00",
LONDON UNDERGROUND LTD,DELATIM LIMITED,MR Construction Costs,1005\5109752420,27-Apr-20,"91,418.49",
LONDON UNDERGROUND LTD,TOWER SUPPLIES,Other Spares stock issues,1005\5109737459,09-Apr-20,"91,107.96",
LONDON UNDERGROUND LTD,Z-TECH CONTROL SYSTEMS LTD,MR Construction Costs,1005\5109737930,09-Apr-20,"90,810.55",
LUL NOMINEE SSL LIMITED,CLANCY DOCWRA LTD,Retentions Control Account > 1Year,1031\5109748500,22-Apr-20,"90,550.37",
LUL NOMINEE SSL LIMITED,SIEMENS,Track General Maintenance,1031\5109730876,15-Apr-20,"90,247.58",
LUL NOMINEE SSL LIMITED,DUCTCLEAN (UK) LTD T/A DCUK FM,Track General Maintenance,1031\5109740495,06-Apr-20,"90,204.25",
SURFACE TRANSPORT CORP,RINGWAY JACOBS LIMITED,Maintenance of Plant & Equipment,1002\5109754508,29-Apr-20,"89,815.67",
TFL CORPORATE,LINKS SIGNS LTD,COVID 19 planning,1001\5109752576,29-Apr-20,"89,738.75",
RAIL FOR LONDON LIMITED,GENERAL IMPIANTI SRL A SOCIO UNICO,Plant & Equipment Purchases,1020\5109747266,15-Apr-20,"89,727.37",
LONDON UNDERGROUND LTD,ENGIE SERVICES LTD,Equipment Repairs & Maintenance,1005\5109745668,29-Apr-20,"89,600.54",
LONDON UNDERGROUND LTD,TPS LTD,Signalling Systems,1005\5109753172,29-Apr-20,"88,978.00",
TFL CORPORATE,SIGNALLING INSTALLATION & MAINT,Management & Support Consultancy,1001\5109744421,29-Apr-20,"88,440.00",
TFL CORPORATE,CAPITA BUSINESS SERVICES LTD,Maintenance of Telecommunications Equipment,1001\5109730939,15-Apr-20,"88,240.68",
LONDON UNDERGROUND LTD,NETWORK RAIL,National Rail Variable Track Access Charges,1005\5109717662,08-Apr-20,"88,209.55",
TFL CORPORATE,CAPITA BUSINESS SERVICES LTD,Maintenance of Telecommunications Equipment,1001\5109730989,15-Apr-20,"88,023.87",
LONDON BUS SERVICES LTD,TRUEFORM ENGINEERING LTD,Purchase of Bus Shelters,1006\5109744354,08-Apr-20,"88,007.17",
TRANSPORT TRADING LTD,BNP PARIBAS REAL ESTATE ADV & PROP,Management & Support Consultancy,1004\5109741015,27-Apr-20,"87,692.30",
SURFACE TRANSPORT CORP,CVU JOINT VENTURE,Maintenance of Plant & Equipment,1002\5109754631,29-Apr-20,"86,864.18",
LONDON UNDERGROUND LTD,COVENT GARDEN MARKET AUTHORITY,Purchase of Land & Buildings,1005\1900213857,29-Apr-20,"86,666.67",
LUL NOMINEE BCV LIMITED,LPA EXCIL ELECTRONICS,Maintenance Materials,1033\5109740576,03-Apr-20,"86,027.01",
LONDON UNDERGROUND LTD,GEOFFREY OSBORNE LIMITED,MR Construction Costs,1005\5109747394,20-Apr-20,"85,921.05",
LONDON UNDERGROUND LTD,DAISY COMMUNICATIONS LTD,Telephony Fixed,1005\5109740742,22-Apr-20,"85,206.76",
TFL CORPORATE,MEDIAEDGE,Radio TV Press Poster Cinema Airtime And Space,1001\5109709703,01-Apr-20,"84,659.58",
LONDON UNDERGROUND LTD,SKANSKA CONTRUCTIONS UK LTD,Civil Engineering Construction Works,1005\5109740734,03-Apr-20,"84,273.57",
SURFACE TRANSPORT CORP,LONDON BOROUGH OF CAMDEN,Section 159 Payments,1002\1900064834,20-Apr-20,"84,000.00",
TFL CORPORATE,GARDINER & THEOBALD LLP,Management & Support Consultancy,1001\5109742553,29-Apr-20,"83,950.00",
SURFACE TRANSPORT CORP,CITY OF WESTMINSTER,Borough Services,1002\1900064513,20-Apr-20,"83,641.42",
LONDON UNDERGROUND LTD,SCHWEERBAU GMBH & CO.KG *PAID BACS*,Track General Maintenance,1005\5109723185,06-Apr-20,"83,339.11",
TFL CORPORATE,COMPUTACENTER PLC,Manage IT Services,1001\5109741927,27-Apr-20,"82,915.26",
RAIL FOR LONDON LIMITED,LEND LEASE CONSULTING (EMEA) LTD,Professional Engineering Services,1020\5109733277,01-Apr-20,"82,745.00",
LONDON UNDERGROUND LTD,PERCY LANE PRODUCTS,Maintenance Materials,1005\5109737117,28-Apr-20,"82,450.62",
LONDON UNDERGROUND LTD,PERCY LANE PRODUCTS,Maintenance Materials,1005\5109737866,17-Apr-20,"82,450.62",
LONDON UNDERGROUND LTD,LENDLEASE JACOBS JOINT VENTURE,MR Construction Costs,1005\5109737551,27-Apr-20,"81,437.50",
LONDON UNDERGROUND LTD,LYNCH I.E.I. LIMITED,MR Construction Costs,1005\5109748368,22-Apr-20,"80,016.88",
TFL CORPORATE,LONDON BOROUGH OF HOUNSLOW,Planning & Development Consultancy,1001\5109728142,08-Apr-20,"80,000.00",
LONDON BUS SERVICES LTD,ABELLIO LONDON LTD,Maintenance of Bus Stations LBL,1006\1900044070,29-Apr-20,"79,930.46",
LUL NOMINEE BCV LIMITED,MORSON HUMAN RESOURCES LTD,Track General Maintenance,1033\5109747172,15-Apr-20,"79,860.80",
LONDON UNDERGROUND LTD,KPMG,Planning & Development Consultancy,1005\5109740273,22-Apr-20,"79,837.50",
TFL CORPORATE,KELWAY (UK),Software Maintenance,1001\5109739853,20-Apr-20,"79,662.17",
SURFACE TRANSPORT CORP,SAAB AB SUPPORT AND SERVICES,Computer Software,1002\5109723646,03-Apr-20,"79,590.82",
LONDON UNDERGROUND LTD,SAAB AB SUPPORT AND SERVICES,Software Maintenance,1005\5109739784,24-Apr-20,"79,590.82",
LONDON BUS SERVICES LTD,ARRIVA LONDON NORTH LTD,Vehicle Repairs & Maintenance,1006\5109750837,27-Apr-20,"79,488.00",
SURFACE TRANSPORT CORP,CAPITA BUSINESS SERVICES LTD,Management & Support Consultancy,1002\5109724931,08-Apr-20,"79,414.67",
TFL CORPORATE,MOTT MACDONALD LIMITED,Planning & Development Consultancy,1001\5109750792,29-Apr-20,"79,394.43",
LONDON UNDERGROUND LTD,EDF ENERGY,Electricity,1005\1900213579,01-Apr-20,"79,317.48",
LUL NOMINEE SSL LIMITED,CPC PROJECT SERVICES LLP,Civil Engineering Construction Works,1031\5109741874,14-Apr-20,"79,268.16",
RAIL FOR LONDON LIMITED,NETWORK RAIL,Civil Engineering Construction Works,1020\5109726165,08-Apr-20,"79,145.20",
LONDON UNDERGROUND LTD,HERBERT SMITH LLP,Legal Fees,1005\5109752288,27-Apr-20,"79,100.49",
RAIL FOR LONDON LIMITED,ENERGY AND SYSTEM TECHNICAL LTD,Professional Engineering Services,1020\5109740616,06-Apr-20,"78,738.00",
LONDON UNDERGROUND LTD,KN NETWORK SERVICES LTD,MR Construction Costs,1005\5109752811,29-Apr-20,"78,659.73",
LONDON UNDERGROUND LTD,"SISCOG - SISTEMAS COGNITIVOS, SA",Computer Software,1005\5109739738,24-Apr-20,"78,535.00",
RAIL FOR LONDON LIMITED,NETWORK RAIL,Civil Engineering Construction Works,1020\5109726172,08-Apr-20,"78,125.92",
LONDON BUS SERVICES LTD,METROLINE TRAVEL LTD,Vehicle Repairs & Maintenance,1006\5109722928,06-Apr-20,"78,015.00",
LONDON BUS SERVICES LTD,METROLINE TRAVEL LTD,Vehicle Repairs & Maintenance,1006\5109732043,15-Apr-20,"78,015.00",
LONDON BUS SERVICES LTD,METROLINE TRAVEL LTD,Vehicle Repairs & Maintenance,1006\5109732445,15-Apr-20,"78,015.00",
LONDON BUS SERVICES LTD,METROLINE TRAVEL LTD,Vehicle Repairs & Maintenance,1006\5109732704,15-Apr-20,"78,015.00",
TFL CORPORATE,INSIGHT DIRECT UK LIMITED,Software Maintenance,1001\5109732435,15-Apr-20,"78,000.00",
LUL NOMINEE SSL LIMITED,LENDLEASE JACOBS JOINT VENTURE,MR Construction Costs,1031\5109738327,06-Apr-20,"77,827.10",
LONDON UNDERGROUND LTD,ENGIE SERVICES LTD,Equipment Repairs & Maintenance,1005\5109745666,29-Apr-20,"77,596.50",
LONDON UNDERGROUND LTD,NCP SERVICES LTD,Costs of Disp Inv Prop - TTL Planning,1005\5109739987,22-Apr-20,"77,489.97",
LONDON BUS SERVICES LTD,ABELLIO LONDON LTD,Maintenance of Bus Stations LBL,1006\1900044064,29-Apr-20,"77,401.78",
LONDON UNDERGROUND LTD,SKANSKA CONTRUCTIONS UK LTD,Civil Engineering Construction Works,1005\5109752793,27-Apr-20,"77,090.79",
TFL CORPORATE,LENDLEASE JACOBS JOINT VENTURE,Management & Support Consultancy,1001\5109730798,15-Apr-20,"77,086.00",
LONDON UNDERGROUND LTD,RENOLD GEARS,Escalators,1005\5109747539,20-Apr-20,"77,025.00",
TRANSPORT TRADING LTD,GLOBAL OUTDOOR MEDIA LIMITED,Purchase of Associates Loan Notes (Activity),1004\5109747264,22-Apr-20,"76,928.60",
RAIL FOR LONDON LIMITED,VOLKERRAIL SPECIALIST BUSINESSES LTD,Management & Support Consultancy,1020\5109744299,07-Apr-20,"76,235.75",
RAIL FOR LONDON LIMITED,ESG RAIL,Management & Support Consultancy,1020\5109742283,07-Apr-20,"75,836.00",
VICTORIA COACH STATN LTD,MET SYSTEMS LTD,Software Maintenance,1008\5109739604,07-Apr-20,"75,738.10",
VICTORIA COACH STATN LTD,MET SYSTEMS LTD,Software Maintenance,1008\5109745775,22-Apr-20,"75,738.10",
LUL NOMINEE BCV LIMITED,MORSON HUMAN RESOURCES LTD,Track General Maintenance,1033\5109740000,02-Apr-20,"75,607.20",
TRANSPORT TRADING LTD,LONDON BOROUGH OF CAMDEN,Rates,1004\1901671687,15-Apr-20,"75,544.00",
SURFACE TRANSPORT CORP,LONDON BOROUGH OF RICHMOND UPON THAMES,Borough Services,1002\1900064111,06-Apr-20,"75,000.00",
LONDON UNDERGROUND LTD,SKANSKA CONTRUCTIONS UK LTD,Civil Engineering Construction Works,1005\5109740751,03-Apr-20,"74,645.69",
DIAL A RIDE,EALING COMMUNITY TRANSPORT LTD,Operator Costs,1010\5109747147,27-Apr-20,"74,581.05",
LONDON UNDERGROUND LTD,NETWORK RAIL,Traction Current,1005\5109717098,08-Apr-20,"74,323.67",
TFL CORPORATE,SENTRUM IV LIMITED,Manage IT Services,1001\5109752840,28-Apr-20,"74,138.18",
LONDON UNDERGROUND LTD,OTIS LIMITED,Lift Maintenance,1005\5109744532,27-Apr-20,"74,023.82",
TFL CORPORATE,BROWSE BION LTD,MR Construction Costs,1001\5109736325,14-Apr-20,"73,855.15",
TFL CORPORATE,PROBRAND LTD,Software Maintenance,1001\5109741643,27-Apr-20,"73,829.65",
LONDON UNDERGROUND LTD,JNG CONSTRUCTION & ENGINEERING,MR Construction Costs,1005\5109742526,07-Apr-20,"73,654.87",
LONDON UNDERGROUND LTD,DENTONS UKMEA LLP,Legal Fees,1005\5109740525,03-Apr-20,"73,363.00",
LONDON BUS SERVICES LTD,TRAPEZE PTI LTD,Maintenance of Plant & Equipment,1006\5109729271,17-Apr-20,"73,224.00",
LONDON UNDERGROUND LTD,MODULAR DISTRIBUTION SYSTEMS,Lifts & Escalators stock issues,1005\5109744257,08-Apr-20,"72,925.20",
LONDON BUS SERVICES LTD,EAST LONDON BUS & COACH COMPANY LTD,Bus Contract Payments,1006\1900044113,17-Apr-20,"72,605.70",
LUL NOMINEE SSL LIMITED,DUCTCLEAN (UK) LTD T/A DCUK FM,Building Maintenance & Repairs,1031\5109745684,14-Apr-20,"72,453.65",
LONDON UNDERGROUND LTD,O2 UK LTD,Computer Hardware,1005\5109719797,01-Apr-20,"72,185.58",
LONDON UNDERGROUND LTD,TAYLOR WOODROW CONS BAM NUTTAL LTD,MR Construction Costs,1005\5109744557,08-Apr-20,"71,657.25",
TFL CORPORATE,GARDINER & THEOBALD LLP,Management & Support Consultancy,1001\5109729941,15-Apr-20,"71,381.75",
LONDON UNDERGROUND LTD,4C ASSOCIATES LIMITED,Management & Support Consultancy,1005\5109742419,14-Apr-20,"71,304.00",
TRANSPORT TRADING LTD,HAYS ACCOUNTANCY PERSONNEL,Agency Staff,1004\5109734465,27-Apr-20,"71,262.25",
LONDON UNDERGROUND LTD,VVB ENGINEERING (UK) LIMITED,MR Construction Costs,1005\5109740944,15-Apr-20,"71,202.32",
LONDON BUS SERVICES LTD,EDF ENERGY,Electricity,1006\5109740533,06-Apr-20,"71,154.06",
LUL NOMINEE SSL LIMITED,DUCTCLEAN (UK) LTD T/A DCUK FM,Building Maintenance & Repairs,1031\5109740538,06-Apr-20,"70,921.99",
LONDON UNDERGROUND LTD,SANTON SWITCHGEAR LTD,Equipment Repairs & Maintenance,1005\5109736945,06-Apr-20,"70,862.28",
SURFACE TRANSPORT CORP,LONDON BOROUGH OF SOUTHWARK,Contracted Services - Roads,1002\5109739446,03-Apr-20,"70,768.48",
LONDON UNDERGROUND LTD,CENTRE OF ADVERTISE EU LTD,Track General Maintenance,1005\5109742086,07-Apr-20,"70,159.80",
LUL NOMINEE SSL LIMITED,CPC PROJECT SERVICES LLP,Civil Engineering Construction Works,1031\5109743926,14-Apr-20,"69,646.40",
TFL CORPORATE,AXON SOLUTIONS LTD,Software Maintenance,1001\5109719905,01-Apr-20,"69,572.30",
LONDON BUS SERVICES LTD,TRUEFORM ENGINEERING LTD,Purchase of Bus Shelters,1006\5109741946,06-Apr-20,"69,447.06",
LUL NOMINEE SSL LIMITED,MORSON INTERNATIONAL,Maintenance Materials,1031\5109739960,15-Apr-20,"69,406.15",
LONDON UNDERGROUND LTD,KN NETWORK SERVICES LTD,MR Construction Costs,1005\5109730904,01-Apr-20,"69,329.69",
DOCKLANDS LIGHT RAILWAY,CLESHAR CONTRACT SERVICES LTD,Civil Engineering Construction Works,1012\5109745796,22-Apr-20,"68,378.78",
SURFACE TRANSPORT CORP,PRICEWATERHOUSECOOPERS LLP,Management & Support Consultancy,1002\5109739416,27-Apr-20,"67,925.00",
SURFACE TRANSPORT CORP,WSP UK LTD,Contracted Services - Roads,1002\5109729842,08-Apr-20,"67,815.44",
LONDON BUS SERVICES LTD,ABELLIO LONDON LTD,Maintenance of Bus Stations LBL,1006\1900044065,29-Apr-20,"67,718.70",
TFL CORPORATE,SENTRUM IV LIMITED,Manage IT Services,1001\5109739830,07-Apr-20,"67,399.95",
DOCKLANDS LIGHT RAILWAY,REYNOLDS LOCKE LTD,Civil Engineering Construction Works,1012\5109750852,22-Apr-20,"67,275.83",
TRANSPORT TRADING LTD,HAYS ACCOUNTANCY PERSONNEL,Agency Staff,1004\5109721877,06-Apr-20,"67,153.18",
DOCKLANDS LIGHT RAILWAY,POD-TRAK LTD,Civil Engineering Construction Works,1012\5109752456,27-Apr-20,"66,897.37",
TRANSPORT TRADING LTD,BNP PARIBAS REAL ESTATE ADV & PROP,Property Management Fees,1004\5109724626,08-Apr-20,"66,666.67",
TRANSPORT TRADING LTD,BNP PARIBAS REAL ESTATE ADV & PROP,Property Management Fees,1004\5109741820,27-Apr-20,"66,666.67",
TFL CORPORATE,AECOM LTD,Management & Support Consultancy,1001\5109736148,27-Apr-20,"66,622.50",
LONDON UNDERGROUND LTD,BRYEN & LANGLEY LTD,Building Maintenance & Repairs,1005\5109754270,29-Apr-20,"66,486.58",
SURFACE TRANSPORT CORP,TELENT TECHNOLOGY SERVICES LTD,Maintenance of Plant & Equipment,1002\5109739475,20-Apr-20,"66,486.00",
LONDON UNDERGROUND LTD,AECOM LTD,Planning & Development Consultancy,1005\5109726093,01-Apr-20,"66,363.00",
TRANSPORT TRADING LTD,HAYS ACCOUNTANCY PERSONNEL,Agency Staff,1004\5109726929,08-Apr-20,"66,176.63",
TRANSPORT TRADING LTD,CORONA ENERGY RETAIL 4 LTD,Gas,1004\1901671520,27-Apr-20,"66,051.63",
LONDON UNDERGROUND LTD,LENDLEASE JACOBS JOINT VENTURE,MR Construction Costs,1005\5109737550,27-Apr-20,"65,944.38",
LONDON BUS SERVICES LTD,TRUEFORM ENGINEERING LTD,Purchase of Bus Shelters,1006\5109745231,09-Apr-20,"65,900.87",
TFL CORPORATE,COMPUTACENTER PLC,Computer Hardware,1001\5109744059,29-Apr-20,"65,888.50",
SURFACE TRANSPORT CORP,SIEMENS,Road Maintenance,1002\5109744082,08-Apr-20,"65,790.93",
TRANSPORT TRADING LTD,G4S CASH SOLUTIONS (UK) LTD,Cash Handling & Processing,1004\5109745595,27-Apr-20,"65,751.88",
TFL CORPORATE,2CV RESEARCH,Customer Research And Counts,1001\5109730019,15-Apr-20,"65,695.00",
TFL CORPORATE,OVE ARUP & PARTNERS LTD,Planning & Development Consultancy,1001\5109742438,15-Apr-20,"65,594.37",
LONDON UNDERGROUND LTD,SIEMENS,Signalling Systems,1005\5109741532,27-Apr-20,"65,497.81",
LUL NOMINEE SSL LIMITED,DUCTCLEAN (UK) LTD T/A DCUK FM,Track General Maintenance,1031\5109740753,06-Apr-20,"65,269.88",
VICTORIA COACH STATN LTD,GBM SERVICES LTD,Office Cleaning,1008\5109749237,27-Apr-20,"65,249.19",
TRANSPORT TRADING LTD,HAYS ACCOUNTANCY PERSONNEL,Agency Staff,1004\5109731553,20-Apr-20,"64,957.02",
LUL NOMINEE SSL LIMITED,CPC PROJECT SERVICES LLP,Civil Engineering Construction Works,1031\5109741605,14-Apr-20,"64,779.83",
TFL CORPORATE,STEER,Planning & Development Consultancy,1001\5109728466,08-Apr-20,"64,032.30",
TRANSPORT TRADING LTD,GRAYSONS HOSPITALITY LIMITED,Caterers Service Charges,1004\5109744099,08-Apr-20,"63,993.89",
TFL CORPORATE,DELOITTE,Management & Support Consultancy,1001\5109732625,15-Apr-20,"63,550.00",
LONDON UNDERGROUND LTD,ATKINS LIMITED,Planning & Development Consultancy,1005\5109737518,15-Apr-20,"63,500.00",
SURFACE TRANSPORT CORP,T-KARTOR SWEDEN AB,Design & Production Of Maps & Timetable Publicity,1002\5109730444,17-Apr-20,"63,425.00",
LONDON UNDERGROUND LTD,RJC (UK) LTD,Escalators,1005\5109733507,20-Apr-20,"63,288.00",
LONDON UNDERGROUND LTD,CASTLE WATER LIMITED,Water,1005\1900213757,29-Apr-20,"63,128.62",
SURFACE TRANSPORT CORP,ROYAL BOROUGH OF KINGSTON UPON THAMES,Borough Services,1002\1900064184,06-Apr-20,"63,060.22",
SURFACE TRANSPORT CORP,CSTS LTD,Traffic Signals,1002\5109732249,06-Apr-20,"63,050.60",
TFL CORPORATE,GARDINER & THEOBALD LLP,Planning & Development Consultancy,1001\5109719825,01-Apr-20,"63,034.00",
LONDON UNDERGROUND LTD,SCHINDLER LTD,Lift Maintenance,1005\5109752432,27-Apr-20,"62,946.95",
SURFACE TRANSPORT CORP,REDSPEED INTERNATIONAL  LTD,Maintenance of Plant & Equipment,1002\5109740694,08-Apr-20,"62,734.83",
TFL CORPORATE,OVE ARUP & PARTNERS LTD,Planning & Development Consultancy,1001\5109730421,15-Apr-20,"62,250.00",
LUL NOMINEE SSL LIMITED,CLESHAR CONTRACT SERVICES LTD,Track General Maintenance,1031\5109748044,20-Apr-20,"62,168.00",
TRANSPORT TRADING LTD,G4S CASH SOLUTIONS (UK) LTD,Cash Handling & Processing,1004\5109745639,27-Apr-20,"62,165.55",
DOCKLANDS LIGHT RAILWAY,INSIGHT DIRECT UK LIMITED,Software Maintenance,1012\5109744313,27-Apr-20,"62,000.00",
LONDON UNDERGROUND LTD,BALFOUR BEATTY RAIL LTD,Retentions Control Account > 1Year,1005\5109747157,22-Apr-20,"61,989.77",
TFL CORPORATE,SUSTRANS LTD,Agency Fees Paid To Marketing Agencies,1001\5109725551,08-Apr-20,"61,872.78",
LONDON UNDERGROUND LTD,MCGINLEY SUPPORT SERVICES LTD,Track General Maintenance,1005\5109749321,21-Apr-20,"61,757.80",
LUL NOMINEE SSL LIMITED,CPC PROJECT SERVICES LLP,Civil Engineering Construction Works,1031\5109743929,14-Apr-20,"61,535.85",
SURFACE TRANSPORT CORP,TELENT TECHNOLOGY SERVICES LTD,Contracted Services - Roads,1002\5109747404,22-Apr-20,"61,411.18",
LONDON BUS SERVICES LTD,OFCOM,Telephony Fixed,1006\5109742148,08-Apr-20,"61,335.00",
TFL CORPORATE,JONES LANG LASALLE,Planning & Development Consultancy,1001\5109733665,01-Apr-20,"60,757.50",
RAIL FOR LONDON LIMITED,NETWORK RAIL,Civil Engineering Construction Works,1020\5109724553,08-Apr-20,"60,624.24",
RAIL FOR LONDON LIMITED,CLANCY DOCWRA LTD,Management & Support Consultancy,1020\5109740768,03-Apr-20,"60,342.24",
LONDON UNDERGROUND LTD,SKANSKA CONTRUCTIONS UK LTD,Civil Engineering Construction Works,1005\5109752808,27-Apr-20,"60,275.33",
TRANSPORT TRADING LTD,CITY OF LONDON ,Rates,1004\1901671746,15-Apr-20,"60,256.00",
SURFACE TRANSPORT CORP,SIEMENS,Traffic Signals,1002\5109745308,15-Apr-20,"60,192.26",
TFL CORPORATE,CH2M HILL UNITED KINGDOM,Planning & Development Consultancy,1001\5109740063,22-Apr-20,"60,000.00",
LONDON BUS SERVICES LTD,TOWER TRANSIT OPERATIONS LTD,Bus Contract Payments,1006\1900044116,17-Apr-20,"59,893.20",
RAIL FOR LONDON LIMITED,ASHURST LLP,Legal Fees,1020\5109744984,08-Apr-20,"59,788.90",
TFL CORPORATE, EXCELERATED S2P,Software Maintenance,1001\5109730417,15-Apr-20,"59,737.50",
LONDON UNDERGROUND LTD,TELENT TECHNOLOGY SERVICES LTD,Cameras,1005\5109740620,27-Apr-20,"59,708.00",
TFL CORPORATE,MORSON PROJECTS LIMITED,Management & Support Consultancy,1001\5109745672,14-Apr-20,"59,585.64",
LUL NOMINEE BCV LIMITED,MARL INTERNATIONAL LTD,Maintenance Materials,1033\5109752652,27-Apr-20,"59,464.10",
LONDON UNDERGROUND LTD,TELENT TECHNOLOGY SERVICES LTD,MR Construction Costs,1005\5109754436,29-Apr-20,"59,170.50",
LUL NOMINEE SSL LIMITED,CLESHAR CONTRACT SERVICES LTD,Track General Maintenance,1031\5109748036,20-Apr-20,"59,084.07",
DOCKLANDS LIGHT RAILWAY,WORLDLINE IT SERVICES UK LTD,Civil Engineering Construction Works,1012\5109738061,27-Apr-20,"59,021.50",
SURFACE TRANSPORT CORP,CITY OF WESTMINSTER,Borough Services,1002\1900064508,20-Apr-20,"59,000.00",
LONDON BUS SERVICES LTD,TAIT EUROPE LTD,Radio Systems Equipment & Maintenance,1006\5109744279,22-Apr-20,"58,697.30",
TFL CORPORATE,CAPITA BUSINESS SERVICES LTD,Maintenance of Telecommunications Equipment,1001\5109730988,15-Apr-20,"58,505.97",
LONDON UNDERGROUND LTD,THALES RAIL SIGNALLING SOLUTIONS,Signalling Systems,1005\5109733419,15-Apr-20,"58,407.69",
LUL NOMINEE BCV LIMITED,PRECISION CHAINS LTD,Lifts & Escalators stock issues,1033\5109725615,06-Apr-20,"58,395.00",
LUL NOMINEE BCV LIMITED,L.B. FOSTER RAIL TECH LTD,Fleet,1033\5109754636,29-Apr-20,"58,338.00",
SURFACE TRANSPORT CORP,CSTS LTD,Traffic Signals,1002\5109732241,06-Apr-20,"58,269.00",
LONDON UNDERGROUND LTD,TRENITALIA C2C LTD,National Rail Long Term Charges,1005\5109723725,06-Apr-20,"58,113.34",
CYCLE HIRE SCHEME,SERCO LTD,Concession Maintenance Charge,1016\5109729186,08-Apr-20,"58,022.00",
SURFACE TRANSPORT CORP,CITY OF LONDON POLICE ,MPS Employment Costs SM,1002\5109750750,22-Apr-20,"57,932.00",
SURFACE TRANSPORT CORP,SAAB AB SUPPORT AND SERVICES,Computer Hardware,1002\5109713665,07-Apr-20,"57,898.64",
SURFACE TRANSPORT CORP,ATKINS LIMITED,Contracted Services - Highway Bridges,1002\5109750489,29-Apr-20,"57,791.09",
SURFACE TRANSPORT CORP,SIEMENS,Traffic Signals,1002\5109732666,06-Apr-20,"57,715.22",
LONDON BUS SERVICES LTD,ABELLIO LONDON LTD,Maintenance of Bus Stations LBL,1006\1900044120,29-Apr-20,"57,692.60",
SURFACE TRANSPORT CORP,HAYS ACCOUNTANCY PERSONNEL,Agency Staff,1002\5109721621,06-Apr-20,"57,492.74",
LONDON UNDERGROUND LTD,JNG CONSTRUCTION & ENGINEERING,Building Maintenance & Repairs,1005\5109753005,29-Apr-20,"57,429.79",
TFL CORPORATE,INSIGHT DIRECT UK LIMITED,Manage IT Services,1001\5109732660,08-Apr-20,"57,304.40",
LONDON UNDERGROUND LTD,BERWIN LEIGHTON PAISNER,Legal Fees,1005\5109733778,22-Apr-20,"56,996.00",
LONDON UNDERGROUND LTD,TELENT TECHNOLOGY SERVICES LTD,Cameras,1005\5109740636,03-Apr-20,"56,801.00",
LONDON UNDERGROUND LTD,METS LTD,Traction Current,1005\5109744723,15-Apr-20,"56,776.52",
LONDON UNDERGROUND LTD,ENGIE SERVICES LTD,Equipment Repairs & Maintenance,1005\5109745658,29-Apr-20,"56,578.31",
LUL NOMINEE SSL LIMITED,CLESHAR CONTRACT SERVICES LTD,Track General Maintenance,1031\5109748056,20-Apr-20,"56,490.65",
TFL CORPORATE,MDV MENTZ DATENVERARBEITUNG GMBH,Software Maintenance,1001\5109744392,30-Apr-20,"56,281.50",
SURFACE TRANSPORT CORP,SIEMENS,Road Maintenance,1002\5109745275,22-Apr-20,"56,276.00",
SURFACE TRANSPORT CORP,CITY OF WESTMINSTER,Borough Services,1002\1900064514,20-Apr-20,"56,257.76",
LONDON UNDERGROUND LTD,HOK INTERNATIONAL LIMITED,Planning & Development Consultancy,1005\5109740119,02-Apr-20,"56,250.00",
LUL NOMINEE SSL LIMITED,1STINRAIL LIMITED,Track General Maintenance,1031\5109748389,20-Apr-20,"56,210.00",
LUL NOMINEE SSL LIMITED,1STINRAIL LIMITED,Track General Maintenance,1031\5109748379,20-Apr-20,"56,097.98",
LONDON BUS SERVICES LTD,TRUEFORM ENGINEERING LTD,Purchase of Bus Shelters,1006\5109742036,06-Apr-20,"55,830.59",
RAIL FOR LONDON LIMITED,NETWORK RAIL,Civil Engineering Construction Works,1020\5109726169,08-Apr-20,"55,319.10",
DOCKLANDS LIGHT RAILWAY,RJ POWER RAIL LIMITED,Civil Engineering Construction Works,1012\5109733181,01-Apr-20,"55,174.52",
TFL CORPORATE,PROBRAND LTD,Software Maintenance,1001\5109748045,22-Apr-20,"55,097.00",
TFL CORPORATE,VCCP GROUP LLP,Production Artwork And Design For Marketing,1001\5109733634,15-Apr-20,"55,000.00",
LONDON UNDERGROUND LTD,PORT OF LONDON AUTHORITY,Civil Engineering Construction Works,1005\5109737820,08-Apr-20,"55,000.00",
LUL NOMINEE BCV LIMITED,MODULAR DISTRIBUTION SYSTEMS,Escalators,1033\5109748157,20-Apr-20,"54,887.40",
LONDON UNDERGROUND LTD,ENGIE SERVICES LTD,Equipment Repairs & Maintenance,1005\5109724718,01-Apr-20,"54,850.24",
TFL CORPORATE,GARDINER & THEOBALD LLP,Planning & Development Consultancy,1001\5109743982,29-Apr-20,"54,738.84",
SURFACE TRANSPORT CORP,EVERSHEDS,Legal Fees,1002\5109751483,27-Apr-20,"54,675.80",
LUL NOMINEE BCV LIMITED,HAYLEY GROUP PLC,Maintenance Materials,1033\5109744259,08-Apr-20,"54,565.06",
RAIL FOR LONDON LIMITED,LEND LEASE CONSULTING (EMEA) LTD,Professional Engineering Services,1020\5109752403,27-Apr-20,"54,540.26",
LONDON TRANSPORT MUSEUM,GARENNE INTERIORS LIMITED,Equipment Repairs & Maintenance,1011\5109747244,22-Apr-20,"54,489.14",
LONDON UNDERGROUND LTD,CENTRE OF ADVERTISE EU LTD,Track General Maintenance,1005\5109751097,22-Apr-20,"54,263.73",
LUL NOMINEE BCV LIMITED,MORGANITE ELECTRICAL CARBON LTD,Maintenance Materials,1033\5109740635,22-Apr-20,"54,200.00",
LONDON RIVER SERVICES LTD,RINGWAY JACOBS LIMITED,Maintenance of Plant & Equipment,1007\5109739327,15-Apr-20,"54,190.40",
SURFACE TRANSPORT CORP,EURO PARKING COLLECTION PLC,CCS DVLA Costs,1002\5109742004,07-Apr-20,"54,098.97",
TFL CORPORATE,MEDIAEDGE,Radio TV Press Poster Cinema Airtime And Space,1001\5109741618,08-Apr-20,"53,926.87",
LUL NOMINEE SSL LIMITED,CLANCY DOCWRA LTD,Retentions Control Account > 1Year,1031\5109748499,22-Apr-20,"53,914.23",
LONDON UNDERGROUND LTD,HAYLEY GROUP PLC,Signalling Systems,1005\5109742057,29-Apr-20,"53,868.00",
LUL NOMINEE SSL LIMITED,BRYANT ELECTRICAL LTD,Fleet,1031\5109744339,08-Apr-20,"53,560.00",
SURFACE TRANSPORT CORP,"SYSTEMS ENGINEERING, ASSESSMENT",PCN and Penalty Fare Processing,1002\5109720342,15-Apr-20,"53,455.93",
SURFACE TRANSPORT CORP,"SYSTEMS ENGINEERING, ASSESSMENT",PCN and Penalty Fare Processing,1002\5109740470,22-Apr-20,"53,455.93",
TRANSPORT TRADING LTD,COMPUTACENTER PLC,Computer Hardware,1004\5109728066,08-Apr-20,"53,155.00",
TRANSPORT TRADING LTD,SAVILLS COMMERCIAL LTD,Planning & Development Consultancy,1004\5109745756,27-Apr-20,"53,150.00",
LONDON UNDERGROUND LTD,ENGIE SERVICES LTD,Fire and Safety Equipment,1005\5109725665,08-Apr-20,"52,903.32",
TRANSPORT TRADING LTD,VINCI CONSTRUCTION UK LTD,Building Maintenance & Repairs,1004\5109747206,15-Apr-20,"52,813.32",
TRANSPORT TRADING LTD,ECKOH UK LIMITED,Telephony Fixed,1004\5109745315,09-Apr-20,"52,714.42",
TRANSPORT TRADING LTD,DAISY COMMUNICATIONS LTD,Telephony Fixed,1004\5109740716,22-Apr-20,"52,520.61",
LONDON BUS SERVICES LTD,TRUEFORM ENGINEERING LTD,Building Maintenance & Repairs,1006\5109745218,09-Apr-20,"52,405.40",
CYCLE HIRE SCHEME,SERCO LTD,Concession Maintenance Charge,1016\5109726333,06-Apr-20,"52,178.00",
SURFACE TRANSPORT CORP,CAPITA BUSINESS SERVICES LTD,Planning & Development Consultancy,1002\5109721112,01-Apr-20,"52,120.00",
LUL NOMINEE BCV LIMITED,CONTITECH LUFTFEDERSYSTEME GMBH,Fleet,1033\5109723749,03-Apr-20,"51,940.48",
LUL NOMINEE BCV LIMITED,CONTITECH LUFTFEDERSYSTEME GMBH,Fleet,1033\5109732243,17-Apr-20,"51,940.48",
LONDON UNDERGROUND LTD,ECON CONSTRUCTION LTD,Building Maintenance & Repairs,1005\5109739419,06-Apr-20,"51,805.95",
TFL CORPORATE,ELECTRONICS WATCH,IT Consultancy,1001\5109736313,01-May-20,"51,684.00",
LONDON UNDERGROUND LTD,WILLIAM COOK RAIL LTD,Equipment Repairs & Maintenance,1005\5109742015,22-Apr-20,"51,600.00",
LONDON UNDERGROUND LTD,WILLIAM COOK RAIL LTD,Equipment Repairs & Maintenance,1005\5109742037,22-Apr-20,"51,600.00",
SURFACE TRANSPORT CORP,SKY HIGH PLC,Traffic Signals,1002\5109740701,15-Apr-20,"51,480.00",
SURFACE TRANSPORT CORP,TELENT TECHNOLOGY SERVICES LTD,Traffic Signals,1002\5109740665,08-Apr-20,"51,468.80",
TRANSPORT TRADING LTD,2CV RESEARCH,Marketing Strategy And Consultancy,1004\5109736589,20-Apr-20,"51,460.00",
TFL CORPORATE,LONDON BOROUGH OF HOUNSLOW,Borough Services,1001\1900070189,20-Apr-20,"51,300.00",
LONDON UNDERGROUND LTD,BRYEN & LANGLEY LTD,Building Maintenance & Repairs,1005\5109754274,29-Apr-20,"51,172.57",
TRANSPORT TRADING LTD,LONDON BOROUGH OF ISLINGTON,Rates,1004\1901672358,15-Apr-20,"51,072.00",
LONDON UNDERGROUND LTD,BALFOUR BEATTY RAIL LTD,Retentions Control Account > 1Year,1005\5109747297,22-Apr-20,"51,066.08",
LONDON BUS SERVICES LTD,METROLINE TRAVEL LTD,Maintenance of Bus Stations LBL,1006\1900043891,01-Apr-20,"50,844.46",
CYCLE HIRE SCHEME,ORCADES MARINE,Management & Support Consultancy,1016\5109739809,06-Apr-20,"50,760.00",
RAIL FOR LONDON LIMITED,PROBRAND LTD,Software Maintenance,1020\5109740668,03-Apr-20,"50,725.00",
LONDON BUS SERVICES LTD,VIAVAN TECHNOLOGIES B.V.,Vehicle Repairs & Maintenance,1006\5109748037,30-Apr-20,"50,587.18",
LUL NOMINEE SSL LIMITED,CLESHAR CONTRACT SERVICES LTD,Track General Maintenance,1031\5109748063,20-Apr-20,"50,508.91",
LONDON UNDERGROUND LTD,KN NETWORK SERVICES LTD,MR Construction Costs,1005\5109737280,20-Apr-20,"50,484.90",
LUL NOMINEE BCV LIMITED,LENDLEASE JACOBS JOINT VENTURE,MR Construction Costs,1033\5109738608,27-Apr-20,"50,277.81",
TRANSPORT TRADING LTD,OVE ARUP & PARTNERS LTD,Planning & Development Consultancy,1004\5109754284,29-Apr-20,"50,200.00",
SURFACE TRANSPORT CORP,LONDON BOROUGH OF SOUTHWARK,Borough Services,1002\1900064193,06-Apr-20,"50,168.00",
TFL CORPORATE,EGON ZEHNDER,Recruitment Agency Fees,1001\5109713847,01-Apr-20,"50,000.00",
TFL CORPORATE,EGON ZEHNDER,Recruitment Agency Fees,1001\5109724187,01-Apr-20,"50,000.00",
TFL CORPORATE,EGON ZEHNDER,Recruitment Agency Fees,1001\5109745300,27-Apr-20,"50,000.00",
TFL CORPORATE,GREATER LONDON AUTHORITY ,Publications & Periodicals,1001\5109729484,08-Apr-20,"50,000.00",
TFL CORPORATE,TNS UK LTD,Customer Research And Counts,1001\5109732875,15-Apr-20,"50,000.00",
LONDON UNDERGROUND LTD,TAYLOR WOODROW CONS BAM NUTTAL LTD,Civil Engineering Construction Works,1005\5109737521,03-Apr-20,"50,000.00",
LONDON UNDERGROUND LTD,PORTAKABIN LTD,Track General Maintenance,1005\5109745644,29-Apr-20,"49,715.00",
TFL CORPORATE,INTERFLEET TECHNOLOGY LIMITED,Management & Support Consultancy,1001\5109724429,08-Apr-20,"49,576.00",
LONDON BUS SERVICES LTD,STEWART SIGNS LTD,Printing,1006\5109742583,07-Apr-20,"49,500.00",
TFL CORPORATE,MEDIAEDGE,Radio TV Press Poster Cinema Airtime And Space,1001\5109742384,08-Apr-20,"48,812.76",
TFL CORPORATE,LEICA GEOSYSTEMS LTD,MR Construction Costs,1001\5109744007,27-Apr-20,"48,495.00",
TFL CORPORATE,VCCP GROUP LLP,Production Artwork And Design For Marketing,1001\5109732586,08-Apr-20,"48,450.00",
LONDON UNDERGROUND LTD,RJC (UK) LTD,Escalators,1005\5109740837,22-Apr-20,"48,366.00",
LONDON UNDERGROUND LTD,IPS COMMUNICATIONS LTD,MR Construction Costs,1005\5109740163,20-Apr-20,"48,259.30",
SURFACE TRANSPORT CORP,ARDENT MANAGEMENT LTD,Planning & Development Consultancy,1002\5109744669,15-Apr-20,"48,106.50",
SURFACE TRANSPORT CORP,CSTS LTD,Traffic Signals,1002\5109740197,08-Apr-20,"48,054.43",
RAIL FOR LONDON LIMITED,VAE UK LIMITED,Maintenance Materials,1020\5109720154,01-Apr-20,"48,042.00",
LONDON UNDERGROUND LTD,SRL SOLUTIONS,Civil Engineering Construction Works,1005\5109737687,17-Apr-20,"47,837.25",
LONDON UNDERGROUND LTD,DELATIM LIMITED,MR Construction Costs,1005\5109742493,07-Apr-20,"47,404.83",
LUL NOMINEE BCV LIMITED,MORGANITE ELECTRICAL CARBON LTD,Fleet,1033\5109739875,02-Apr-20,"47,340.00",
LUL NOMINEE BCV LIMITED,MORGANITE ELECTRICAL CARBON LTD,Fleet,1033\5109745211,22-Apr-20,"47,340.00",
LONDON UNDERGROUND LTD,SKANSKA CONTRUCTIONS UK LTD,Civil Engineering Construction Works,1005\5109740792,08-Apr-20,"47,037.48",
LONDON UNDERGROUND LTD,NETWORK RAIL,Traction Current,1005\5109717650,08-Apr-20,"46,688.55",
TFL CORPORATE,INTERFLEET TECHNOLOGY LIMITED,Management & Support Consultancy,1001\5109723810,06-Apr-20,"46,687.50",
DIAL A RIDE,DABD,Operator Costs,1010\5109747312,22-Apr-20,"46,623.14",
SURFACE TRANSPORT CORP,SAAB AB SUPPORT AND SERVICES,Computer Hardware,1002\5109744019,01-May-20,"46,319.00",
RAIL FOR LONDON LIMITED,BOMBARDIER TRANSPORT UK,Stock Issues - Repairables,1020\5109725302,01-Apr-20,"46,310.00",
LUL NOMINEE SSL LIMITED,HILTON ABBEY LIMITED,Traction Current,1031\5109752452,29-Apr-20,"46,047.00",
LONDON UNDERGROUND LTD,KONE PLC,Escalators,1005\5109751456,27-Apr-20,"46,020.08",
SURFACE TRANSPORT CORP,SIEMENS,Road Maintenance,1002\5109740824,08-Apr-20,"45,955.29",
LONDON BUS SERVICES LTD,TELENT TECHNOLOGY SERVICES LTD,Security Equipment,1006\5109748314,20-Apr-20,"45,816.53",
LONDON UNDERGROUND LTD,BRYEN & LANGLEY LTD,Building Maintenance & Repairs,1005\5109754280,29-Apr-20,"45,695.35",
LONDON UNDERGROUND LTD,MCGINLEY SUPPORT SERVICES LTD,Track General Maintenance,1005\5109750484,21-Apr-20,"45,569.12",
SURFACE TRANSPORT CORP,CAPITA BUSINESS SERVICES LTD,Management & Support Consultancy,1002\5109724915,08-Apr-20,"45,563.96",
RAIL FOR LONDON LIMITED,TRACKWORK RESOURCES LTD,Maintenance Materials,1020\5109738133,08-Apr-20,"45,450.00",
DIAL A RIDE,WALTHAM FOREST CT LTD,Operator Costs,1010\5109730846,06-Apr-20,"45,293.70",
RFL (INFRASTRUCTURE) LTD,SIEMENS,Maintenance of Telecommunications Equipment,1025\5109724092,06-Apr-20,"45,270.00",
LONDON UNDERGROUND LTD,ATKINS LIMITED,Planning & Development Consultancy,1005\5109737938,06-Apr-20,"45,134.50",
SURFACE TRANSPORT CORP,SIEMENS,Traffic Signals,1002\5109740564,03-Apr-20,"45,120.01",
LONDON UNDERGROUND LTD,VAISALA LTD,Contractors,1005\5109722715,06-Apr-20,"45,015.00",
TFL CORPORATE,VCCP GROUP LLP,Production Artwork And Design For Marketing,1001\5109744994,15-Apr-20,"45,000.00",
LONDON BUS SERVICES LTD,TELENT TECHNOLOGY SERVICES LTD,Maintenance of Plant & Equipment,1006\5109719672,01-Apr-20,"44,924.68",
LONDON UNDERGROUND LTD,KPMG,Planning & Development Consultancy,1005\5109740271,22-Apr-20,"44,869.00",
TRANSPORT TRADING LTD,DAISY COMMUNICATIONS LTD,Telephony Fixed,1004\5109748609,22-Apr-20,"44,865.00",
DOCKLANDS LIGHT RAILWAY,VOESTALPINE VAE UK LTD,Civil Engineering Construction Works,1012\5109740523,16-Apr-20,"44,657.33",
LONDON UNDERGROUND LTD,PRINCIPAL CIVIL SERVICE PENSION SCH,Payroll Suspense,1005\1900213810,30-Apr-20,"44,632.88",
TRANSPORT TRADING LTD,PRIMESIGHT LIMITED,Building Maintenance & Repairs,1004\5109736436,27-Apr-20,"44,550.00",
TRANSPORT TRADING LTD,TECHNOLOGY DESKING LIMITED,Computer Hardware,1004\5109736567,22-Apr-20,"44,475.00",
TRANSPORT TRADING LTD,TECHNOLOGY DESKING LIMITED,Computer Hardware,1004\5109736574,02-Apr-20,"44,475.00",
TFL CORPORATE,COMPUTACENTER PLC,Computer Hardware,1001\5109741971,27-Apr-20,"44,467.20",
TRANSPORT TRADING LTD,SCAN COIN OMSER (UK) LTD,Cash Handling & Processing,1004\5109732833,08-Apr-20,"44,410.31",
LONDON BUS SERVICES LTD,EDF ENERGY,Electricity,1006\5109740528,06-Apr-20,"44,313.17",
LONDON UNDERGROUND LTD,NETWORK RAIL,Traction Current,1005\5109717099,08-Apr-20,"44,185.26",
LONDON UNDERGROUND LTD,SKANSKA CONTRUCTIONS UK LTD,Civil Engineering Construction Works,1005\5109752804,27-Apr-20,"44,106.55",
RAIL FOR LONDON LIMITED,FURRER+FREY AG,Staff Training,1020\5109742083,29-Apr-20,"44,093.00",
LONDON UNDERGROUND LTD,HEGENSCHEIDT-MFD GMBH,Fleet,1005\5109740592,29-Apr-20,"43,950.00",
TRANSPORT TRADING LTD,GRAYSONS HOSPITALITY LIMITED,Plant & Equipment Purchases,1004\5109740085,02-Apr-20,"43,950.00",
LONDON UNDERGROUND LTD,GEOFFREY OSBORNE LIMITED,Civil Engineering Construction Works,1005\5109747356,20-Apr-20,"43,942.30",
LUL NOMINEE SSL LIMITED,DUCTCLEAN (UK) LTD T/A DCUK FM,Building Maintenance & Repairs,1031\5109745682,14-Apr-20,"43,853.22",
LONDON UNDERGROUND LTD,SCHINDLER LTD,Lift Maintenance,1005\5109752429,27-Apr-20,"43,794.90",
LUL NOMINEE SSL LIMITED,MORSON INTERNATIONAL,Maintenance Materials,1031\5109747315,20-Apr-20,"43,735.26",
LONDON UNDERGROUND LTD,ATKINS LIMITED,Planning & Development Consultancy,1005\5109737852,15-Apr-20,"43,725.00",
LONDON UNDERGROUND LTD,AECOM LTD,Planning & Development Consultancy,1005\5109729844,01-Apr-20,"43,638.00",
LONDON UNDERGROUND LTD,MORGAN SINDALL  PLC,MR Construction Costs,1005\5109733569,08-Apr-20,"43,586.40",
RAIL FOR LONDON LIMITED,UK POWER NETWORKS LTD,Civil Engineering Construction Works,1020\5109741493,22-Apr-20,"43,574.35",
SURFACE TRANSPORT CORP,BRITISH WATERWAYS LONDON,Borough Services,1002\1900064465,08-Apr-20,"43,519.92",
TFL CORPORATE,RACKSPACE LTD,Manage IT Services,1001\5109736230,15-Apr-20,"43,373.19",
TFL CORPORATE,RACKSPACE LTD,Manage IT Services,1001\5109745266,29-Apr-20,"43,373.19",
LONDON UNDERGROUND LTD,KPMG,Planning & Development Consultancy,1005\5109740266,22-Apr-20,"43,188.13",
LONDON UNDERGROUND LTD,PCG ASSOCIATES LIMITED,Signalling Systems,1005\5109754651,29-Apr-20,"42,919.60",
RAIL FOR LONDON LIMITED,SIEMENS,Management & Support Consultancy,1020\5109728209,08-Apr-20,"42,838.00",
RAIL FOR LONDON LIMITED,SIEMENS,Management & Support Consultancy,1020\5109739796,22-Apr-20,"42,808.00",
LONDON BUS SERVICES LTD,TELENT TECHNOLOGY SERVICES LTD,Security Equipment,1006\5109748332,29-Apr-20,"42,794.27",
LONDON BUS SERVICES LTD,HJS EMISSION TECHNOLOGY GMBH&CO.KG,Vehicle Repairs & Maintenance,1006\5109739515,28-Apr-20,"42,730.00",
LONDON UNDERGROUND LTD,GEMINI RAIL SERVICES UK LTD,Equipment Repairs & Maintenance,1005\5109696273,27-Apr-20,"42,719.63",
LONDON UNDERGROUND LTD,NETWORK RAIL,National Rail Long Term Charges,1005\5109730655,08-Apr-20,"42,543.10",
LONDON BUS SERVICES LTD,ABELLIO LONDON LTD,Maintenance of Bus Stations LBL,1006\1900044073,29-Apr-20,"42,496.83",
LONDON BUS SERVICES LTD,ABELLIO LONDON LTD,Maintenance of Bus Stations LBL,1006\1900044117,29-Apr-20,"42,464.01",
CYCLE HIRE SCHEME,CSTS LTD,Concession Maintenance Charge,1016\5109721244,01-Apr-20,"42,440.55",
RAIL FOR LONDON LIMITED,TELENT TECHNOLOGY SERVICES LTD,Electrical & Electronic Engineering,1020\5109748498,29-Apr-20,"42,429.00",
TRANSPORT TRADING LTD,GLOBAL OUTDOOR MEDIA LIMITED,Purchase of Associates Loan Notes (Activity),1004\5109747642,22-Apr-20,"42,311.17",
TFL CORPORATE,TNS UK LTD,Research For Marketing Campaigns And Activities,1001\5109724533,06-Apr-20,"42,000.00",
LUL NOMINEE SSL LIMITED,1STINRAIL LIMITED,Track General Maintenance,1031\5109748387,20-Apr-20,"41,947.40",
SURFACE TRANSPORT CORP,INTEROUTE NETWORK LTD ,Radio Systems Equipment & Maintenance,1002\5109728553,08-Apr-20,"41,938.46",
LONDON UNDERGROUND LTD,NETWORK RAIL,National Rail Fixed Track Access Charges,1005\5109717652,08-Apr-20,"41,925.73",
SURFACE TRANSPORT CORP,SIMULATION SYSTEMS LTD,Equipment Repairs & Maintenance,1002\5109752274,27-Apr-20,"41,700.25",
LONDON BUS SERVICES LTD,LONDON GENERAL TRANSPORT SERVICES,Bus Contract Payments,1006\1900044162,24-Apr-20,"41,642.68",
RAIL FOR LONDON LIMITED,PCG ASSOCIATES LIMITED,Agency Staff,1020\5109745354,15-Apr-20,"41,624.00",
LONDON UNDERGROUND LTD,QUINN INFRASTRUCTURE SERVICES LTD,Property Management Fees,1005\5109737661,01-Apr-20,"41,547.55",
TRANSPORT TRADING LTD,LONDON BOROUGH OF TOWER HAMLETS,Rates,1004\1901671946,15-Apr-20,"41,496.00",
SURFACE TRANSPORT CORP,TELENT TECHNOLOGY SERVICES LTD,Traffic Signals,1002\5109741484,08-Apr-20,"41,391.98",
LONDON UNDERGROUND LTD,NETWORK RAIL,National Rail Schedule 4 Payments,1005\5109717655,08-Apr-20,"41,134.94",
LONDON BUS SERVICES LTD,PROVENTIA OY,Vehicle Repairs & Maintenance,1006\5109749135,29-Apr-20,"41,125.00",
LONDON UNDERGROUND LTD,CLESHAR CONTRACT SERVICES LTD,MR Construction Costs,1005\5109748168,20-Apr-20,"41,096.64",
LONDON UNDERGROUND LTD,CLESHAR CONTRACT SERVICES LTD,Track General Maintenance,1005\5109748196,20-Apr-20,"41,082.89",
LUL NOMINEE BCV LIMITED,BARWIT CONTROL SYSTEMS LTD,Escalators,1033\5109740853,03-Apr-20,"40,910.00",
LONDON UNDERGROUND LTD,NATIVE LAND LTD,Planning & Development Consultancy,1005\5109737925,08-Apr-20,"40,897.50",
LONDON UNDERGROUND LTD,SOUTH WESTERN RAILWAY,National Rail Qualifying Expenditure Charges,1005\5109724186,06-Apr-20,"40,807.46",
LONDON UNDERGROUND LTD,DMC RAIL LTD,MR Construction Costs,1005\5109739967,02-Apr-20,"40,806.76",
LONDON TRANSPORT MUSEUM,VINCI CONSTRUCTION UK LTD,Building Maintenance & Repairs,1011\5109747321,27-Apr-20,"40,776.85",
LONDON BUS SERVICES LTD,FREIGHT TRANSPORT ASSOCIATION,Management & Support Consultancy,1006\5109752578,29-Apr-20,"40,700.00",
LONDON UNDERGROUND LTD,CORONA ENERGY RETAIL 4 LTD,Gas,1005\1900213322,15-Apr-20,"40,655.09",
TFL CORPORATE,O2 UK LTD,Computer Hardware,1001\5109736218,08-Apr-20,"40,632.00",
LONDON UNDERGROUND LTD,ONE TRANSPORT LIMITED,Travel to/from work (Unsocial Hours),1005\5109749200,21-Apr-20,"40,616.87",
SURFACE TRANSPORT CORP,SYMOLOGY LIMITED,Computer Software,1002\5109744057,09-Apr-20,"40,489.92",
TFL CORPORATE,THE RETEARN GROUP LTD,Management & Support Consultancy,1001\5109733189,01-Apr-20,"40,460.00",
TFL CORPORATE,THE RETEARN GROUP LTD,Management & Support Consultancy,1001\5109741676,06-Apr-20,"40,460.00",
LUL NOMINEE SSL LIMITED,EMERSON NETWORK POWER LTD,Equipment Repairs & Maintenance,1031\5109744852,29-Apr-20,"40,384.27",
LONDON UNDERGROUND LTD,OCL RAIL LTD,MR Construction Costs,1005\5109745562,14-Apr-20,"40,367.73",
LONDON UNDERGROUND LTD,BOMBARDIER TRANSPORT UK,Management & Support Consultancy,1005\5109740080,29-Apr-20,"40,256.50",
TFL CORPORATE,LINKS SIGNS LTD,Sign Manufacture,1001\5109732801,01-Apr-20,"40,244.00",
LONDON UNDERGROUND LTD,DELATIM LIMITED,MR Construction Costs,1005\5109724774,29-Apr-20,"40,194.95",
LUL NOMINEE SSL LIMITED,CPC PROJECT SERVICES LLP,Civil Engineering Construction Works,1031\5109743930,14-Apr-20,"40,167.44",
TRANSPORT TRADING LTD,LONDON BOROUGH OF SOUTHWARK,Rates,1004\1901671813,15-Apr-20,"40,000.00",
TFL CORPORATE,AXON SOLUTIONS LTD,Computer Software,1001\5109736322,15-Apr-20,"40,000.00",
TFL CORPORATE,VCCP GROUP LLP,Production Artwork And Design For Marketing,1001\5109733639,15-Apr-20,"40,000.00",
TRANSPORT TRADING LTD,CENTRE FOR LONDON ,Management & Support Consultancy,1004\5109742263,08-Apr-20,"40,000.00",
TRANSPORT TRADING LTD,URBAN INTELLIGENCE,Planning & Development Consultancy,1004\5109748590,21-Apr-20,"40,000.00",
LUL NOMINEE BCV LIMITED,C.DUGARD LIMITED,Maintenance Materials,1033\5109739943,06-Apr-20,"40,000.00",
SURFACE TRANSPORT CORP,SIEMENS,Traffic Signals,1002\5109732623,06-Apr-20,"39,980.38",
LONDON UNDERGROUND LTD,LENDLEASE JACOBS JOINT VENTURE,MR Construction Costs,1005\5109737471,29-Apr-20,"39,805.35",
SURFACE TRANSPORT CORP,CAPITA BUSINESS SERVICES LTD,CCS Service Contract,1002\5109729848,15-Apr-20,"39,754.86",
DOCKLANDS LIGHT RAILWAY,UK POWER NETWORKS LTD,Civil Engineering Construction Works,1012\5109738065,15-Apr-20,"39,700.16",
TRANSPORT TRADING LTD,LH-PLC,Building Maintenance & Repairs,1004\5109742246,22-Apr-20,"39,633.10",
DOCKLANDS LIGHT RAILWAY,UK POWER NETWORKS LTD,Civil Engineering Construction Works,1012\5109738078,15-Apr-20,"39,517.77",
LONDON UNDERGROUND LTD,DAISY COMMUNICATIONS LTD,Telephony Fixed,1005\5109741066,22-Apr-20,"39,470.07",
TRANSPORT TRADING LTD,NJW LIMITED,Computer Hardware,1004\5109740973,23-Apr-20,"39,464.15",
RAIL FOR LONDON LIMITED,NETWORK RAIL,Civil Engineering Construction Works,1020\5109726164,08-Apr-20,"39,453.60",
TFL CORPORATE,OPEN TEXT UK LTD,Software Maintenance,1001\5109730505,15-Apr-20,"39,442.90",
RAIL FOR LONDON LIMITED,KN NETWORK SERVICES LTD,Professional Engineering Services,1020\5109740921,22-Apr-20,"39,402.50",
TFL CORPORATE,EVERSHEDS,Legal Fees,1001\5109730518,08-Apr-20,"39,353.00",
LUL NOMINEE SSL LIMITED,1STINRAIL LIMITED,Track General Maintenance,1031\5109748374,20-Apr-20,"39,347.00",
CYCLE HIRE SCHEME,CSTS LTD,Concession Maintenance Charge,1016\5109721245,01-Apr-20,"39,008.53",
LONDON UNDERGROUND LTD,MANTEC ENGINEERING LTD,Equipment Repairs & Maintenance,1005\5109742286,06-Apr-20,"38,856.00",
LONDON UNDERGROUND LTD,THALES RAIL SIGNALLING SOLUTIONS,Signalling Systems,1005\5109748698,20-Apr-20,"38,788.85",
DOCKLANDS LIGHT RAILWAY,MOTT MACDONALD LIMITED,Professional Engineering Services,1012\5109752999,29-Apr-20,"38,741.49",
LONDON UNDERGROUND LTD,DELATIM LIMITED,MR Construction Costs,1005\5109742473,07-Apr-20,"38,722.77",
TFL CORPORATE,MOTT MACDONALD LIMITED,Planning & Development Consultancy,1001\5109752256,27-Apr-20,"38,681.66",
LONDON UNDERGROUND LTD,GPX ENGINEERING LTD,MR Construction Costs,1005\5109754427,29-Apr-20,"38,673.08",
LONDON UNDERGROUND LTD,DYER & BUTLER LTD,Civil Engineering Construction Works,1005\5109754512,29-Apr-20,"38,617.82",
SURFACE TRANSPORT CORP,LINKS SIGNS LTD,Street Furniture,1002\5109739387,03-Apr-20,"38,592.00",
TFL CORPORATE,BARKING COLLEGE,Planning & Development Consultancy,1001\5109741409,22-Apr-20,"38,555.00",
TFL CORPORATE,GARDINER & THEOBALD LLP,Management & Support Consultancy,1001\5109729939,15-Apr-20,"38,546.57",
LONDON UNDERGROUND LTD,HEGENSCHEIDT-MFD GMBH,Maintenance Materials,1005\5109737882,17-Apr-20,"38,500.00",
LONDON UNDERGROUND LTD,KONE PLC,Escalators,1005\5109751471,27-Apr-20,"38,400.34",
DIAL A RIDE,WANDSWORTH COMMUNITY TRANSPORT,Operator Costs,1010\5109747158,15-Apr-20,"38,380.16",
LUL NOMINEE SSL LIMITED,CLESHAR CONTRACT SERVICES LTD,Maintenance Materials,1031\5109743938,27-Apr-20,"38,227.00",
SURFACE TRANSPORT CORP,TURNAMMS ASSESSORS,Other Spares stock issues,1002\1900064869,29-Apr-20,"38,171.29",
RAIL FOR LONDON LIMITED,2CV RESEARCH,Customer Research And Counts,1020\5109723352,06-Apr-20,"38,170.00",
SURFACE TRANSPORT CORP,SIEMENS,Traffic Signals,1002\5109745287,15-Apr-20,"38,163.59",
LONDON UNDERGROUND LTD,ENGIE SERVICES LTD,Equipment Repairs & Maintenance,1005\5109745654,29-Apr-20,"38,120.52",
SURFACE TRANSPORT CORP,TELENT TECHNOLOGY SERVICES LTD,Road Maintenance,1002\5109741087,15-Apr-20,"38,112.88",
RAIL FOR LONDON LIMITED,MOTT MACDONALD LIMITED,Management & Support Consultancy,1020\5109740761,27-Apr-20,"37,933.56",
LUL NOMINEE SSL LIMITED,EASTERN COMPRESSORS LTD,Equipment Repairs & Maintenance,1031\5109741137,06-Apr-20,"37,910.23",
LUL NOMINEE SSL LIMITED,CPC PROJECT SERVICES LLP,Civil Engineering Construction Works,1031\5109754623,29-Apr-20,"37,864.02",
TFL CORPORATE,ASHURST LLP,Legal Fees,1001\5109741463,06-Apr-20,"37,775.20",
TRANSPORT TRADING LTD,COLLINS RIVER ENTERPRISES LTD,Gross Sales Clearance,1004\1901672590,27-Apr-20,"37,589.23",
LUL NOMINEE SSL LIMITED,DUCTCLEAN (UK) LTD T/A DCUK FM,Building Maintenance & Repairs,1031\5109745681,14-Apr-20,"37,379.48",
LONDON BUS SERVICES LTD,ABELLIO LONDON LTD,Maintenance of Bus Stations LBL,1006\1900044079,29-Apr-20,"37,297.85",
SURFACE TRANSPORT CORP,TELENT TECHNOLOGY SERVICES LTD,Road Maintenance,1002\5109739439,02-Apr-20,"37,265.92",
LONDON BUS SERVICES LTD,ABELLIO LONDON LTD,Maintenance of Bus Stations LBL,1006\1900044080,29-Apr-20,"37,154.98",
TFL CORPORATE,THE SKILLS CENTRE LONDON LIMITED,Planning & Development Consultancy,1001\5109742273,15-Apr-20,"37,126.32",
LUL NOMINEE BCV LIMITED,VOITH TURBO LTD,Fleet,1033\5109726091,08-Apr-20,"36,984.01",
LONDON UNDERGROUND LTD,MCGINLEY SUPPORT SERVICES LTD,MR Construction Costs,1005\5109750488,21-Apr-20,"36,981.05",
LONDON UNDERGROUND LTD,KELLY INTEGRATED TRANS SERV LTD,Signalling Systems,1005\5109728793,03-Apr-20,"36,953.88",
LONDON BUS SERVICES LTD,VIX ACIS LIMITED,Maintenance of Plant & Equipment,1006\5109729942,01-Apr-20,"36,948.42",
TRANSPORT TRADING LTD,WOMEN INTO CONSTRUCTION CIC,Planning & Development Consultancy,1004\5109736556,22-Apr-20,"36,850.00",
LONDON UNDERGROUND LTD,EVERSHEDS,Legal Fees,1005\5109752264,27-Apr-20,"36,817.80",
LONDON BUS SERVICES LTD,TRAPEZE PTI LTD,Maintenance of Plant & Equipment,1006\5109732443,17-Apr-20,"36,806.40",
TFL CORPORATE,MOTT MACDONALD LIMITED,Planning & Development Consultancy,1001\5109742068,27-Apr-20,"36,750.00",
LONDON BUS SERVICES LTD,AECOM LTD,IT Consultancy,1006\5109744752,22-Apr-20,"36,571.64",
SURFACE TRANSPORT CORP,SIEMENS,Traffic Signals,1002\5109747123,15-Apr-20,"36,555.05",
TFL CORPORATE,ARK SIGNALLING CONSULTANCY,Management & Support Consultancy,1001\5109742426,14-Apr-20,"36,335.00",
LONDON UNDERGROUND LTD,KELLY INTEGRATED TRANS SERV LTD,Signalling Systems,1005\5109752375,27-Apr-20,"36,303.20",
LONDON UNDERGROUND LTD,HIREMECH LTD,Maintenance of Plant & Equipment,1005\5109747106,20-Apr-20,"36,296.00",
LONDON BUS SERVICES LTD,ABELLIO LONDON LTD,Maintenance of Bus Stations LBL,1006\1900044078,29-Apr-20,"36,269.68",
LONDON RIVER SERVICES LTD,CARTER JONAS LLP,Other Landlord Charges LRS,1007\5109724870,06-Apr-20,"36,231.17",
TRANSPORT TRADING LTD,ROYAL BOROUGH KENSINGTON & CHELSEA,Rates,1004\1901672423,15-Apr-20,"36,176.00",
LUL NOMINEE SSL LIMITED,MORS SMITT STS SIGNALS,Electrical & Electronic Engineering,1031\5109740628,03-Apr-20,"36,138.00",
LONDON UNDERGROUND LTD,INSIGHT DIRECT UK LIMITED,Software Maintenance,1005\5109729058,15-Apr-20,"36,000.00",
SURFACE TRANSPORT CORP,TELENT TECHNOLOGY SERVICES LTD,Traffic Signals,1002\5109732378,01-Apr-20,"35,964.00",
DIAL A RIDE,WANDSWORTH COMMUNITY TRANSPORT,Operator Costs,1010\5109739891,08-Apr-20,"35,823.40",
TRANSPORT TRADING LTD,ECKOH UK LIMITED,Telephony Fixed,1004\5109744720,08-Apr-20,"35,670.43",
SURFACE TRANSPORT CORP,CSTS LTD,Traffic Signals,1002\5109740189,08-Apr-20,"35,525.77",
DOCKLANDS LIGHT RAILWAY,TNS UK LTD,Civil Engineering Construction Works,1012\5109730061,08-Apr-20,"35,504.50",
RAIL FOR LONDON LIMITED,LANES GROUP PLC,Professional Engineering Services,1020\5109745526,22-Apr-20,"35,500.72",
TFL CORPORATE,GREATER LONDON AUTHORITY ,Planning & Development Consultancy,1001\5109724953,01-Apr-20,"35,500.00",
LONDON UNDERGROUND LTD,THALES RAIL SIGNALLING SOLUTIONS,Signalling Systems,1005\5109748700,20-Apr-20,"35,389.33",
TFL CORPORATE,MDV MENTZ DATENVERARBEITUNG GMBH,Software Maintenance,1001\5109735937,08-Apr-20,"35,280.00",
LONDON RIVER SERVICES LTD,BRIGGS MARINE CONTRACTORS LIMITED,Operator Costs,1007\5109742503,27-Apr-20,"35,259.44",
LUL NOMINEE SSL LIMITED,KN NETWORK SERVICES LTD,Professional Engineering Services,1031\5109747279,22-Apr-20,"35,220.33",
TFL CORPORATE,THE NICHOLS GROUP LTD,Planning & Development Consultancy,1001\5109747395,27-Apr-20,"35,211.38",
LONDON UNDERGROUND LTD,JONES LANG LASALLE,Planning & Development Consultancy,1005\5109745076,22-Apr-20,"35,150.00",
LONDON BUS SERVICES LTD,TRUEFORM ENGINEERING LTD,Maintenance of  Bus Stops,1006\5109744324,07-Apr-20,"35,070.78",
LUL NOMINEE SSL LIMITED,LUCCHINI UK LTD,Fleet,1031\5109732641,15-Apr-20,"35,068.00",
TFL CORPORATE,PRICEWATERHOUSECOOPERS LLP,Software Maintenance,1001\5109736158,02-Apr-20,"35,000.00",
TFL CORPORATE,MOTT MACDONALD LIMITED,Planning & Development Consultancy,1001\5109724121,06-Apr-20,"35,000.00",
RAIL FOR LONDON LIMITED,BARKING RIVERSIDE LIMITED,Civil Engineering Construction Works,1020\5109748855,22-Apr-20,"34,984.26",
LUL NOMINEE SSL LIMITED,CLESHAR CONTRACT SERVICES LTD,Track General Maintenance,1031\5109748023,20-Apr-20,"34,966.89",
SURFACE TRANSPORT CORP,ARDENT MANAGEMENT LTD,Planning & Development Consultancy,1002\5109744682,15-Apr-20,"34,889.50",
LONDON UNDERGROUND LTD,NETWORK RAIL,National Rail Signal Control Charges,1005\5109717096,08-Apr-20,"34,831.73",
LONDON UNDERGROUND LTD,DELATIM LIMITED,MR Construction Costs,1005\5109752405,27-Apr-20,"34,761.03",
LUL NOMINEE SSL LIMITED,CONTITECH LUFTFEDERSYSTEME GMBH,Fleet,1031\5109726102,09-Apr-20,"34,651.52",
LUL NOMINEE SSL LIMITED,CONTITECH LUFTFEDERSYSTEME GMBH,Fleet,1031\5109738285,02-Apr-20,"34,651.52",
LUL NOMINEE SSL LIMITED,CONTITECH LUFTFEDERSYSTEME GMBH,Fleet,1031\5109741167,24-Apr-20,"34,651.52",
RAIL FOR LONDON LIMITED,NORTHSTAR CONSULTANCY,Contractors,1020\5109744773,09-Apr-20,"34,612.00",
RAIL FOR LONDON LIMITED,LINBROOKE SERVICES LTD,Management & Support Consultancy,1020\5109747149,15-Apr-20,"34,544.39",
LONDON BUS SERVICES LTD,UNIVERSITY BUS LTD,Bus Contract Payments,1006\1900044100,17-Apr-20,"34,528.63",
LONDON UNDERGROUND LTD,ENGIE SERVICES LTD,Equipment Repairs & Maintenance,1005\5109724731,01-Apr-20,"34,522.69",
LONDON BUS SERVICES LTD,IPSOS MORI,Customer Research And Counts,1006\5109728723,08-Apr-20,"34,521.00",
LUL NOMINEE SSL LIMITED,QUINN INFRASTRUCTURE SERVICES LTD,Civil Engineering Construction Works,1031\5109748315,27-Apr-20,"34,413.02",
LUL NOMINEE SSL LIMITED,SCHAEFFLER (UK) LTD,Fleet,1031\5109740449,02-Apr-20,"34,377.00",
TRANSPORT TRADING LTD,ECKOH UK LIMITED,Telephony Fixed,1004\5109751114,22-Apr-20,"34,273.84",
LONDON BUS SERVICES LTD,SULLIVAN BUS & COACH LTD,Rail Replacement Service Costs,1006\1900044046,01-Apr-20,"34,093.44",
TFL CORPORATE,SUSTRANS LTD,External Events Roads Shows And Face To Face,1001\5109733312,20-Apr-20,"34,063.72",
TFL CORPORATE,EVERSHEDS,Legal Fees,1001\5109745670,15-Apr-20,"34,018.00",
TFL CORPORATE,SUSTRANS LTD,External Events Roads Shows And Face To Face,1001\5109725559,08-Apr-20,"34,000.00",
TFL CORPORATE,SUSTRANS LTD,External Events Roads Shows And Face To Face,1001\5109725564,08-Apr-20,"34,000.00",
TFL CORPORATE,SUSTRANS LTD,External Events Roads Shows And Face To Face,1001\5109725592,08-Apr-20,"34,000.00",
TFL CORPORATE,SUSTRANS LTD,External Events Roads Shows And Face To Face,1001\5109733310,20-Apr-20,"34,000.00",
LONDON BUS SERVICES LTD,SULLIVAN BUS & COACH LTD,Rail Replacement Service Costs,1006\1900044052,01-Apr-20,"33,983.66",
LONDON UNDERGROUND LTD,SKANSKA CONTRUCTIONS UK LTD,Civil Engineering Construction Works,1005\5109752789,27-Apr-20,"33,964.59",
TFL CORPORATE,SUSTRANS LTD,External Events Roads Shows And Face To Face,1001\5109733003,15-Apr-20,"33,902.00",
LONDON UNDERGROUND LTD,NETWORK RAIL,National Rail Fixed Track Access Charges,1005\5109717637,08-Apr-20,"33,829.34",
LONDON BUS SERVICES LTD,SULLIVAN BUS & COACH LTD,Rail Replacement Service Costs,1006\1900044051,01-Apr-20,"33,697.41",
LONDON UNDERGROUND LTD,RJC (UK) LTD,Civil Engineering Construction Works,1005\5109740145,15-Apr-20,"33,642.14",
LONDON BUS SERVICES LTD,METROLINE TRAVEL LTD,Vehicle Repairs & Maintenance,1006\5109730727,15-Apr-20,"33,585.00",
SURFACE TRANSPORT CORP,EVERSHEDS,Legal Fees,1002\5109751350,22-Apr-20,"33,518.40",
LUL NOMINEE BCV LIMITED,MORSON HUMAN RESOURCES LTD,Track General Maintenance,1033\5109747270,15-Apr-20,"33,433.60",
RAIL FOR LONDON LIMITED,ENERGY AND SYSTEM TECHNICAL LTD,Professional Engineering Services,1020\5109742442,20-Apr-20,"33,365.00",
LONDON UNDERGROUND LTD,THALES RAIL SIGNALLING SOLUTIONS,Civil Engineering Construction Works,1005\5109748029,20-Apr-20,"33,318.73",
LONDON UNDERGROUND LTD,JNG CONSTRUCTION & ENGINEERING,Building Maintenance & Repairs,1005\5109752279,24-Apr-20,"33,270.13",
RAIL FOR LONDON LIMITED,THALES GROUND TRANSPORTATION SYSTEM,Management & Support Consultancy,1020\5109738128,27-Apr-20,"33,166.66",
TRANSPORT TRADING LTD,QUOD LTD,Planning & Development Consultancy,1004\5109751338,23-Apr-20,"33,075.00",
TRANSPORT TRADING LTD,LONDON BOROUGH OF SOUTHWARK,Rates,1004\1901671814,15-Apr-20,"33,024.00",
DOCKLANDS LIGHT RAILWAY,CLESHAR CONTRACT SERVICES LTD,Civil Engineering Construction Works,1012\5109728835,22-Apr-20,"33,017.36",
LONDON UNDERGROUND LTD,TATEHINDLE LTD,Other Professional Fees,1005\5109737254,20-Apr-20,"33,000.00",
LONDON UNDERGROUND LTD,ALSTOM TRANSPORT LTD,Engineering Feasibility Studies,1005\5109737128,29-Apr-20,"33,000.00",
TFL CORPORATE,ENGINE TRANSFORMATION LIMITED,Management & Support Consultancy,1001\5109744605,15-Apr-20,"32,950.00",
SURFACE TRANSPORT CORP,TRUEFORM ENGINEERING LTD,Contracted Services - Roads,1002\5109744894,08-Apr-20,"32,833.50",
SURFACE TRANSPORT CORP,GREATER LONDON AUTHORITY ,Section 159 Payments,1002\1900064833,20-Apr-20,"32,773.00",
DIAL A RIDE,BRENT COMMUNITY TRANSPORT,Operator Costs,1010\5109750808,24-Apr-20,"32,736.93",
DOCKLANDS LIGHT RAILWAY,OTB ENGINEERING LTD,Professional Engineering Services,1012\5109730494,01-Apr-20,"32,717.50",
LUL NOMINEE BCV LIMITED,LENDLEASE JACOBS JOINT VENTURE,MR Construction Costs,1033\5109738607,20-Apr-20,"32,685.00",
TFL CORPORATE,COMPUTACENTER PLC,Computer Hardware,1001\5109744511,29-Apr-20,"32,636.18",
TFL CORPORATE,THOMAS TELFORD LTD,Publications & Periodicals,1001\5109745151,29-Apr-20,"32,604.00",
LONDON UNDERGROUND LTD,MORSON PROJECTS LIMITED,Management & Support Consultancy,1005\5109745023,27-Apr-20,"32,518.50",
LUL NOMINEE BCV LIMITED,L.B. FOSTER RAIL TECH LTD,Fleet,1033\5109741500,06-Apr-20,"32,400.00",
LONDON UNDERGROUND LTD,MOTIVAIR COMPRESSORS LTD,Equipment Repairs & Maintenance,1005\5109740567,16-Apr-20,"32,359.46",
LONDON UNDERGROUND LTD,DMC RAIL LTD,MR Construction Costs,1005\5109754650,29-Apr-20,"32,313.03",
LONDON BUS SERVICES LTD,TRUEFORM ENGINEERING LTD,Building Maintenance & Repairs,1006\5109754454,28-Apr-20,"32,305.39",
SURFACE TRANSPORT CORP,CAPITA BUSINESS SERVICES LTD,CCS Service Contract,1002\5109729884,08-Apr-20,"32,117.63",
LUL NOMINEE SSL LIMITED,PROGRESS RAIL SERVICES UK LTD,Track General Maintenance,1031\5109744832,27-Apr-20,"32,116.00",
LONDON UNDERGROUND LTD,CITYLINK TELECOMMUNICATIONS LTD,Connect PFI Service Costs,1005\5109754872,29-Apr-20,"32,105.00",
TFL CORPORATE,ASHURST LLP,Legal Fees,1001\5109752571,27-Apr-20,"32,068.80",
LUL NOMINEE BCV LIMITED,CLESHAR CONTRACT SERVICES LTD,Track General Maintenance,1033\5109738543,22-Apr-20,"32,027.09",
TFL CORPORATE,SUSTRANS LTD,External Events Roads Shows And Face To Face,1001\5109725599,08-Apr-20,"32,000.00",
SURFACE TRANSPORT CORP,IMPERIAL COLLEGE PROJECTS LIMITED,Management & Support Consultancy,1002\5109732426,08-Apr-20,"32,000.00",
LUL NOMINEE SSL LIMITED,CPC PROJECT SERVICES LLP,Civil Engineering Construction Works,1031\5109740164,14-Apr-20,"31,992.29",
TFL CORPORATE,BYTES SOFTWARE SERVICES,Computer Hardware,1001\5109723148,06-Apr-20,"31,860.18",
TRANSPORT TRADING LTD,TELENT TECHNOLOGY SERVICES LTD,Security Equipment,1004\5109733561,01-Apr-20,"31,846.61",
SURFACE TRANSPORT CORP,CSTS LTD,Traffic Signals,1002\5109730953,06-Apr-20,"31,829.00",
LONDON UNDERGROUND LTD,KONE PLC,Escalators,1005\5109751469,27-Apr-20,"31,822.40",
LONDON UNDERGROUND LTD,KINGSBEECH LTD,Signalling Systems,1005\5109744483,08-Apr-20,"31,775.65",
LONDON UNDERGROUND LTD,SKANSKA CONTRUCTIONS UK LTD,Civil Engineering Construction Works,1005\5109740759,03-Apr-20,"31,762.47",
TFL CORPORATE,MEDIAEDGE,Radio TV Press Poster Cinema Airtime And Space,1001\5109732956,06-Apr-20,"31,647.91",
LONDON UNDERGROUND LTD,HERBERT SMITH LLP,Legal Fees,1005\5109740219,02-Apr-20,"31,638.02",
LONDON UNDERGROUND LTD,OAKLAND BUILDING SERVICES LTD,Building Maintenance & Repairs,1005\5109737922,02-Apr-20,"31,576.90",
LONDON UNDERGROUND LTD,ENGIE SERVICES LTD,Equipment Repairs & Maintenance,1005\5109724707,01-Apr-20,"31,557.24",
SURFACE TRANSPORT CORP,RINGWAY JACOBS LIMITED,Road Maintenance,1002\5109739712,01-Apr-20,"31,517.83",
LUL NOMINEE BCV LIMITED,CLESHAR CONTRACT SERVICES LTD,Track General Maintenance,1033\5109748071,20-Apr-20,"31,501.52",
LONDON BUS SERVICES LTD,FREIGHT TRANSPORT ASSOCIATION,Management & Support Consultancy,1006\5109752570,29-Apr-20,"31,450.00",
LONDON UNDERGROUND LTD,EC1BUILD,Management & Support Consultancy,1005\5109747527,20-Apr-20,"31,430.00",
TFL CORPORATE,GBM SERVICES LTD,Office Cleaning,1001\5109739963,02-Apr-20,"31,412.11",
TFL CORPORATE,KPMG,Management & Support Consultancy,1001\5109729278,08-Apr-20,"31,396.00",
LONDON BUS SERVICES LTD,ABELLIO LONDON LTD,Maintenance of Bus Stations LBL,1006\1900044066,29-Apr-20,"31,283.41",
TFL CORPORATE,AB PUBLISHING LIMITED,Storage And Distribution Of Publicity Materials,1001\5109752031,24-Apr-20,"31,264.58",
LONDON UNDERGROUND LTD,MODULAR DISTRIBUTION SYSTEMS,Lifts & Escalators stock issues,1005\5109722649,01-Apr-20,"31,255.00",
LONDON UNDERGROUND LTD,SKANSKA CONTRUCTIONS UK LTD,Building Maintenance & Repairs,1005\5109740747,03-Apr-20,"31,229.31",
DOCKLANDS LIGHT RAILWAY,IMPERIAL COLLEGE PROJECTS LIMITED,Civil Engineering Construction Works,1012\5109744556,27-Apr-20,"31,200.00",
LUL NOMINEE SSL LIMITED,IG WATTEEUW CR S.R.O.,Fleet,1031\5109741572,08-Apr-20,"31,189.30",
TRANSPORT TRADING LTD,GLOBAL OUTDOOR MEDIA LIMITED,Purchase of Associates Loan Notes (Activity),1004\5109694260,22-Apr-20,"31,141.09",
LONDON UNDERGROUND LTD,CASTLE WATER LIMITED,Water,1005\1900213758,29-Apr-20,"31,129.47",
SURFACE TRANSPORT CORP,WSP UK LTD,Contracted Services - Roads,1002\5109729849,08-Apr-20,"31,103.32",
LONDON BUS SERVICES LTD,SKANSKA CONTRUCTIONS UK LTD,Building Maintenance & Repairs,1006\5109752554,27-Apr-20,"31,074.60",
LONDON UNDERGROUND LTD,ONE TRANSPORT LIMITED,Travel to/from work (Unsocial Hours),1005\5109748874,20-Apr-20,"31,020.64",
TFL CORPORATE,CONTEXT INFORMATION SECURITY LTD,Planning & Development Consultancy,1001\5109741428,06-Apr-20,"31,000.00",
TFL CORPORATE,CONTEXT INFORMATION SECURITY LTD,Planning & Development Consultancy,1001\5109754733,29-Apr-20,"31,000.00",
TFL CORPORATE,MOTT MACDONALD LIMITED,Planning & Development Consultancy,1001\5109742457,15-Apr-20,"30,950.84",
LUL NOMINEE SSL LIMITED,PELL FRISCHMANN CONSULTANTS LTD,Civil Engineering Construction Works,1031\5109738288,02-Apr-20,"30,900.00",
SURFACE TRANSPORT CORP,TELENT TECHNOLOGY SERVICES LTD,Traffic Signals,1002\5109747401,22-Apr-20,"30,865.31",
TFL CORPORATE,ASHURST LLP,Legal Fees,1001\5109752561,27-Apr-20,"30,860.80",
DOCKLANDS LIGHT RAILWAY,RAMBOLL UK LTD,Professional Engineering Services,1012\5109744253,20-Apr-20,"30,769.15",
LONDON UNDERGROUND LTD,NETWORK RAIL,Traction Current,1005\5109717420,08-Apr-20,"30,670.02",
RAIL FOR LONDON LIMITED,ACOREL UK LTD,Management & Support Consultancy,1020\5109738142,21-Apr-20,"30,645.18",
SURFACE TRANSPORT CORP,CPC PROJECT SERVICES LLP,Professional Engineering Services,1002\5109751910,27-Apr-20,"30,576.75",
LUL NOMINEE SSL LIMITED,1STINRAIL LIMITED,Track General Maintenance,1031\5109740444,02-Apr-20,"30,539.64",
TFL CORPORATE,VCCP GROUP LLP,Agency Fees Paid To Marketing Agencies,1001\5109736359,15-Apr-20,"30,507.50",
SURFACE TRANSPORT CORP,TELENT TECHNOLOGY SERVICES LTD,Contracted Services - Roads,1002\5109747400,22-Apr-20,"30,418.40",
DOCKLANDS LIGHT RAILWAY,CH2M HILL UNITED KINGDOM,Professional Engineering Services,1012\5109730162,15-Apr-20,"30,385.91",
LONDON UNDERGROUND LTD,KN NETWORK SERVICES LTD,MR Construction Costs,1005\5109740658,22-Apr-20,"30,376.80",
LUL NOMINEE BCV LIMITED,DIRECT TRACK SOLUTIONS LTD,Fleet,1033\5109744601,08-Apr-20,"30,332.50",
LONDON UNDERGROUND LTD,NETWORK RAIL,General Insurance,1005\5109725221,01-Apr-20,"30,216.22",
SURFACE TRANSPORT CORP,CADENT GAS LIMITED,Contracted Services - Roads,1002\5109745092,27-Apr-20,"30,204.17",
LONDON UNDERGROUND LTD,JACOBS U.K LIMITED,Planning & Development Consultancy,1005\5109729535,08-Apr-20,"30,161.53",
LUL NOMINEE BCV LIMITED,LIONWELD KENNEDY FLOORING LTD,Maintenance Materials,1033\5109741631,15-Apr-20,"30,157.00",
LONDON UNDERGROUND LTD,HAYLEY GROUP PLC,Signalling Systems,1005\5109733958,22-Apr-20,"30,150.00",
TFL CORPORATE,INSIGHT DIRECT UK LIMITED,Computer Software,1001\5109725286,08-Apr-20,"30,038.40",
TFL CORPORATE,ERNST & YOUNG LLP,Financial Statement Audit Fees,1001\5109744400,22-Apr-20,"30,016.00",
TFL CORPORATE,ATKINS LIMITED,Management & Support Consultancy,1001\5109733633,20-Apr-20,"30,012.50",
TFL CORPORATE,MOTT MACDONALD LIMITED,Planning & Development Consultancy,1001\5109730957,15-Apr-20,"30,000.00",
TFL CORPORATE,OLD OAK & PARK ROYAL DEV CORP,Planning & Development Consultancy,1001\5109743951,07-Apr-20,"30,000.00",
SURFACE TRANSPORT CORP,CITY OF WESTMINSTER,Borough Services,1002\1900064512,20-Apr-20,"30,000.00",
RFL (INFRASTRUCTURE) LTD,RAIL SERVICES CORP LIMITED,Professional Engineering Services,1025\5109730151,08-Apr-20,"30,000.00",
LONDON UNDERGROUND LTD,POD-TRAK LTD,MR Construction Costs,1005\5109740676,03-Apr-20,"29,950.74",
LUL NOMINEE SSL LIMITED,1STINRAIL LIMITED,Building Maintenance & Repairs,1031\5109748328,17-Apr-20,"29,927.68",
LONDON UNDERGROUND LTD,SOLUTION RAIL LIMITED,MR Construction Costs,1005\5109744628,08-Apr-20,"29,925.31",
SURFACE TRANSPORT CORP,GARDINER & THEOBALD LLP,Professional Engineering Services,1002\5109740956,08-Apr-20,"29,900.00",
LONDON UNDERGROUND LTD,ENGIE SERVICES LTD,Equipment Repairs & Maintenance,1005\5109745650,29-Apr-20,"29,774.82",
LONDON UNDERGROUND LTD,TELENT TECHNOLOGY SERVICES LTD,Signalling Systems,1005\5109740153,02-Apr-20,"29,615.39",
LONDON UNDERGROUND LTD,TELENT TECHNOLOGY SERVICES LTD,Signalling Systems,1005\5109740156,02-Apr-20,"29,615.39",
SURFACE TRANSPORT CORP,SIEMENS,Traffic Signals,1002\5109740566,08-Apr-20,"29,602.62",
LONDON UNDERGROUND LTD,RWDI,Planning & Development Consultancy,1005\5109739686,01-Apr-20,"29,460.00",
LUL NOMINEE SSL LIMITED,MCGINLEY SUPPORT SERVICES LTD,Track General Maintenance,1031\5109747175,15-Apr-20,"29,406.88",
TRANSPORT TRADING LTD,ASPIRE,Planning & Development Consultancy,1004\5109740236,06-Apr-20,"29,400.00",
LUL NOMINEE BCV LIMITED,KGJ PRICE LTD,Track General Maintenance,1033\5109733785,01-Apr-20,"29,400.00",
LONDON BUS SERVICES LTD,TRAPEZE PTI LTD,Maintenance of Plant & Equipment,1006\5109741942,29-Apr-20,"29,289.60",
LUL NOMINEE BCV LIMITED,REHAU LTD,Track General Maintenance,1033\5109720407,01-Apr-20,"29,250.48",
TRANSPORT TRADING LTD,BERWIN LEIGHTON PAISNER,Legal Fees,1004\5109754313,29-Apr-20,"29,172.00",
DOCKLANDS LIGHT RAILWAY,EXCEL EXHIBITION CENTRE,Professional Engineering Services,1012\5109741708,07-Apr-20,"29,166.67",
DOCKLANDS LIGHT RAILWAY,EXCEL EXHIBITION CENTRE,Professional Engineering Services,1012\5109741718,07-Apr-20,"29,166.67",
LONDON UNDERGROUND LTD,1STINRAIL LIMITED,Track General Maintenance,1005\5109737906,07-Apr-20,"29,096.00",
LONDON UNDERGROUND LTD,MCGINLEY SUPPORT SERVICES LTD,Track General Maintenance,1005\5109749227,21-Apr-20,"29,025.36",
SURFACE TRANSPORT CORP,TELENT TECHNOLOGY SERVICES LTD,Traffic Signals,1002\5109741147,20-Apr-20,"29,010.51",
LONDON UNDERGROUND LTD,LENDLEASE JACOBS JOINT VENTURE,MR Construction Costs,1005\5109737473,20-Apr-20,"28,955.94",
LONDON BUS SERVICES LTD,VINCI CONSTRUCTION UK LTD,Building Maintenance & Repairs,1006\5109739547,03-Apr-20,"28,915.01",
TFL CORPORATE,LEND LEASE CONSULTING (EMEA) LTD,Professional Engineering Services,1001\5109733184,01-Apr-20,"28,905.00",
LONDON UNDERGROUND LTD,ONE TRANSPORT LIMITED,Travel to/from work (Unsocial Hours),1005\5109748876,20-Apr-20,"28,762.43",
TRANSPORT TRADING LTD,CITY OF WESTMINSTER,Rates,1004\1901672252,15-Apr-20,"28,728.00",
LONDON UNDERGROUND LTD,BYWATERS (LEYTON) LIMITED,Non Recyclable Waste Disposal/Refuse Collection,1005\5109729190,15-Apr-20,"28,697.37",
TFL CORPORATE,COMPUTACENTER PLC,Computer Hardware,1001\5109741263,27-Apr-20,"28,616.00",
TRANSPORT TRADING LTD,BERWIN LEIGHTON PAISNER,Legal Fees,1004\5109754303,29-Apr-20,"28,593.50",
LONDON UNDERGROUND LTD,NETWORK RAIL,National Rail Long Term Charges,1005\5109730669,08-Apr-20,"28,584.37",
LUL NOMINEE SSL LIMITED,KNORR-BREMSE RAIL LTD ,Fleet,1031\5109715119,01-Apr-20,"28,542.40",
SURFACE TRANSPORT CORP,TRUEFORM ENGINEERING LTD,Contracted Services - Roads,1002\5109744452,08-Apr-20,"28,512.56",
SURFACE TRANSPORT CORP,2CV RESEARCH,Vehicle Repairs & Maintenance,1002\5109733387,20-Apr-20,"28,425.00",
RAIL FOR LONDON LIMITED,T-T PUMPS LTD,Management & Support Consultancy,1020\5109738146,06-Apr-20,"28,420.00",
LUL NOMINEE SSL LIMITED,ABB POWER GRIDS UK LIMITED,Traction Current,1031\5109739792,06-Apr-20,"28,400.63",
TRANSPORT TRADING LTD,MOTT MACDONALD LIMITED,Planning & Development Consultancy,1004\5109733546,15-Apr-20,"28,393.74",
RAIL FOR LONDON LIMITED,OTB ENGINEERING LTD,Professional Engineering Services,1020\5109741712,08-Apr-20,"28,245.00",
LONDON UNDERGROUND LTD,JONES LANG LASALLE,Other Professional Fees,1005\5109747441,27-Apr-20,"28,226.25",
SURFACE TRANSPORT CORP,VCCP GROUP LLP,Agency Fees Paid To Marketing Agencies,1002\5109725635,08-Apr-20,"28,166.00",
TFL CORPORATE,COPPERMAN CONSULTING LTD,IT Consultancy,1001\5109745742,14-Apr-20,"28,098.00",
TFL CORPORATE,MEDIAEDGE,Partnership Marketing - Costs Incurred,1001\5109732783,06-Apr-20,"28,028.00",
LONDON BUS SERVICES LTD,EAST LONDON BUS & COACH COMPANY LTD,Bus Contract Payments,1006\1900044104,17-Apr-20,"28,017.11",
LONDON UNDERGROUND LTD,MOTT MACDONALD LIMITED,Professional Engineering Services,1005\5109754233,29-Apr-20,"27,911.07",
TRANSPORT TRADING LTD,LONDON BOROUGH OF CAMDEN,Rates,1004\1901671670,15-Apr-20,"27,904.00",
LONDON BUS SERVICES LTD,SULLIVAN BUS & COACH LTD,Rail Replacement Service Costs,1006\1900044172,27-Apr-20,"27,900.00",
LONDON UNDERGROUND LTD,OLDHAM ENGINEERING LTD,Fleet,1005\5109737614,20-Apr-20,"27,888.00",
LONDON UNDERGROUND LTD,SCHWEERBAU GMBH & CO.KG *PAID BACS*,Track General Maintenance,1005\5109723186,06-Apr-20,"27,808.84",
LUL NOMINEE SSL LIMITED,FERRABYRNE LTD,Fleet,1031\5109738328,29-Apr-20,"27,791.36",
LUL NOMINEE BCV LIMITED,REHAU LTD,Track General Maintenance,1033\5109720386,01-Apr-20,"27,753.60",
LUL NOMINEE BCV LIMITED,REHAU LTD,Track General Maintenance,1033\5109741375,22-Apr-20,"27,753.60",
TFL CORPORATE,ATKINS LIMITED,Management & Support Consultancy,1001\5109720284,01-Apr-20,"27,731.25",
LONDON UNDERGROUND LTD,WAVE UTILITIES,Water,1005\1900213709,06-Apr-20,"27,690.97",
LONDON UNDERGROUND LTD,WRAGGE & CO,Legal Fees,1005\5109752073,27-Apr-20,"27,618.50",
SURFACE TRANSPORT CORP,RINGWAY JACOBS LIMITED,Statutory Ads Notices Communications & Consultatio,1002\5109754600,29-Apr-20,"27,600.00",
TRANSPORT TRADING LTD,RYANS BUILDING & CIVIL ENGINEERING,Fire and Safety Equipment,1004\5109730722,01-Apr-20,"27,500.05",
RAIL FOR LONDON LIMITED,LINBROOKE SERVICES LTD,Management & Support Consultancy,1020\5109747119,27-Apr-20,"27,494.50",
TFL CORPORATE,2CV RESEARCH,Research For Marketing Campaigns And Activities,1001\5109724571,08-Apr-20,"27,400.00",
LONDON UNDERGROUND LTD,EAST,Planning & Development Consultancy,1005\5109744278,07-Apr-20,"27,360.00",
LONDON UNDERGROUND LTD,BERWIN LEIGHTON PAISNER,Legal Fees,1005\5109745604,27-Apr-20,"27,308.28",
LONDON UNDERGROUND LTD,SKANSKA CONTRUCTIONS UK LTD,Civil Engineering Construction Works,1005\5109740794,08-Apr-20,"27,299.88",
LUL NOMINEE SSL LIMITED,LENDLEASE JACOBS JOINT VENTURE,MR Construction Costs,1031\5109738305,20-Apr-20,"27,294.38",
LONDON UNDERGROUND LTD,JNG CONSTRUCTION & ENGINEERING,MR Construction Costs,1005\5109755737,01-May-20,"27,284.14",
LONDON BUS SERVICES LTD,SULLIVAN BUS & COACH LTD,Rail Replacement Service Costs,1006\1900044054,06-Apr-20,"27,271.58",
LONDON UNDERGROUND LTD,SOUTH WESTERN RAILWAY,National Rail Qualifying Expenditure Charges,1005\5109724183,06-Apr-20,"27,270.31",
SURFACE TRANSPORT CORP,LONDON BOROUGH OF SOUTHWARK,Contracted Services - Roads,1002\5109739448,03-Apr-20,"27,256.96",
LUL NOMINEE BCV LIMITED,TELENT TECHNOLOGY SERVICES LTD,Cameras,1033\5109742378,22-Apr-20,"27,255.44",
SURFACE TRANSPORT CORP,KELWAY (UK),Computer Software,1002\5109745585,15-Apr-20,"27,242.79",
SURFACE TRANSPORT CORP,SIEMENS,Traffic Signals,1002\5109745586,15-Apr-20,"27,229.71",
LONDON UNDERGROUND LTD,LENDLEASE JACOBS JOINT VENTURE,MR Construction Costs,1005\5109730849,08-Apr-20,"27,144.00",
LUL NOMINEE BCV LIMITED,MORGANITE ELECTRICAL CARBON LTD,Maintenance Materials,1033\5109752389,27-Apr-20,"27,100.00",
LONDON UNDERGROUND LTD,ALBA POWER LIMITED,Electrical Equipment Maintenance,1005\5109741045,21-Apr-20,"27,060.00",
RAIL FOR LONDON LIMITED,LANES GROUP PLC,Property Management Fees,1020\5109728838,06-Apr-20,"27,012.04",
TRANSPORT TRADING LTD,NOVACROFT DIRECT LTD,Ticket & Pass Production,1004\5109744531,16-Apr-20,"27,000.00",
LONDON UNDERGROUND LTD,TURNER & TOWNSEND LLP,Planning & Development Consultancy,1005\5109681232,01-Apr-20,"27,000.00",
LUL NOMINEE SSL LIMITED,MCGINLEY SUPPORT SERVICES LTD,Track General Maintenance,1031\5109748412,17-Apr-20,"26,995.20",
LONDON UNDERGROUND LTD,HOLOPHANE EUROPE LTD,Heating & Lighting,1005\5109737894,15-Apr-20,"26,931.00",
TRANSPORT TRADING LTD,CITY OF WESTMINSTER,Rates,1004\1901672215,15-Apr-20,"26,866.00",
LONDON UNDERGROUND LTD,COMPUTACENTER PLC,Computer Hardware,1005\5109737124,02-Apr-20,"26,862.72",
LONDON UNDERGROUND LTD,WEATHERPROOFING ADVISORS,Traction Current,1005\5109755572,01-May-20,"26,827.02",
LONDON UNDERGROUND LTD,KPMG,Planning & Development Consultancy,1005\5109740277,22-Apr-20,"26,811.25",
SURFACE TRANSPORT CORP,ARDENT MANAGEMENT LTD,Planning & Development Consultancy,1002\5109739384,15-Apr-20,"26,806.50",
DIAL A RIDE,HACKNEY COMMUNITY TRANSPORT,Operator Costs,1010\5109739613,08-Apr-20,"26,801.27",
LUL NOMINEE SSL LIMITED,MCGINLEY SUPPORT SERVICES LTD,Track General Maintenance,1031\5109749239,21-Apr-20,"26,787.60",
DIAL A RIDE,HACKNEY COMMUNITY TRANSPORT,Operator Costs,1010\5109744423,08-Apr-20,"26,732.24",
LUL NOMINEE SSL LIMITED,CPC PROJECT SERVICES LLP,Civil Engineering Construction Works,1031\5109738280,14-Apr-20,"26,712.50",
TRANSPORT TRADING LTD,BERWIN LEIGHTON PAISNER,Legal Fees,1004\5109754295,29-Apr-20,"26,659.50",
LONDON RIVER SERVICES LTD,PORT OF LONDON AUTHORITY,Pier Charges,1007\5109744045,29-Apr-20,"26,631.06",
LONDON BUS SERVICES LTD,AECOM LTD,Contracted Services - Roads,1006\5109733177,01-Apr-20,"26,532.99",
LONDON UNDERGROUND LTD,NETWORK RAIL,National Rail Fixed Track Access Charges,1005\5109717103,08-Apr-20,"26,474.27",
SURFACE TRANSPORT CORP,PTV UK,Computer Software,1002\5109744708,08-Apr-20,"26,465.50",
RAIL FOR LONDON LIMITED,LENDLEASE JACOBS JOINT VENTURE,Professional Engineering Services,1020\5109738119,06-Apr-20,"26,443.88",
TFL CORPORATE,MORSON PROJECTS LIMITED,Management & Support Consultancy,1001\5109745015,08-Apr-20,"26,437.80",
LUL NOMINEE BCV LIMITED,VOITH TURBO LTD,Fleet,1033\5109725995,08-Apr-20,"26,417.15",
LONDON BUS SERVICES LTD,MITIE CLEANING & ENVIRONMENTAL,"Maps, Timetables & Fare Information",1006\5109724391,08-Apr-20,"26,389.93",
LONDON BUS SERVICES LTD,TRUEFORM ENGINEERING LTD,Building Maintenance & Repairs,1006\5109744334,08-Apr-20,"26,271.11",
LUL NOMINEE SSL LIMITED,CPC PROJECT SERVICES LLP,Civil Engineering Construction Works,1031\5109745797,17-Apr-20,"26,117.00",
RFL (INFRASTRUCTURE) LTD,OVE ARUP & PARTNERS LTD,Management & Support Consultancy,1025\5109725977,08-Apr-20,"26,040.00",
LONDON BUS SERVICES LTD,TRAPEZE PTI LTD,Radio Systems Equipment & Maintenance,1006\5109745245,09-Apr-20,"26,022.00",
LONDON UNDERGROUND LTD,NORTON & ASSOCIATES LTD,Traction Current,1005\5109742352,15-Apr-20,"25,893.85",
RAIL FOR LONDON LIMITED,OTB ENGINEERING LTD,Professional Engineering Services,1020\5109744003,08-Apr-20,"25,882.50",
LONDON UNDERGROUND LTD,NETWORK RAIL,National Rail Long Term Charges,1005\5109730667,08-Apr-20,"25,877.63",
LONDON UNDERGROUND LTD,CAPITA BUSINESS SERVICES LTD,IT Consultancy,1005\5109677086,20-Apr-20,"25,861.07",
LONDON UNDERGROUND LTD,NCP SERVICES LTD,Costs of Disp Inv Prop - TTL Planning,1005\5109747290,27-Apr-20,"25,854.49",
TRANSPORT TRADING LTD,LONDON BOROUGH OF SOUTHWARK,Rates,1004\1901671820,15-Apr-20,"25,669.00",
LONDON UNDERGROUND LTD,CAPITA BUSINESS SERVICES LTD,Maintenance of Telecommunications Equipment,1005\5109737879,15-Apr-20,"25,631.17",
LUL NOMINEE SSL LIMITED,CPC PROJECT SERVICES LLP,Civil Engineering Construction Works,1031\5109738350,14-Apr-20,"25,625.00",
LONDON BUS SERVICES LTD,METROLINE TRAVEL LTD,Maintenance of Bus Stations LBL,1006\1900043892,01-Apr-20,"25,586.05",
LUL NOMINEE SSL LIMITED,MCGINLEY SUPPORT SERVICES LTD,Track General Maintenance,1031\5109745801,14-Apr-20,"25,571.20",
LONDON UNDERGROUND LTD,JONES LANG LASALLE,Other Professional Fees,1005\5109737228,27-Apr-20,"25,556.25",
LONDON RIVER SERVICES LTD,BRIGGS MARINE CONTRACTORS LIMITED,Operator Costs,1007\5109740541,22-Apr-20,"25,494.48",
TRANSPORT TRADING LTD,OAKLAND BUILDING SERVICES LTD,Building Maintenance & Repairs,1004\5109717927,01-Apr-20,"25,492.72",
LONDON UNDERGROUND LTD,NEWBRIDGE ADVISORS,Planning & Development Consultancy,1005\5109744530,14-Apr-20,"25,381.00",
SURFACE TRANSPORT CORP,TELENT TECHNOLOGY SERVICES LTD,Traffic Signals,1002\5109740670,08-Apr-20,"25,366.70",
LUL NOMINEE SSL LIMITED,DUCTCLEAN (UK) LTD T/A DCUK FM,Building Maintenance & Repairs,1031\5109754645,29-Apr-20,"25,320.90",
LONDON UNDERGROUND LTD,G PRINT LTD,Vehicle Repairs & Maintenance,1005\5109740505,22-Apr-20,"25,320.00",
LUL NOMINEE SSL LIMITED,MORSON HUMAN RESOURCES LTD,Track General Maintenance,1031\5109747111,15-Apr-20,"25,301.92",
LUL NOMINEE SSL LIMITED,CLESHAR CONTRACT SERVICES LTD,Track General Maintenance,1031\5109748083,20-Apr-20,"25,296.48",
TFL CORPORATE,EVERSHEDS,Legal Fees,1001\5109739669,01-Apr-20,"25,294.00",
RAIL FOR LONDON LIMITED,ATKINS LIMITED,Professional Engineering Services,1020\5109738126,15-Apr-20,"25,263.92",
LONDON UNDERGROUND LTD,NCP SERVICES LTD,Costs of Disp Inv Prop - TTL Planning,1005\5109740291,22-Apr-20,"25,194.49",
SURFACE TRANSPORT CORP,TELENT TECHNOLOGY SERVICES LTD,Road Maintenance,1002\5109739447,02-Apr-20,"25,163.65",
LUL NOMINEE SSL LIMITED,CLESHAR CONTRACT SERVICES LTD,Track General Maintenance,1031\5109748218,20-Apr-20,"25,156.07",
DOCKLANDS LIGHT RAILWAY,RJ POWER RAIL LIMITED,Civil Engineering Construction Works,1012\5109741715,07-Apr-20,"25,142.09",
TFL CORPORATE,TOTAL CONFLICT MANAGEMENT LTD,Staff Training,1001\5109736236,07-Apr-20,"25,140.00",
LONDON BUS SERVICES LTD,TRUEFORM ENGINEERING LTD,Maintenance of  Bus Stops,1006\5109739782,01-Apr-20,"25,116.02",
LONDON UNDERGROUND LTD,MILWAUKEE COMPOSITES INC.,Maintenance Materials,1005\5109742532,30-Apr-20,"25,050.00",
TFL CORPORATE,CAPITA BUSINESS SERVICES LTD,Recruitment Expenses,1001\5109736189,03-Apr-20,"25,035.00",
TFL CORPORATE,STEER,Planning & Development Consultancy,1001\5109730287,15-Apr-20,"25,000.00",
TFL CORPORATE,WSP UK LTD,Planning & Development Consultancy,1001\5109736326,15-Apr-20,"25,000.00",
TRANSPORT TRADING LTD,DELOITTE,Planning & Development Consultancy,1004\5109729995,01-Apr-20,"25,000.00",
SURFACE TRANSPORT CORP,HERBERT SMITH LLP,Legal Fees,1002\5109752297,27-Apr-20,"25,000.00",
LONDON UNDERGROUND LTD,GERALD EVE,Other Professional Fees,1005\5109741585,20-Apr-20,"25,000.00",
RAIL FOR LONDON LIMITED,VOLKERRAIL SPECIALIST BUSINESSES LTD,Professional Engineering Services,1020\5109740871,15-Apr-20,"25,000.00",
LONDON BUS SERVICES LTD,TRUEFORM ENGINEERING LTD,Maintenance of  Bus Stops,1006\5109745232,09-Apr-20,"24,974.77",
TFL CORPORATE,COGNIZANT WORLDWIDE LIMITED,Software Maintenance,1001\5109745160,29-Apr-20,"24,916.00",
LONDON UNDERGROUND LTD,JNG CONSTRUCTION & ENGINEERING,MR Construction Costs,1005\5109742522,15-Apr-20,"24,879.42",
SURFACE TRANSPORT CORP,SKY HIGH PLC,Traffic Signals,1002\5109740117,15-Apr-20,"24,816.00",
LONDON TRANSPORT MUSEUM,VINCI CONSTRUCTION UK LTD,Building Maintenance & Repairs,1011\5109747336,15-Apr-20,"24,811.17",
RAIL FOR LONDON LIMITED,AECOM LTD,Professional Engineering Services,1020\5109738122,15-Apr-20,"24,749.46",
SURFACE TRANSPORT CORP,PROBRAND LTD,Software Maintenance,1002\5109742570,27-Apr-20,"24,713.67",
LUL NOMINEE SSL LIMITED,LENDLEASE JACOBS JOINT VENTURE,MR Construction Costs,1031\5109738304,27-Apr-20,"24,664.06",
LONDON UNDERGROUND LTD,GLEEDS COST MANAGEMENT LIMITED,Planning & Development Consultancy,1005\5109737636,08-Apr-20,"24,650.00",
LONDON BUS SERVICES LTD,LONDON SOVEREIGN LTD ,Bus Contract Payments,1006\1900044107,17-Apr-20,"24,636.78",
TFL CORPORATE,PROJECT 7 CONSULTANCY LTD,Management & Support Consultancy,1001\5109740408,27-Apr-20,"24,600.00",
TRANSPORT TRADING LTD,LONDON BOROUGH OF LAMBETH,Rates,1004\1901672476,15-Apr-20,"24,575.75",
LONDON BUS SERVICES LTD,HERBERT SMITH LLP,Legal Fees,1006\5109748074,20-Apr-20,"24,565.27",
TRANSPORT TRADING LTD,CITY OF LONDON ,Rates,1004\1901671757,15-Apr-20,"24,492.50",
TRANSPORT TRADING LTD,LONDON BOROUGH OF BRENT,Rates,1004\1901671597,15-Apr-20,"24,451.00",
TFL CORPORATE,O2 UK LTD,Computer Hardware,1001\5109736284,20-Apr-20,"24,400.00",
TFL CORPORATE,CLIFFORD CHANCE LLP,Legal Fees,1001\5109748142,20-Apr-20,"24,355.32",
TRANSPORT TRADING LTD,BERWIN LEIGHTON PAISNER,Legal Fees,1004\5109754319,29-Apr-20,"24,265.00",
LONDON TRANSPORT MUSEUM,GBM SERVICES LTD,Office Cleaning,1011\5109749292,27-Apr-20,"24,252.40",
SURFACE TRANSPORT CORP,CLIPFINE LIMITED,Contracted Services - Roads,1002\5109748273,20-Apr-20,"24,108.00",
TRANSPORT TRADING LTD,CYBERSOURCE  LIMITED,Software Maintenance,1004\5109744867,09-Apr-20,"24,085.03",
TFL CORPORATE,CORPORATE DOCUMENT SERVICES LTD,Agency Fees Paid To Marketing Agencies,1001\5109736366,06-Apr-20,"24,084.96",
RAIL FOR LONDON LIMITED,LENDLEASE JACOBS JOINT VENTURE,Professional Engineering Services,1020\5109730818,08-Apr-20,"24,078.24",
TFL CORPORATE,PROBRAND LTD,Software Maintenance,1001\5109741902,08-Apr-20,"24,075.00",
LONDON UNDERGROUND LTD,BYWATERS (LEYTON) LIMITED,Non Recyclable Waste Disposal/Refuse Collection,1005\5109729259,15-Apr-20,"24,073.44",
LONDON UNDERGROUND LTD,KPMG,Planning & Development Consultancy,1005\5109740269,22-Apr-20,"24,052.50",
LONDON UNDERGROUND LTD,WILLIAM COOK RAIL LTD,Equipment Repairs & Maintenance,1005\5109742033,22-Apr-20,"24,036.00",
TFL CORPORATE,GLOBAL OUTDOOR MEDIA LIMITED,Radio TV Press Poster Cinema Airtime And Space,1001\5109725549,01-Apr-20,"24,000.00",
CYCLE HIRE SCHEME,CSTS LTD,Concession Maintenance Charge,1016\5109721115,01-Apr-20,"23,992.77",
LONDON UNDERGROUND LTD,EVERSHEDS,Legal Fees,1005\5109750548,22-Apr-20,"23,981.60",
TFL CORPORATE,STOP GAP MARKETING,Recruitment Agency Fees,1001\5109751543,24-Apr-20,"23,959.50",
LONDON UNDERGROUND LTD,NCP SERVICES LTD,Planning & Development Consultancy,1005\5109740295,22-Apr-20,"23,958.58",
LONDON UNDERGROUND LTD,NCP SERVICES LTD,Planning & Development Consultancy,1005\5109747311,27-Apr-20,"23,958.58",
LONDON UNDERGROUND LTD,BYWATERS (LEYTON) LIMITED,Non Recyclable Waste Disposal/Refuse Collection,1005\5109740562,22-Apr-20,"23,897.89",
LONDON UNDERGROUND LTD,HOLOPHANE EUROPE LTD,Heating & Lighting,1005\5109741504,22-Apr-20,"23,878.82",
LONDON UNDERGROUND LTD,BRYEN & LANGLEY LTD,Building Maintenance & Repairs,1005\5109754472,29-Apr-20,"23,866.09",
LUL NOMINEE SSL LIMITED,CLESHAR CONTRACT SERVICES LTD,Track General Maintenance,1031\5109738223,27-Apr-20,"23,820.75",
SURFACE TRANSPORT CORP,GARDINER & THEOBALD LLP,Professional Engineering Services,1002\5109719439,01-Apr-20,"23,750.00",
RAIL FOR LONDON LIMITED,MTR CORPORATION (CROSSRAIL) LTD,Civil Engineering Construction Works,1020\5109742069,22-Apr-20,"23,721.56",
SURFACE TRANSPORT CORP,CSTS LTD,Traffic Signals,1002\5109730949,06-Apr-20,"23,692.49",
SURFACE TRANSPORT CORP,RINGWAY JACOBS LIMITED,Statutory Ads Notices Communications & Consultatio,1002\5109739720,01-Apr-20,"23,600.00",
LUL NOMINEE SSL LIMITED,CLESHAR CONTRACT SERVICES LTD,Track General Maintenance,1031\5109738221,27-Apr-20,"23,566.77",
LONDON BUS SERVICES LTD,INTEROUTE NETWORK LTD ,Maintenance of Plant & Equipment,1006\5109739574,15-Apr-20,"23,489.65",
LONDON UNDERGROUND LTD,SOLO RAIL SOLUTIONS LIMITED,Fleet,1005\5109740912,22-Apr-20,"23,459.84",
LONDON UNDERGROUND LTD,SOLO RAIL SOLUTIONS LIMITED,Fleet,1005\5109724405,06-Apr-20,"23,459.74",
LONDON UNDERGROUND LTD,SOLO RAIL SOLUTIONS LIMITED,Fleet,1005\5109729511,08-Apr-20,"23,459.74",
LONDON UNDERGROUND LTD,SOLO RAIL SOLUTIONS LIMITED,Fleet,1005\5109737578,20-Apr-20,"23,459.74",
LONDON UNDERGROUND LTD,SOLO RAIL SOLUTIONS LIMITED,Fleet,1005\5109739665,20-Apr-20,"23,459.74",
LONDON BUS SERVICES LTD,LONDON UNITED BUSWAYS,Bus Contract Payments,1006\1900044164,24-Apr-20,"23,440.22",
SURFACE TRANSPORT CORP,TELENT TECHNOLOGY SERVICES LTD,Traffic Signals,1002\5109740604,08-Apr-20,"23,347.55",
TRANSPORT TRADING LTD,ORMONDE GATE INVESTMENTS LTD,Management & Support Consultancy,1004\5109736458,27-Apr-20,"23,333.31",
RAIL FOR LONDON LIMITED,LLOYDS REGISTER RAIL LTD,Civil Engineering Construction Works,1020\5109742463,08-Apr-20,"23,248.97",
TFL CORPORATE,ATKINS LIMITED,Management & Support Consultancy,1001\5109720242,01-Apr-20,"23,231.25",
LONDON UNDERGROUND LTD,BT SERVICE AGILITY,Telephony Fixed,1005\1900213538,08-Apr-20,"23,228.76",
LONDON UNDERGROUND LTD,AUGMENTAS GROUP LIMITED,IT Consultancy,1005\5109742178,07-Apr-20,"23,125.00",
LONDON UNDERGROUND LTD,PLASSER UK LTD,Plant & Equipment Purchases,1005\5109733444,20-Apr-20,"23,081.22",
RAIL FOR LONDON LIMITED,T-T PUMPS LTD,Management & Support Consultancy,1020\5109729433,01-Apr-20,"23,080.41",
LUL NOMINEE SSL LIMITED,AEI CABLES LTD,Electrical & Electronic Engineering,1031\5109727893,08-Apr-20,"23,058.30",
TFL CORPORATE,VCCP GROUP LLP,Production Artwork And Design For Marketing,1001\5109732839,15-Apr-20,"23,005.00",
LONDON BUS SERVICES LTD,MILLBROOK PROVING GROUND LTD,Vehicle Repairs & Maintenance,1006\5109740469,22-Apr-20,"23,000.00",
LUL NOMINEE SSL LIMITED,SIEMENS,Fleet,1031\5109748158,20-Apr-20,"23,000.00",
TRANSPORT TRADING LTD,LONDON BOROUGH OF TOWER HAMLETS,Rates,1004\1901671916,15-Apr-20,"22,954.00",
LUL NOMINEE SSL LIMITED,KNORR-BREMSE RAIL LTD ,Fleet,1031\5109715178,01-Apr-20,"22,952.00",
LUL NOMINEE BCV LIMITED,JOHN BRADLEY & SON (SPRINGS) LTD,Plant & Equipment Purchases,1033\5109722939,01-Apr-20,"22,888.76",
LONDON UNDERGROUND LTD,METS LTD,Traction Current,1005\5109744567,08-Apr-20,"22,880.48",
LUL NOMINEE BCV LIMITED,AGGREGATE INDUSTRIES UK LTD,Maintenance Materials,1033\5109741645,22-Apr-20,"22,828.65",
LONDON UNDERGROUND LTD,CORONA ENERGY RETAIL 4 LTD,Gas,1005\5109723912,15-Apr-20,"22,821.07",
LONDON UNDERGROUND LTD,DYER & BUTLER LTD,Civil Engineering Construction Works,1005\5109752315,27-Apr-20,"22,799.56",
LUL NOMINEE SSL LIMITED,CLANCY DOCWRA LTD,Building Maintenance & Repairs,1031\5109727918,08-Apr-20,"22,757.80",
LONDON UNDERGROUND LTD,CORONA ENERGY RETAIL 4 LTD,Gas,1005\5109723915,15-Apr-20,"22,731.35",
LONDON UNDERGROUND LTD,MCGINLEY SUPPORT SERVICES LTD,Track General Maintenance,1005\5109748407,17-Apr-20,"22,726.40",
LUL NOMINEE SSL LIMITED,LANES GROUP PLC,Building Maintenance & Repairs,1031\5109741658,06-Apr-20,"22,601.38",
LUL NOMINEE SSL LIMITED,MORSON HUMAN RESOURCES LTD,Track General Maintenance,1031\5109747276,15-Apr-20,"22,585.60",
LONDON UNDERGROUND LTD,WESTON WILLIAMSON ARCHITECTS,Planning & Development Consultancy,1005\5109744619,14-Apr-20,"22,527.00",
LONDON UNDERGROUND LTD,"SISCOG - SISTEMAS COGNITIVOS, SA",Computer Software,1005\5109739742,24-Apr-20,"22,526.58",
TFL CORPORATE,GARDINER & THEOBALD LLP,Planning & Development Consultancy,1001\5109719639,01-Apr-20,"22,515.25",
LONDON UNDERGROUND LTD,ATKINS LIMITED,Planning & Development Consultancy,1005\5109737519,22-Apr-20,"22,500.00",
LONDON BUS SERVICES LTD,METROLINE TRAVEL LTD,Vehicle Repairs & Maintenance,1006\5109722922,06-Apr-20,"22,390.00",
LONDON UNDERGROUND LTD,TELENT TECHNOLOGY SERVICES LTD,MR Construction Costs,1005\5109748258,27-Apr-20,"22,228.47",
TFL CORPORATE,MEDIAEDGE,Radio TV Press Poster Cinema Airtime And Space,1001\5109732932,06-Apr-20,"22,225.05",
TRANSPORT TRADING LTD,CITY OF WESTMINSTER,Rates,1004\1901672237,15-Apr-20,"22,144.00",
LONDON UNDERGROUND LTD,MCGINLEY SUPPORT SERVICES LTD,Track General Maintenance,1005\5109750521,21-Apr-20,"22,105.60",
LONDON UNDERGROUND LTD,MCGINLEY SUPPORT SERVICES LTD,Track General Maintenance,1005\5109750527,21-Apr-20,"22,105.60",
LUL NOMINEE SSL LIMITED,4 RAIL SERVICES LTD,Building Maintenance & Repairs,1031\5109738388,08-Apr-20,"22,050.00",
LONDON UNDERGROUND LTD,POWERDAY PLC,Non Recyclable Waste Disposal/Refuse Collection,1005\5109741269,27-Apr-20,"22,042.13",
LONDON UNDERGROUND LTD,D & D RAIL LTD,Building Maintenance & Repairs,1005\5109754256,29-Apr-20,"22,016.40",
TRANSPORT TRADING LTD,HAYS ACCOUNTANCY PERSONNEL,Agency Staff,1004\5109734467,27-Apr-20,"21,991.97",
TFL CORPORATE,LENDLEASE JACOBS JOINT VENTURE,MR Construction Costs,1001\5109745044,27-Apr-20,"21,986.00",
SURFACE TRANSPORT CORP,TURNAMMS ASSESSORS,Other Spares stock issues,1002\1900064792,15-Apr-20,"21,970.69",
LUL NOMINEE BCV LIMITED,MODULAR DISTRIBUTION SYSTEMS,Lifts & Escalators stock issues,1033\5109729072,08-Apr-20,"21,954.96",
LONDON BUS SERVICES LTD,LONDON UNITED BUSWAYS,Bus Contract Payments,1006\1900044108,17-Apr-20,"21,920.82",
LUL NOMINEE SSL LIMITED,MITSUBISHI ELECTRIC EUROPE BV,Fleet,1031\5109741178,08-Apr-20,"21,900.00",
LUL NOMINEE SSL LIMITED,MITSUBISHI ELECTRIC EUROPE BV,Fleet,1031\5109741181,24-Apr-20,"21,900.00",
LONDON UNDERGROUND LTD,SKANSKA CONTRUCTIONS UK LTD,Civil Engineering Construction Works,1005\5109752812,29-Apr-20,"21,735.60",
TRANSPORT TRADING LTD,LONDON BOROUGH OF HARINGEY,Rates,1004\1901672096,15-Apr-20,"21,706.50",
LONDON RIVER SERVICES LTD,PORT OF LONDON AUTHORITY,Pier Charges,1007\5109744047,29-Apr-20,"21,684.32",
TFL CORPORATE,SUSTRANS LTD,Agency Fees Paid To Marketing Agencies,1001\5109725548,08-Apr-20,"21,634.17",
LONDON UNDERGROUND LTD,MASON ADVISORY LTD,Planning & Development Consultancy,1005\5109737917,09-Apr-20,"21,600.00",
PUBLIC CARRIAGE OFFICE,HOME OFFICE,Transport Planning Consultancy & Services,1003\5109727590,01-Apr-20,"21,588.36",
TRANSPORT TRADING LTD,MOTT MACDONALD LIMITED,Management & Support Consultancy,1004\5109724423,06-Apr-20,"21,574.80",
TRANSPORT TRADING LTD,HAYS ACCOUNTANCY PERSONNEL,Agency Staff,1004\5109721879,06-Apr-20,"21,566.17",
LONDON UNDERGROUND LTD,CLESHAR CONTRACT SERVICES LTD,Signalling Systems,1005\5109729571,15-Apr-20,"21,539.72",
LUL NOMINEE BCV LIMITED,AGGREGATE INDUSTRIES UK LTD,Maintenance Materials,1033\5109739907,15-Apr-20,"21,476.84",
RAIL FOR LONDON LIMITED,HYDER CONSULTING (UK) LTD,Professional Engineering Services,1020\5109748410,20-Apr-20,"21,471.51",
LONDON UNDERGROUND LTD,SYNECTIC SYSTEMS GROUP,Equipment Repairs & Maintenance,1005\5109718744,01-Apr-20,"21,462.64",
SURFACE TRANSPORT CORP,INDRA SISTEMAS S.A.-BRANCH IN UK,Software Maintenance,1002\5109722646,01-Apr-20,"21,440.29",
RAIL FOR LONDON LIMITED,TELENT TECHNOLOGY SERVICES LTD,Electrical & Electronic Engineering,1020\5109738113,08-Apr-20,"21,431.78",
LONDON BUS SERVICES LTD,VINCI CONSTRUCTION UK LTD,Building Maintenance & Repairs,1006\5109747269,27-Apr-20,"21,400.85",
LONDON UNDERGROUND LTD,GBM SERVICES LTD,Office Cleaning,1005\5109729480,08-Apr-20,"21,383.40",
LONDON UNDERGROUND LTD,DELATIM LIMITED,MR Construction Costs,1005\5109755752,01-May-20,"21,367.51",
LONDON UNDERGROUND LTD,HEGENSCHEIDT-MFD GMBH,Fleet,1005\5109737808,16-Apr-20,"21,350.00",
TFL CORPORATE,INTERFLEET TECHNOLOGY LIMITED,Management & Support Consultancy,1001\5109736295,08-Apr-20,"21,332.20",
TRANSPORT TRADING LTD,CITY OF WESTMINSTER,Rates,1004\1901672217,15-Apr-20,"21,248.00",
RAIL FOR LONDON LIMITED,CLESHAR CONTRACT SERVICES LTD,Management & Support Consultancy,1020\5109743924,29-Apr-20,"21,205.08",
LUL NOMINEE SSL LIMITED,HOLBRO ENGINEERING LTD,Fleet,1031\5109752607,27-Apr-20,"21,195.00",
TRANSPORT TRADING LTD,TURNER & TOWNSEND LLP,Planning & Development Consultancy,1004\5109732750,15-Apr-20,"21,168.00",
LONDON UNDERGROUND LTD,IES LTD,Maintenance Materials,1005\5109739952,14-Apr-20,"21,144.77",
DOCKLANDS LIGHT RAILWAY,DYER & BUTLER LTD,Civil Engineering Construction Works,1012\5109738076,08-Apr-20,"21,133.64",
LONDON UNDERGROUND LTD,JNG CONSTRUCTION & ENGINEERING,Management & Support Consultancy,1005\5109737445,15-Apr-20,"21,112.09",
LONDON UNDERGROUND LTD,QUINN INFRASTRUCTURE SERVICES LTD,Escalators,1005\5109744534,29-Apr-20,"21,101.02",
LONDON UNDERGROUND LTD,GVA GRIMLEY LTD ,Planning & Development Consultancy,1005\5109748797,29-Apr-20,"21,072.00",
LONDON UNDERGROUND LTD,CLESHAR CONTRACT SERVICES LTD,Signalling Systems,1005\5109752854,29-Apr-20,"21,069.36",
LONDON UNDERGROUND LTD,MACEMAIN & AMSTAD LIMITED,MR Construction Costs,1005\5109741566,06-Apr-20,"21,062.78",
TFL CORPORATE,ATKINS LIMITED,Planning & Development Consultancy,1001\5109750566,27-Apr-20,"21,047.75",
RAIL FOR LONDON LIMITED,OSL RAIL LTD,Civil Engineering Construction Works,1020\5109748546,24-Apr-20,"21,038.53",
SURFACE TRANSPORT CORP,SIEMENS,Maintenance of Plant & Equipment,1002\5109739476,20-Apr-20,"20,881.26",
SURFACE TRANSPORT CORP,SIEMENS,Maintenance of Plant & Equipment,1002\5109739477,20-Apr-20,"20,881.26",
LONDON UNDERGROUND LTD,STEPHENSON HARWOOD,Legal Fees,1005\5109748326,20-Apr-20,"20,880.20",
LONDON UNDERGROUND LTD,SPECIALISED TOOLS & EQUIPMENT,Plant & Equipment Purchases,1005\5109744262,09-Apr-20,"20,868.00",
TRANSPORT TRADING LTD,LONDON BOROUGH OF ISLINGTON,Rates,1004\1901672332,15-Apr-20,"20,833.25",
LONDON UNDERGROUND LTD,SKANSKA CONTRUCTIONS UK LTD,Building Maintenance & Repairs,1005\5109752797,27-Apr-20,"20,768.22",
SURFACE TRANSPORT CORP,TORO RISK SOLUTIONS-GLOBAL LIMITED,Property Management Fees,1002\5109744637,15-Apr-20,"20,755.39",
RAIL FOR LONDON LIMITED,CENTRE OF ADVERTISE EU LTD,Management & Support Consultancy,1020\5109740267,07-Apr-20,"20,750.00",
TRANSPORT TRADING LTD,LONDON BOROUGH OF TOWER HAMLETS,Rates,1004\1901671927,15-Apr-20,"20,736.00",
TRANSPORT TRADING LTD,LONDON BOROUGH OF CAMDEN,Rates,1004\1901671669,15-Apr-20,"20,728.00",
LONDON UNDERGROUND LTD,SIEMENS,Signalling Systems,1005\5109739861,20-Apr-20,"20,725.80",
LONDON UNDERGROUND LTD,GVA GRIMLEY LTD ,Planning & Development Consultancy,1005\5109733628,20-Apr-20,"20,715.47",
TFL CORPORATE,ENVIRONMENT AGENCY,Planning & Development Consultancy,1001\5109725247,01-Apr-20,"20,699.25",
SURFACE TRANSPORT CORP,SIEMENS,Road Maintenance,1002\5109741537,08-Apr-20,"20,679.18",
SURFACE TRANSPORT CORP,HUNTRESS SEARCH LTD,Passenger Surveys,1002\5109725257,08-Apr-20,"20,673.26",
LONDON UNDERGROUND LTD,BYWATERS (LEYTON) LIMITED,Non Recyclable Waste Disposal/Refuse Collection,1005\5109740559,22-Apr-20,"20,669.67",
LONDON UNDERGROUND LTD,SKANSKA CONTRUCTIONS UK LTD,Civil Engineering Construction Works,1005\5109740796,08-Apr-20,"20,609.88",
RAIL FOR LONDON LIMITED,TRAM OPERATIONS LIMITED,Franchise/Concession Variable Fee,1020\5109745974,15-Apr-20,"20,581.07",
LUL NOMINEE BCV LIMITED,HAYLEY GROUP PLC,Maintenance Materials,1033\5109725076,08-Apr-20,"20,562.20",
TRANSPORT TRADING LTD,ROYAL BOROUGH OF KINGSTON UPON THAMES,Rates,1004\1901672444,15-Apr-20,"20,459.00",
SURFACE TRANSPORT CORP,LONDON BOROUGH OF WALTHAM FOREST,Borough Services,1002\1900064331,06-Apr-20,"20,457.54",
TFL CORPORATE,RIPPLE ROCK LTD.,Computer Software,1001\5109741829,14-Apr-20,"20,418.75",
TFL CORPORATE,O2 UK LTD,Computer Hardware,1001\5109751598,29-Apr-20,"20,400.00",
TRANSPORT TRADING LTD,HAYS ACCOUNTANCY PERSONNEL,Agency Staff,1004\5109726931,08-Apr-20,"20,399.19",
LUL NOMINEE BCV LIMITED,SUPERFORM ALUMINIUM,Maintenance Materials,1033\5109743945,08-Apr-20,"20,358.75",
LUL NOMINEE BCV LIMITED,SUPERFORM ALUMINIUM,Maintenance Materials,1033\5109743947,08-Apr-20,"20,358.75",
LUL NOMINEE BCV LIMITED,SUPERFORM ALUMINIUM,Maintenance Materials,1033\5109743952,08-Apr-20,"20,358.75",
LUL NOMINEE BCV LIMITED,SUPERFORM ALUMINIUM,Maintenance Materials,1033\5109743953,08-Apr-20,"20,358.75",
LUL NOMINEE BCV LIMITED,SUPERFORM ALUMINIUM,Maintenance Materials,1033\5109743955,08-Apr-20,"20,358.75",
LUL NOMINEE BCV LIMITED,SUPERFORM ALUMINIUM,Maintenance Materials,1033\5109743956,08-Apr-20,"20,358.75",
LUL NOMINEE BCV LIMITED,SUPERFORM ALUMINIUM,Maintenance Materials,1033\5109745712,22-Apr-20,"20,358.75",
LUL NOMINEE BCV LIMITED,SUPERFORM ALUMINIUM,Maintenance Materials,1033\5109745752,22-Apr-20,"20,358.75",
LUL NOMINEE BCV LIMITED,SUPERFORM ALUMINIUM,Maintenance Materials,1033\5109745768,22-Apr-20,"20,358.75",
LUL NOMINEE BCV LIMITED,SUPERFORM ALUMINIUM,Maintenance Materials,1033\5109745978,22-Apr-20,"20,358.75",
LONDON UNDERGROUND LTD,DENTONS UKMEA LLP,Legal Fees,1005\5109740529,08-Apr-20,"20,358.20",
TRANSPORT TRADING LTD,HAYS ACCOUNTANCY PERSONNEL,Agency Staff,1004\5109731555,20-Apr-20,"20,329.60",
RAIL FOR LONDON LIMITED,UK POWER NETWORKS LTD,Management & Support Consultancy,1020\5109741422,22-Apr-20,"20,319.00",
TRANSPORT TRADING LTD,STANTEC UK LIMITED,Planning & Development Consultancy,1004\5109732398,15-Apr-20,"20,310.25",
RAIL FOR LONDON LIMITED,GBM SERVICES LTD,Office Cleaning,1020\5109749284,27-Apr-20,"20,276.52",
LONDON UNDERGROUND LTD,KONE PLC,Escalators,1005\5109751460,27-Apr-20,"20,276.31",
SURFACE TRANSPORT CORP,CSTS LTD,Road Maintenance,1002\5109740443,08-Apr-20,"20,250.04",
LONDON UNDERGROUND LTD,GBM SERVICES LTD,Operational Cleaning,1005\5109749283,27-Apr-20,"20,237.51",
LONDON BUS SERVICES LTD,METROLINE TRAVEL LTD,Maintenance of Bus Stations LBL,1006\1900043896,01-Apr-20,"20,222.00",
TFL CORPORATE,ENSONO LIMITED,Software Maintenance,1001\5109736033,20-Apr-20,"20,217.00",
TFL CORPORATE,RIPPLE ROCK LTD.,Computer Software,1001\5109747361,15-Apr-20,"20,212.50",
LONDON UNDERGROUND LTD,HOLOPHANE EUROPE LTD,Heating & Lighting,1005\5109742374,27-Apr-20,"20,108.48",
LONDON UNDERGROUND LTD,HAYLEY GROUP PLC,Signalling Systems,1005\5109730308,15-Apr-20,"20,100.00",
TRANSPORT TRADING LTD,LONDON BOROUGH OF TOWER HAMLETS,Rates,1004\1901671968,15-Apr-20,"20,084.75",
TFL CORPORATE,SUSTRANS LTD,External Events Roads Shows And Face To Face,1001\5109725570,08-Apr-20,"20,000.00",
TFL CORPORATE,CASA CUNHA LTD,Art And Poetry Installations And Programmes,1001\5109736266,22-Apr-20,"20,000.00",
TFL CORPORATE,CAPP & CO LTD,Management & Support Consultancy,1001\5109730679,01-Apr-20,"20,000.00",
SURFACE TRANSPORT CORP,LEICESTERSHIRE COUNTY COUNCIL,Road Maintenance,1002\1900064808,20-Apr-20,"20,000.00",
LUL NOMINEE BCV LIMITED,NELSON BUTLER & SON LTD,Track General Maintenance,1033\5109720445,01-Apr-20,"20,000.00",
TRANSPORT TRADING LTD,LONDON BOROUGH OF SUTTON,Rates,1004\1901671844,15-Apr-20,"19,960.00",
TFL CORPORATE,JACOBS U.K LIMITED,Planning & Development Consultancy,1001\5109730852,15-Apr-20,"19,953.76",
TFL CORPORATE,MEDIAEDGE,Radio TV Press Poster Cinema Airtime And Space,1001\5109748058,29-Apr-20,"19,944.33",
LONDON RIVER SERVICES LTD,PORT OF LONDON AUTHORITY,Pier Charges,1007\5109744410,29-Apr-20,"19,942.81",
LUL NOMINEE SSL LIMITED,LUCCHINI UK LTD,Fleet,1031\5109732637,08-Apr-20,"19,925.00",
TFL CORPORATE,KINGS COLLEGE LONDON,Planning & Development Consultancy,1001\5109745528,29-Apr-20,"19,887.50",
LONDON BUS SERVICES LTD,ABELLIO LONDON LTD,Maintenance of Bus Stations LBL,1006\1900044077,29-Apr-20,"19,860.03",
LONDON BUS SERVICES LTD,VINCI CONSTRUCTION UK LTD,Building Maintenance & Repairs,1006\5109739546,03-Apr-20,"19,848.74",
TRANSPORT TRADING LTD,WANDSWORTH COUNCIL,Rates,1004\1901672533,15-Apr-20,"19,840.00",
RAIL FOR LONDON LIMITED,PCG ASSOCIATES LIMITED,Agency Staff,1020\5109751500,27-Apr-20,"19,814.00",
LUL NOMINEE BCV LIMITED,SLB 2020 LIMITED,Track General Maintenance,1033\5109723917,01-Apr-20,"19,813.16",
LUL NOMINEE BCV LIMITED,SLB 2020 LIMITED,Track General Maintenance,1033\5109741578,06-Apr-20,"19,813.16",
TFL CORPORATE,THE RETEARN GROUP LTD,Management & Support Consultancy,1001\5109744562,08-Apr-20,"19,800.00",
TFL CORPORATE,BT SERVICE AGILITY,Telephony Fixed,1001\1900070437,08-Apr-20,"19,793.58",
TFL CORPORATE,INTERFLEET TECHNOLOGY LIMITED,Management & Support Consultancy,1001\5109740013,22-Apr-20,"19,786.80",
SURFACE TRANSPORT CORP,SUN HILL SURVEYING & ENGINEER LTD,Contracted Services - Roads,1002\5109744437,15-Apr-20,"19,750.00",
SURFACE TRANSPORT CORP,INTEROUTE NETWORK LTD ,Maintenance of Telecommunications Equipment,1002\5109727901,08-Apr-20,"19,742.15",
SURFACE TRANSPORT CORP,WSO2 UK LIMITED,Computer Hardware,1002\5109744374,27-Apr-20,"19,740.00",
TRANSPORT TRADING LTD,LONDON BOROUGH OF HARROW,Rates,1004\1901672106,15-Apr-20,"19,712.00",
LONDON UNDERGROUND LTD,DAISY COMMUNICATIONS LTD,Telephony Fixed,1005\5109740723,22-Apr-20,"19,637.50",
LONDON UNDERGROUND LTD,GLASS REINFORCED CONCRETE UK LTD,Production Artwork And Design For Marketing,1005\5109737874,02-Apr-20,"19,628.27",
TFL CORPORATE,SUSTAINABLE PROCUREMENT LIMITED,Management & Support Consultancy,1001\5109730440,01-Apr-20,"19,600.00",
TFL CORPORATE,MORETHANNOW,Management & Support Consultancy,1001\5109733239,20-Apr-20,"19,600.00",
TFL CORPORATE,LENDLEASE JACOBS JOINT VENTURE,Management & Support Consultancy,1001\5109739992,22-Apr-20,"19,597.84",
TRANSPORT TRADING LTD,LONDON BOROUGH HACKNEY,Rates,1004\1901672014,15-Apr-20,"19,584.00",
LUL NOMINEE SSL LIMITED,BOMBARDIER TRANSPORT UK,Fleet,1031\5109713478,01-Apr-20,"19,571.20",
LUL NOMINEE SSL LIMITED,BOMBARDIER TRANSPORT UK,Fleet,1031\5109738273,02-Apr-20,"19,571.20",
LUL NOMINEE SSL LIMITED,BOMBARDIER TRANSPORT UK,Fleet,1031\5109738382,08-Apr-20,"19,571.20",
LONDON UNDERGROUND LTD,G K ENGINEERING SERVICES,Fleet,1005\5109742339,27-Apr-20,"19,500.00",
LUL NOMINEE SSL LIMITED,SCHUNK CARBON TECHNOLOGY LIMITED,Fleet,1031\5109741547,24-Apr-20,"19,459.94",
DOCKLANDS LIGHT RAILWAY,OYSTER SALES SERVICE,Civil Engineering Construction Works,1012\5109723688,01-Apr-20,"19,395.18",
LONDON UNDERGROUND LTD,ALLSTAR BUSINESS SOLUTIONS,Vehicle Running Costs,1005\5109749314,20-Apr-20,"19,393.06",
TRANSPORT TRADING LTD,BOROUGH OF BROXBOURNE,Rates,1004\1901671630,15-Apr-20,"19,336.25",
TRANSPORT TRADING LTD,LONDON BOROUGH OF LEWISHAM,Rates,1004\1901672493,15-Apr-20,"19,336.25",
TRANSPORT TRADING LTD,ICEBERG BUILDING SERVICES LTD,Building Maintenance & Repairs,1004\5109739771,01-Apr-20,"19,327.75",
SURFACE TRANSPORT CORP,CLIPFINE LIMITED,Contracted Services - Roads,1002\5109748275,20-Apr-20,"19,286.40",
LONDON BUS SERVICES LTD,ABELLIO LONDON LTD,Bus Contract Payments,1006\1900044161,24-Apr-20,"19,273.85",
SURFACE TRANSPORT CORP,CAPITA BUSINESS SERVICES LTD,Contracted Services - Roads,1002\5109724929,08-Apr-20,"19,218.07",
TFL CORPORATE,RIPPLE ROCK LTD.,Computer Software,1001\5109736214,14-Apr-20,"19,215.68",
LONDON TRANSPORT MUSEUM,REEDME,Building Maintenance & Repairs,1011\5109744275,20-Apr-20,"19,194.02",
LONDON BUS SERVICES LTD,AA DRIVETECH,Management & Support Consultancy,1006\5109751120,27-Apr-20,"19,178.40",
SURFACE TRANSPORT CORP,TELENT TECHNOLOGY SERVICES LTD,Traffic Signals,1002\5109740683,08-Apr-20,"19,148.48",
LUL NOMINEE SSL LIMITED,CLANCY DOCWRA LTD,Building Maintenance & Repairs,1031\5109727914,08-Apr-20,"19,125.65",
TFL CORPORATE,GARDINER & THEOBALD LLP,Management & Support Consultancy,1001\5109729524,15-Apr-20,"19,092.82",
TRANSPORT TRADING LTD,LONDON BOROUGH OF BARNET,Rates,1004\1901671591,15-Apr-20,"19,086.75",
TRANSPORT TRADING LTD,CITY OF WESTMINSTER,Rates,1004\1901672216,15-Apr-20,"19,086.75",
LUL NOMINEE SSL LIMITED,KNORR-BREMSE RAIL LTD ,Fleet,1031\5109715177,01-Apr-20,"19,064.16",
LONDON UNDERGROUND LTD,JNG CONSTRUCTION & ENGINEERING,Retentions Control Account > 1Year,1005\5109755734,01-May-20,"19,018.83",
TFL CORPORATE,VCCP GROUP LLP,Production Artwork And Design For Marketing,1001\5109728103,08-Apr-20,"19,000.00",
RAIL FOR LONDON LIMITED,MOTT MACDONALD LIMITED,Professional Engineering Services,1020\5109725308,08-Apr-20,"18,910.00",
LUL NOMINEE SSL LIMITED,PELL FRISCHMANN CONSULTANTS LTD,Civil Engineering Construction Works,1031\5109745096,22-Apr-20,"18,900.00",
LONDON UNDERGROUND LTD,SIEMENS,Signalling Systems,1005\5109741834,27-Apr-20,"18,868.39",
RAIL FOR LONDON LIMITED,LANES GROUP PLC,Management & Support Consultancy,1020\5109744123,08-Apr-20,"18,849.98",
TRANSPORT TRADING LTD,THREE RIVERS DISTRICT COUNCIL,Rates,1004\1901672528,15-Apr-20,"18,837.25",
SURFACE TRANSPORT CORP,CSTS LTD,Road Maintenance,1002\5109740446,08-Apr-20,"18,761.45",
TRANSPORT TRADING LTD,LONDON BOROUGH HACKNEY,Rates,1004\1901671996,15-Apr-20,"18,712.50",
LONDON BUS SERVICES LTD,AECOM LTD,Professional Engineering Services,1006\5109732455,08-Apr-20,"18,706.68",
LONDON UNDERGROUND LTD,GERALD EVE,Planning & Development Consultancy,1005\5109752878,29-Apr-20,"18,700.00",
TRANSPORT TRADING LTD,LONDON BOROUGH OF TOWER HAMLETS,Rates,1004\1901671919,15-Apr-20,"18,620.00",
TRANSPORT TRADING LTD,LONDON BOROUGH OF TOWER HAMLETS,Rates,1004\1901671920,15-Apr-20,"18,620.00",
RAIL FOR LONDON LIMITED,MOTT MACDONALD LIMITED,Planning & Development Consultancy,1020\5109723919,06-Apr-20,"18,590.00",
RAIL FOR LONDON LIMITED,OPEN TEXT UK LTD,IT Consultancy,1020\5109723819,06-Apr-20,"18,552.96",
DOCKLANDS LIGHT RAILWAY,LONDON BOROUGH OF NEWHAM ,Civil Engineering Construction Works,1012\5109720945,01-Apr-20,"18,500.00",
LUL NOMINEE SSL LIMITED,ALSTOM TRANSPORT LTD,Fleet,1031\5109752431,27-Apr-20,"18,468.00",
LONDON UNDERGROUND LTD,SEMPERIT TECHNISCHE PRODUKTE.,Stock of Lifts and Escalators,1005\5109748694,20-Apr-20,"18,458.00",
LONDON UNDERGROUND LTD,SEMPERIT TECHNISCHE PRODUKTE.,Stock of Lifts and Escalators,1005\5109748696,20-Apr-20,"18,458.00",
RAIL FOR LONDON LIMITED,HYDER CONSULTING (UK) LTD,Professional Engineering Services,1020\5109739929,06-Apr-20,"18,442.90",
LONDON BUS SERVICES LTD,TRUEFORM ENGINEERING LTD,Purchase of Bus Shelters,1006\5109751318,27-Apr-20,"18,436.12",
RAIL FOR LONDON LIMITED,MOTT MACDONALD LIMITED,Professional Engineering Services,1020\5109739850,22-Apr-20,"18,400.00",
TFL CORPORATE,BONSAI TECHNICAL SERVICES LIMITED,IT Consultancy,1001\5109745339,17-Apr-20,"18,394.32",
TFL CORPORATE,TMP (UK) LTD,Recruitment Advertising,1001\5109728144,08-Apr-20,"18,370.00",
LUL NOMINEE BCV LIMITED,KETTENWULF BETRIEBS GMBH,Stock of Lifts and Escalators,1033\5109752471,27-Apr-20,"18,324.85",
LONDON UNDERGROUND LTD,QUINN INFRASTRUCTURE SERVICES LTD,Escalators,1005\5109744705,29-Apr-20,"18,308.50",
LUL NOMINEE SSL LIMITED,R�CHLING ENGINEERING PLASTICS UKLTD,Fleet,1031\5109740148,02-Apr-20,"18,292.80",
LUL NOMINEE SSL LIMITED,R�CHLING ENGINEERING PLASTICS UKLTD,Fleet,1031\5109755249,01-May-20,"18,292.80",
LONDON UNDERGROUND LTD,WESTFIELD SHOPPINGTOWNS LTD,Management & Support Consultancy,1005\5109751391,29-Apr-20,"18,280.00",
LONDON UNDERGROUND LTD,GERALD EVE,Planning & Development Consultancy,1005\5109752884,29-Apr-20,"18,232.50",
TFL CORPORATE,PINDAR CREATIVE,Design & Production Of Maps & Timetable Publicity,1001\5109733241,20-Apr-20,"18,206.34",
LONDON UNDERGROUND LTD,SIEMENS,Signalling Systems,1005\5109741511,27-Apr-20,"18,199.11",
LONDON BUS SERVICES LTD,DETICA LIMITED,Maintenance of Plant & Equipment,1006\5109730425,15-Apr-20,"18,186.42",
TFL CORPORATE,DVLA,Production Artwork And Design For Marketing,1001\5109732442,01-Apr-20,"18,151.78",
TFL CORPORATE,RSM,Financial Statement Audit Fees,1001\5109741204,22-Apr-20,"18,150.00",
LUL NOMINEE BCV LIMITED,MODULAR DISTRIBUTION SYSTEMS,Lifts & Escalators stock issues,1033\5109732837,15-Apr-20,"18,147.24",
RAIL FOR LONDON LIMITED,OTB ENGINEERING LTD,Professional Engineering Services,1020\5109742481,27-Apr-20,"18,095.00",
TRANSPORT TRADING LTD,LONDON BOROUGH OF HARROW,Rates,1004\1901672101,15-Apr-20,"18,088.75",
TFL CORPORATE,CORPORATE DOCUMENT SERVICES LTD,Printing For Marketing Materials,1001\5109744677,15-Apr-20,"18,078.48",
LUL NOMINEE SSL LIMITED,MORS SMITT STS SIGNALS,Electrical & Electronic Engineering,1031\5109747740,16-Apr-20,"18,069.00",
SURFACE TRANSPORT CORP,CSTS LTD,Cameras,1002\5109740185,08-Apr-20,"18,022.69",
LUL NOMINEE BCV LIMITED,TRELLEBORG INDUSTRIAL AVS,Maintenance Materials,1033\5109726013,08-Apr-20,"18,010.00",
CYCLE HIRE SCHEME,CSTS LTD,Concession Maintenance Charge,1016\5109721118,01-Apr-20,"18,001.16",
TFL CORPORATE,URBANTHINGS LIMITED,COVID 19 planning,1001\5109748046,16-Apr-20,"18,000.00",
TFL CORPORATE,URBANTHINGS LIMITED,COVID 19 planning,1001\5109754310,30-Apr-20,"18,000.00",
TRANSPORT TRADING LTD,LONDON BOROUGH OF MERTON,Rates,1004\1901672498,15-Apr-20,"17,964.00",
LONDON UNDERGROUND LTD,HOLOPHANE EUROPE LTD,Heating & Lighting,1005\5109737950,20-Apr-20,"17,954.00",
LUL NOMINEE SSL LIMITED,OCL RAIL LTD,Civil Engineering Construction Works,1031\5109742284,07-Apr-20,"17,951.43",
TFL CORPORATE,GARDINER & THEOBALD LLP,Management & Support Consultancy,1001\5109744415,29-Apr-20,"17,940.00",
LUL NOMINEE BCV LIMITED,SLB 2020 LIMITED,Track General Maintenance,1033\5109724195,01-Apr-20,"17,936.50",
LUL NOMINEE BCV LIMITED,SLB 2020 LIMITED,Track General Maintenance,1033\5109730808,15-Apr-20,"17,936.50",
LUL NOMINEE BCV LIMITED,SLB 2020 LIMITED,Track General Maintenance,1033\5109750793,22-Apr-20,"17,936.50",
LONDON UNDERGROUND LTD,ENGIE SERVICES LTD,Equipment Repairs & Maintenance,1005\5109724739,01-Apr-20,"17,932.42",
LUL NOMINEE SSL LIMITED,SOLUTION RAIL LIMITED,MR Construction Costs,1031\5109754264,29-Apr-20,"17,918.34",
LONDON UNDERGROUND LTD,CLESHAR CONTRACT SERVICES LTD,Track General Maintenance,1005\5109748236,20-Apr-20,"17,912.42",
TFL CORPORATE,GARDINER & THEOBALD LLP,Management & Support Consultancy,1001\5109729227,15-Apr-20,"17,907.50",
TFL CORPORATE,VCCP GROUP LLP,Production Artwork And Design For Marketing,1001\5109732557,15-Apr-20,"17,901.73",
SURFACE TRANSPORT CORP,TELENT TECHNOLOGY SERVICES LTD,Traffic Signals,1002\5109740585,08-Apr-20,"17,894.77",
LONDON UNDERGROUND LTD,CPC PROJECT SERVICES LLP,MR Construction Costs,1005\5109742555,07-Apr-20,"17,866.42",
TRANSPORT TRADING LTD,LONDON BOROUGH HACKNEY,Rates,1004\1901671995,15-Apr-20,"17,839.25",
CYCLE HIRE SCHEME,CSTS LTD,Concession Maintenance Charge,1016\5109721104,01-Apr-20,"17,803.58",
LONDON UNDERGROUND LTD,CORPORATE DOCUMENT SERVICES LTD,Printing,1005\5109748185,20-Apr-20,"17,792.91",
TRANSPORT TRADING LTD,DENTONS UKMEA LLP,Legal Fees,1004\5109747593,15-Apr-20,"17,792.30",
LONDON UNDERGROUND LTD,DUCTCLEAN (UK) LTD T/A DCUK FM,Building Maintenance & Repairs,1005\5109744365,20-Apr-20,"17,712.92",
TRANSPORT TRADING LTD,LONDON BOROUGH HACKNEY,Rates,1004\1901672015,15-Apr-20,"17,664.00",
TRANSPORT TRADING LTD,CITY OF WESTMINSTER,Rates,1004\1901672243,15-Apr-20,"17,664.00",
LONDON UNDERGROUND LTD,THALES RAIL SIGNALLING SOLUTIONS,Signalling Systems,1005\5109730909,15-Apr-20,"17,643.20",
LUL NOMINEE BCV LIMITED,CLESHAR CONTRACT SERVICES LTD,Track General Maintenance,1033\5109748105,20-Apr-20,"17,585.28",
TFL CORPORATE,CAPITA BUSINESS SERVICES LTD,Maintenance of Telecommunications Equipment,1001\5109732928,20-Apr-20,"17,582.44",
LONDON BUS SERVICES LTD,AA DRIVETECH,Management & Support Consultancy,1006\5109744790,27-Apr-20,"17,580.20",
TFL CORPORATE,ENSONO LIMITED,Software Maintenance,1001\5109736069,20-Apr-20,"17,580.00",
TFL CORPORATE,KELTBRAY LIMITED,Planning & Development Consultancy,1001\5109733010,20-Apr-20,"17,564.02",
TFL CORPORATE,SUSTRANS LTD,Production Artwork And Design For Marketing,1001\5109725544,08-Apr-20,"17,518.21",
TFL CORPORATE,COMPUTACENTER PLC,Computer Hardware,1001\5109735995,20-Apr-20,"17,503.51",
LONDON UNDERGROUND LTD,COGNIZANT WORLDWIDE LIMITED,Software Maintenance,1005\5109744750,15-Apr-20,"17,466.00",
DIAL A RIDE,MERTON COMMUNITY TRANSPORT,Operator Costs,1010\5109751860,29-Apr-20,"17,461.66",
DOCKLANDS LIGHT RAILWAY,BRUSH TRACTION LTD,Management & Support Consultancy,1012\5109729754,08-Apr-20,"17,449.04",
DOCKLANDS LIGHT RAILWAY,BRUSH TRACTION LTD,Management & Support Consultancy,1012\5109739731,22-Apr-20,"17,449.04",
TFL CORPORATE,RIPPLE ROCK LTD.,Computer Software,1001\5109747684,16-Apr-20,"17,428.18",
TFL CORPORATE,FUSION PEOPLE LIMITED,Agency Staff,1001\5109754051,29-Apr-20,"17,419.60",
TRANSPORT TRADING LTD,COLLINS RIVER ENTERPRISES LTD,Gross Sales Clearance,1004\1901671488,06-Apr-20,"17,417.09",
LONDON UNDERGROUND LTD,LANES GROUP PLC,Civil Engineering Construction Works,1005\5109748418,27-Apr-20,"17,409.91",
TRANSPORT TRADING LTD,CITY OF WESTMINSTER,Rates,1004\1901672246,15-Apr-20,"17,408.00",
SURFACE TRANSPORT CORP,INTEROUTE MANAGED SERVICES UK LTD ,Traffic Signals,1002\5109739438,08-Apr-20,"17,327.25",
LUL NOMINEE SSL LIMITED,BOMBARDIER TRANSPORT UK,Fleet,1031\5109724999,08-Apr-20,"17,245.60",
LUL NOMINEE SSL LIMITED,BOMBARDIER TRANSPORT UK,Fleet,1031\5109725000,08-Apr-20,"17,245.60",
TFL CORPORATE,PROJECT 7 CONSULTANCY LTD,Management & Support Consultancy,1001\5109740410,27-Apr-20,"17,220.00",
LUL NOMINEE SSL LIMITED,CLESHAR CONTRACT SERVICES LTD,Track General Maintenance,1031\5109730130,08-Apr-20,"17,209.40",
TFL CORPORATE,CPC PROJECT SERVICES LLP,Contractors,1001\5109736160,21-Apr-20,"17,169.60",
TFL CORPORATE,CPC PROJECT SERVICES LLP,Contractors,1001\5109736248,27-Apr-20,"17,169.60",
TRANSPORT TRADING LTD,NOVACROFT DIRECT LTD,Ticket & Pass Production,1004\5109744555,15-Apr-20,"17,111.10",
LONDON UNDERGROUND LTD,PTSG ACCESS AND SAFETY LTD,Building Maintenance & Repairs,1005\5109739926,22-Apr-20,"17,070.00",
TFL CORPORATE,RAIL SAFETY & STANDARDS BOARD,Staff Medical Insurance & Treatment,1001\5109741160,22-Apr-20,"17,050.00",
TFL CORPORATE,GARDINER & THEOBALD LLP,Management & Support Consultancy,1001\5109729824,15-Apr-20,"17,043.00",
SURFACE TRANSPORT CORP,HUNTRESS SEARCH LTD,Passenger Surveys,1002\5109729471,15-Apr-20,"16,995.32",
TRANSPORT TRADING LTD,A1R SERVICES LTD,Building Maintenance & Repairs,1004\5109736563,02-Apr-20,"16,962.00",
LUL NOMINEE BCV LIMITED,WECS PRECISION LTD,Track General Maintenance,1033\5109752041,28-Apr-20,"16,959.00",
LUL NOMINEE BCV LIMITED,WECS PRECISION LTD,Track General Maintenance,1033\5109752048,28-Apr-20,"16,959.00",
TFL CORPORATE,23RED LIMITED,Agency Fees Paid To Marketing Agencies,1001\5109750787,22-Apr-20,"16,939.45",
TRANSPORT TRADING LTD,GVA GRIMLEY LTD ,Planning & Development Consultancy,1004\5109741968,27-Apr-20,"16,929.00",
SURFACE TRANSPORT CORP,SIEMENS,Traffic Signals,1002\5109732661,01-Apr-20,"16,917.88",
SURFACE TRANSPORT CORP,TRUEFORM ENGINEERING LTD,Contracted Services - Roads,1002\5109744880,08-Apr-20,"16,910.00",
LT MUSEUM TRADING LTD,OYSTER RETAIL PACKAGING LTD,LTM Purchase of Gifts for Resale,1024\1900018927,06-Apr-20,"16,896.00",
LONDON RIVER SERVICES LTD,BRIGGS MARINE CONTRACTORS LIMITED,Operator Costs,1007\5109719838,01-Apr-20,"16,888.39",
LUL NOMINEE SSL LIMITED,CPC PROJECT SERVICES LLP,Civil Engineering Construction Works,1031\5109741860,14-Apr-20,"16,859.05",
DOCKLANDS LIGHT RAILWAY,BDB PITMANS LLP,Civil Engineering Construction Works,1012\5109733283,08-Apr-20,"16,831.80",
LUL NOMINEE BCV LIMITED,RJC (UK) LTD,MR Construction Costs,1033\5109741009,15-Apr-20,"16,831.43",
LONDON UNDERGROUND LTD,ROBERT WEST CONSULTING,Professional Engineering Services,1005\5109741388,06-Apr-20,"16,813.29",
LONDON BUS SERVICES LTD,TRAPEZE PTI LTD,Computer Consumables,1006\5109723655,09-Apr-20,"16,779.23",
TRANSPORT TRADING LTD,LONDON BOROUGH OF ISLINGTON,Rates,1004\1901672331,15-Apr-20,"16,768.00",
TRANSPORT TRADING LTD,LONDON BOROUGH OF HAMM& FULHAM,Rates,1004\1901672065,15-Apr-20,"16,758.00",
LONDON UNDERGROUND LTD,BROOKVEX IMS LTD,MR Construction Costs,1005\5109748358,20-Apr-20,"16,715.94",
LONDON UNDERGROUND LTD,THALES GROUND TRANSPORTATION SYSTEM,Civil Engineering Construction Works,1005\5109748198,24-Apr-20,"16,712.42",
LONDON UNDERGROUND LTD,BERWIN LEIGHTON PAISNER,Legal Fees,1005\5109754299,29-Apr-20,"16,644.67",
LUL NOMINEE BCV LIMITED,GUYSON INTERNATIONAL LTD,Maintenance Materials,1033\5109732916,20-Apr-20,"16,614.00",
LONDON UNDERGROUND LTD,BT SERVICE AGILITY,Telephony Fixed,1005\1900213515,08-Apr-20,"16,611.58",
LONDON UNDERGROUND LTD,CEGOS (UK) LTD,Publications & Periodicals,1005\5109747777,16-Apr-20,"16,610.00",
LONDON UNDERGROUND LTD,ALLSTAR BUSINESS SOLUTIONS,Vehicle Running Costs,1005\5109739881,02-Apr-20,"16,602.15",
SURFACE TRANSPORT CORP,CSTS LTD,Traffic Signals,1002\5109730980,06-Apr-20,"16,594.82",
LUL NOMINEE SSL LIMITED,BRITISH TELECOMMUNICATIONS PLC,Computer Hardware,1031\5109729762,01-Apr-20,"16,585.20",
SURFACE TRANSPORT CORP,NETWORK RAIL,Contracted Services - Highway Bridges,1002\5109719863,08-Apr-20,"16,572.46",
LONDON UNDERGROUND LTD,DENTONS UKMEA LLP,Legal Fees,1005\5109752446,27-Apr-20,"16,558.00",
RAIL FOR LONDON LIMITED,OTB ENGINEERING LTD,Professional Engineering Services,1020\5109742505,27-Apr-20,"16,555.00",
SURFACE TRANSPORT CORP,XANTA LIMITED,Contracted Services - Highway Bridges,1002\5109744584,21-Apr-20,"16,550.00",
LUL NOMINEE BCV LIMITED,TELENT TECHNOLOGY SERVICES LTD,Equipment Repairs & Maintenance,1033\5109740575,22-Apr-20,"16,547.45",
LONDON UNDERGROUND LTD,METS LTD,Traction Current,1005\5109744576,08-Apr-20,"16,526.75",
LONDON UNDERGROUND LTD,CPC PROJECT SERVICES LLP,MR Construction Costs,1005\5109742560,07-Apr-20,"16,516.50",
TRANSPORT TRADING LTD,CITY OF WESTMINSTER,Rates,1004\1901672249,15-Apr-20,"16,512.00",
LONDON UNDERGROUND LTD,GBM SERVICES LTD,Operational Cleaning,1005\5109750516,27-Apr-20,"16,473.32",
RAIL FOR LONDON LIMITED,HYDER CONSULTING (UK) LTD,Civil Engineering Construction Works,1020\5109739678,06-Apr-20,"16,465.73",
TRANSPORT TRADING LTD,LONDON BOROUGH OF MERTON,Rates,1004\1901672517,15-Apr-20,"16,384.00",
TFL CORPORATE,GUTTERIDGE HASKINS & DAVEY LIMITED,Professional Engineering Services,1001\5109727935,08-Apr-20,"16,351.68",
LONDON UNDERGROUND LTD,PERMAQUIP LTD,Plant & Equipment Purchases,1005\5109754203,29-Apr-20,"16,346.00",
TRANSPORT TRADING LTD,LONDON BOROUGH OF LAMBETH,Rates,1004\1901672474,15-Apr-20,"16,342.25",
VICTORIA COACH STATN LTD,VINCI CONSTRUCTION UK LTD,Building Maintenance & Repairs,1008\5109747333,27-Apr-20,"16,328.64",
LONDON UNDERGROUND LTD,FUSION PEOPLE LIMITED,Vehicle Operating Leases,1005\5109740717,03-Apr-20,"16,320.57",
LUL NOMINEE SSL LIMITED,L C SWITCHGEAR LTD,Civil Engineering Construction Works,1031\5109738340,08-Apr-20,"16,262.00",
TRANSPORT TRADING LTD,CITY OF WESTMINSTER,Rates,1004\1901672247,15-Apr-20,"16,256.00",
TRANSPORT TRADING LTD,ROYAL BOROUGH KENSINGTON & CHELSEA,Rates,1004\1901672410,15-Apr-20,"16,256.00",
CYCLE HIRE SCHEME,SERCO LTD,Concession Maintenance Charge,1016\5109726338,06-Apr-20,"16,250.00",
TRANSPORT TRADING LTD,LONDON BOROUGH OF GREENWICH,Rates,1004\1901672543,15-Apr-20,"16,217.50",
LUL NOMINEE SSL LIMITED,LENDLEASE JACOBS JOINT VENTURE,MR Construction Costs,1031\5109738420,08-Apr-20,"16,209.81",
LONDON UNDERGROUND LTD,RULLION ENGINEERING LTD,Agency Staff,1005\5109730111,15-Apr-20,"16,207.01",
LUL NOMINEE SSL LIMITED,MORGANITE ELECTRICAL CARBON LTD,Fleet,1031\5109738454,20-Apr-20,"16,202.00",
TRANSPORT TRADING LTD,DAISY COMMUNICATIONS LTD,Telephony Fixed,1004\5109741030,22-Apr-20,"16,187.71",
LONDON UNDERGROUND LTD,SPOOR-TECH LTD,MR Construction Costs,1005\5109754468,28-Apr-20,"16,173.27",
TRANSPORT TRADING LTD,CITY OF WESTMINSTER,Rates,1004\1901672240,15-Apr-20,"16,128.00",
LUL NOMINEE SSL LIMITED,4 RAIL SERVICES LTD,Building Maintenance & Repairs,1031\5109749273,27-Apr-20,"16,100.00",
LONDON UNDERGROUND LTD,WATSON FUELS,Vehicle Running Costs,1005\5109739783,15-Apr-20,"16,098.97",
TFL CORPORATE,KELTBRAY LIMITED,Planning & Development Consultancy,1001\5109733019,15-Apr-20,"16,094.82",
TRANSPORT TRADING LTD,LONDON BOROUGH OF TOWER HAMLETS,Rates,1004\1901671921,15-Apr-20,"16,093.00",
TRANSPORT TRADING LTD,LONDON BOROUGH OF GREENWICH,Rates,1004\1901672542,15-Apr-20,"16,093.00",
TRANSPORT TRADING LTD,BEXLEY COUNCIL,Rates,1004\1901671594,15-Apr-20,"16,092.75",
LONDON UNDERGROUND LTD,AXON SOLUTIONS LTD,Computer Software,1005\5109719904,01-Apr-20,"16,080.00",
LONDON BUS SERVICES LTD,TRUEFORM ENGINEERING LTD,Building Maintenance & Repairs,1006\5109739786,01-Apr-20,"16,077.05",
LONDON UNDERGROUND LTD,AVM IMPACT LTD,Staff Training,1005\5109741822,27-Apr-20,"16,071.96",
RFL (INFRASTRUCTURE) LTD,SIEMENS,Computer Consumables,1025\5109740247,06-Apr-20,"16,051.92",
TFL CORPORATE,WRAGGE & CO,Legal Fees,1001\5109752061,27-Apr-20,"16,048.20",
TFL CORPORATE,CAPITA BUSINESS SERVICES LTD,Recruitment Expenses,1001\5109736256,22-Apr-20,"16,000.00",
LONDON UNDERGROUND LTD,DELOITTE,Planning & Development Consultancy,1005\5109737867,02-Apr-20,"16,000.00",
LUL NOMINEE BCV LIMITED,VAE UK LIMITED,Track General Maintenance,1033\5109729151,15-Apr-20,"15,990.00",
LONDON BUS SERVICES LTD,TRAPEZE PTI LTD,Electrical & Electronic Engineering,1006\5109745689,15-Apr-20,"15,988.38",
TRANSPORT TRADING LTD,CATERCOVER SERVICE LTD,Plant & Equipment Purchases,1004\5109754514,29-Apr-20,"15,976.69",
TFL CORPORATE,EVERSHEDS,Legal Fees,1001\5109752088,27-Apr-20,"15,959.50",
LUL NOMINEE BCV LIMITED,KNORR-BREMSE RAIL LTD ,Fleet,1033\5109741316,27-Apr-20,"15,894.09",
TFL CORPORATE,JACOBS U.K LIMITED,Management & Support Consultancy,1001\5109724398,08-Apr-20,"15,886.00",
TFL CORPORATE,JACOBS U.K LIMITED,Management & Support Consultancy,1001\5109748123,20-Apr-20,"15,886.00",
CYCLE HIRE SCHEME,SERCO LTD,Concession Maintenance Charge,1016\5109749088,20-Apr-20,"15,878.61",
TRANSPORT TRADING LTD,LONDON BOROUGH OF TOWER HAMLETS,Rates,1004\1901671931,15-Apr-20,"15,872.00",
TRANSPORT TRADING LTD,CITY OF LONDON ,Rates,1004\1901671744,15-Apr-20,"15,860.00",
LONDON UNDERGROUND LTD,SIEMENS,Signalling Systems,1005\5109741515,27-Apr-20,"15,858.29",
LONDON UNDERGROUND LTD,SIEMENS,Signalling Systems,1005\5109741839,27-Apr-20,"15,858.29",
SURFACE TRANSPORT CORP,CAPITA BUSINESS SERVICES LTD,Management & Support Consultancy,1002\5109739422,20-Apr-20,"15,856.61",
TFL CORPORATE,VCCP GROUP LLP,Radio TV Press Poster Cinema Airtime And Space,1001\5109733664,20-Apr-20,"15,851.86",
TFL CORPORATE,XANTA LIMITED,Management & Support Consultancy,1001\5109744502,14-Apr-20,"15,840.00",
LONDON UNDERGROUND LTD,INDUSTRIAL COMMUNICATION PROD. LTD,Maintenance Materials,1005\5109737629,07-Apr-20,"15,821.00",
LUL NOMINEE SSL LIMITED,ZF FRIEDRICHSHAFEN AG,Fleet,1031\5109745106,01-May-20,"15,814.74",
LONDON BUS SERVICES LTD,ENGIE SERVICES LTD,Fire and Safety Equipment,1006\5109725658,08-Apr-20,"15,813.00",
LUL NOMINEE SSL LIMITED,TRACKWORK RESOURCES LTD,Track General Maintenance,1031\5109729915,15-Apr-20,"15,797.05",
TRANSPORT TRADING LTD,GLOBAL OUTDOOR MEDIA LIMITED,Purchase of Associates Loan Notes (Activity),1004\5109747254,22-Apr-20,"15,780.64",
LONDON BUS SERVICES LTD,ABELLIO LONDON LTD,Maintenance of Bus Stations LBL,1006\1900044067,29-Apr-20,"15,768.84",
LONDON UNDERGROUND LTD,NETWORK RAIL,Traction Current,1005\5109717105,08-Apr-20,"15,759.01",
LONDON UNDERGROUND LTD,LANES GROUP PLC,Track General Maintenance,1005\5109751304,29-Apr-20,"15,754.35",
LONDON UNDERGROUND LTD,DAISY COMMUNICATIONS LTD,Telephony Fixed,1005\5109741088,22-Apr-20,"15,750.00",
LONDON UNDERGROUND LTD,GPX ENGINEERING LTD,MR Construction Costs,1005\5109754426,29-Apr-20,"15,741.25",
LUL NOMINEE BCV LIMITED,KNORR-BREMSE RAIL LTD ,Track General Maintenance,1033\5109742243,29-Apr-20,"15,740.00",
LONDON UNDERGROUND LTD,DONFABS & CONSILLIA LTD,Signalling Systems,1005\5109737915,20-Apr-20,"15,729.83",
TRANSPORT TRADING LTD,LONDON BOROUGH OF REDBRIDGE,Rates,1004\1901671616,15-Apr-20,"15,718.50",
SURFACE TRANSPORT CORP,TELENT TECHNOLOGY SERVICES LTD,Traffic Signals,1002\5109740597,08-Apr-20,"15,682.32",
LONDON BUS SERVICES LTD,PROVENTIA OY,Vehicle Repairs & Maintenance,1006\5109742361,09-Apr-20,"15,675.00",
TRANSPORT TRADING LTD,LENDLEASE JACOBS JOINT VENTURE,Contractors,1004\5109717617,01-Apr-20,"15,637.50",
LUL NOMINEE SSL LIMITED,TRANSFORMER MANUFACTURING LTD,Fleet,1031\5109739799,02-Apr-20,"15,633.80",
TFL CORPORATE,BT SERVICE AGILITY,Purchase of Telecommunications Equipment,1001\1900068130,20-Apr-20,"15,602.99",
LONDON UNDERGROUND LTD,LENDLEASE JACOBS JOINT VENTURE,MR Construction Costs,1005\5109745047,27-Apr-20,"15,594.00",
TRANSPORT TRADING LTD,LONDON BOROUGH OF BARKING & DAGENHAM,Rates,1004\1901671585,15-Apr-20,"15,593.75",
TRANSPORT TRADING LTD,LONDON BOROUGH OF BARKING & DAGENHAM,Rates,1004\1901671586,15-Apr-20,"15,593.75",
TRANSPORT TRADING LTD,LONDON BOROUGH HACKNEY,Rates,1004\1901671994,15-Apr-20,"15,593.75",
LONDON UNDERGROUND LTD,AON LIMITED,General Insurance,1005\5109749120,22-Apr-20,"15,578.54",
LONDON BUS SERVICES LTD,CASTLE WATER LIMITED,Water,1006\5109730844,15-Apr-20,"15,573.48",
TRANSPORT TRADING LTD,LONDON BOROUGH OF LAMBETH,Rates,1004\1901672479,15-Apr-20,"15,561.00",
TFL CORPORATE,XANTA LIMITED,Management & Support Consultancy,1001\5109744788,14-Apr-20,"15,525.00",
LONDON BUS SERVICES LTD,ABELLIO LONDON LTD,Maintenance of Bus Stations LBL,1006\1900044074,29-Apr-20,"15,519.90",
LONDON BUS SERVICES LTD,EMINOX,Vehicle Repairs & Maintenance,1006\5109739549,15-Apr-20,"15,508.00",
LONDON BUS SERVICES LTD,EMINOX,Vehicle Repairs & Maintenance,1006\5109739550,15-Apr-20,"15,508.00",
LONDON BUS SERVICES LTD,EMINOX,Vehicle Repairs & Maintenance,1006\5109739551,15-Apr-20,"15,508.00",
LONDON BUS SERVICES LTD,EMINOX,Vehicle Repairs & Maintenance,1006\5109739552,15-Apr-20,"15,508.00",
LONDON BUS SERVICES LTD,EMINOX,Vehicle Repairs & Maintenance,1006\5109740618,20-Apr-20,"15,508.00",
LONDON BUS SERVICES LTD,EMINOX,Vehicle Repairs & Maintenance,1006\5109740781,20-Apr-20,"15,508.00",
LONDON BUS SERVICES LTD,EMINOX,Vehicle Repairs & Maintenance,1006\5109741474,22-Apr-20,"15,508.00",
LONDON BUS SERVICES LTD,EMINOX,Vehicle Repairs & Maintenance,1006\5109741478,20-Apr-20,"15,508.00",
TRANSPORT TRADING LTD,LONDON BOROUGH OF HOUNSLOW,Rates,1004\1901672520,15-Apr-20,"15,488.00",
SURFACE TRANSPORT CORP,BDB PITMANS LLP,Legal Fees,1002\5109733449,01-Apr-20,"15,480.70",
LUL NOMINEE BCV LIMITED,BOMBARDIER TRANSPORT UK,Fleet,1033\5109745017,08-Apr-20,"15,480.00",
RFL (INFRASTRUCTURE) LTD,SIEMENS,Maintenance of Telecommunications Equipment,1025\5109723937,06-Apr-20,"15,462.50",
LONDON UNDERGROUND LTD,SKANSKA CONTRUCTIONS UK LTD,Building Maintenance & Repairs,1005\5109740763,03-Apr-20,"15,456.26",
LONDON UNDERGROUND LTD,ASHURST LLP,Legal Fees,1005\5109733511,01-Apr-20,"15,456.00",
TRANSPORT TRADING LTD,LONDON BOROUGH OF HAMM& FULHAM,Rates,1004\1901672079,15-Apr-20,"15,428.00",
LONDON BUS SERVICES LTD,LONDON SOVEREIGN LTD ,Bus Contract Payments,1006\1900044133,24-Apr-20,"15,417.00",
LUL NOMINEE BCV LIMITED,KGJ PRICE LTD,Track General Maintenance,1033\5109741975,06-Apr-20,"15,416.00",
LUL NOMINEE SSL LIMITED,ZF FRIEDRICHSHAFEN AG,Fleet,1031\5109738360,09-Apr-20,"15,412.17",
SURFACE TRANSPORT CORP,THE NICHOLS GROUP LTD,Management & Support Consultancy,1002\5109749186,22-Apr-20,"15,384.00",
LONDON UNDERGROUND LTD,SKANSKA CONTRUCTIONS UK LTD,Civil Engineering Construction Works,1005\5109740754,03-Apr-20,"15,333.93",
RAIL FOR LONDON LIMITED,INTERFLEET TECHNOLOGY LIMITED,Professional Engineering Services,1020\5109724101,06-Apr-20,"15,300.00",
LUL NOMINEE BCV LIMITED,SLB 2020 LIMITED,Track General Maintenance,1033\5109723913,01-Apr-20,"15,243.02",
LUL NOMINEE BCV LIMITED,SLB 2020 LIMITED,Track General Maintenance,1033\5109723916,01-Apr-20,"15,243.02",
LUL NOMINEE BCV LIMITED,SLB 2020 LIMITED,Track General Maintenance,1033\5109727324,08-Apr-20,"15,243.02",
LUL NOMINEE BCV LIMITED,SLB 2020 LIMITED,Track General Maintenance,1033\5109727596,06-Apr-20,"15,243.02",
LUL NOMINEE BCV LIMITED,SLB 2020 LIMITED,Track General Maintenance,1033\5109730005,15-Apr-20,"15,243.02",
LUL NOMINEE BCV LIMITED,SLB 2020 LIMITED,Track General Maintenance,1033\5109730009,08-Apr-20,"15,243.02",
LUL NOMINEE BCV LIMITED,SLB 2020 LIMITED,Track General Maintenance,1033\5109730016,15-Apr-20,"15,243.02",
LUL NOMINEE BCV LIMITED,SLB 2020 LIMITED,Track General Maintenance,1033\5109730455,15-Apr-20,"15,243.02",
LUL NOMINEE BCV LIMITED,SLB 2020 LIMITED,Track General Maintenance,1033\5109730747,15-Apr-20,"15,243.02",
LUL NOMINEE BCV LIMITED,SLB 2020 LIMITED,Track General Maintenance,1033\5109738672,15-Apr-20,"15,243.02",
LUL NOMINEE BCV LIMITED,SLB 2020 LIMITED,Track General Maintenance,1033\5109738673,08-Apr-20,"15,243.02",
LUL NOMINEE BCV LIMITED,SLB 2020 LIMITED,Track General Maintenance,1033\5109741191,22-Apr-20,"15,243.02",
LUL NOMINEE BCV LIMITED,SLB 2020 LIMITED,Track General Maintenance,1033\5109741192,22-Apr-20,"15,243.02",
LUL NOMINEE BCV LIMITED,SLB 2020 LIMITED,Track General Maintenance,1033\5109750716,22-Apr-20,"15,243.02",
LUL NOMINEE BCV LIMITED,SLB 2020 LIMITED,Track General Maintenance,1033\5109750789,22-Apr-20,"15,243.02",
LUL NOMINEE BCV LIMITED,SLB 2020 LIMITED,Track General Maintenance,1033\5109750791,22-Apr-20,"15,243.02",
RAIL FOR LONDON LIMITED,TRE,Maintenance of Plant & Equipment,1020\5109739845,20-Apr-20,"15,240.00",
RAIL FOR LONDON LIMITED,LANES GROUP PLC,Building Maintenance & Repairs,1020\5109748294,20-Apr-20,"15,232.37",
TRANSPORT TRADING LTD,CITY OF WESTMINSTER,Rates,1004\1901672255,15-Apr-20,"15,232.00",
TRANSPORT TRADING LTD,THE LONDON EYE COMPANY LTD,Ticket & Pass Production,1004\1901672570,27-Apr-20,"15,230.83",
LONDON BUS SERVICES LTD,TRAPEZE PTI LTD,Computer Consumables,1006\5109727939,15-Apr-20,"15,217.80",
LUL NOMINEE SSL LIMITED,HEICO AEROSPACE CORPORATION,Fleet,1031\5109747731,24-Apr-20,"15,211.00",
TFL CORPORATE,OTM (UK) LTD,Production Artwork And Design For Marketing,1001\5109752068,27-Apr-20,"15,195.00",
LONDON UNDERGROUND LTD,SIEMENS,Signalling Systems,1005\5109741528,27-Apr-20,"15,182.33",
SURFACE TRANSPORT CORP,TELENT TECHNOLOGY SERVICES LTD,Traffic Signals,1002\5109740651,08-Apr-20,"15,177.70",
TFL CORPORATE,CENTRE OF ADVERTISE EU LTD,Management & Support Consultancy,1001\5109745264,15-Apr-20,"15,171.40",
LONDON BUS SERVICES LTD,TRUEFORM ENGINEERING LTD,Building Maintenance & Repairs,1006\5109739763,01-Apr-20,"15,160.09",
LONDON BUS SERVICES LTD,SULLIVAN BUS & COACH LTD,Rail Replacement Service Costs,1006\1900044050,01-Apr-20,"15,149.72",
LONDON BUS SERVICES LTD,TRUEFORM ENGINEERING LTD,Purchase of Bus Shelters,1006\5109754488,29-Apr-20,"15,143.14",
LUL NOMINEE SSL LIMITED,TRELLEBORG INDUSTRIAL AVS,Fleet,1031\5109725245,01-Apr-20,"15,132.00",
LONDON UNDERGROUND LTD,EVERSHEDS,Legal Fees,1005\5109733468,01-Apr-20,"15,129.20",
LONDON UNDERGROUND LTD,DAISY COMMUNICATIONS LTD,Telephony Fixed,1005\5109740735,22-Apr-20,"15,122.95",
SURFACE TRANSPORT CORP,CSTS LTD,Traffic Signals,1002\5109754731,29-Apr-20,"15,096.53",
LONDON BUS SERVICES LTD,TRUEFORM ENGINEERING LTD,Building Maintenance & Repairs,1006\5109751315,27-Apr-20,"15,068.58",
RAIL FOR LONDON LIMITED,JONATHAN SELBY,Legal Fees,1020\5109739777,06-Apr-20,"15,030.00",
SURFACE TRANSPORT CORP,REDSPEED INTERNATIONAL  LTD,Maintenance of Plant & Equipment,1002\5109740696,08-Apr-20,"15,029.90",
LONDON UNDERGROUND LTD,OCL RAIL LTD,MR Construction Costs,1005\5109745451,09-Apr-20,"15,009.05",
TFL CORPORATE,COMPUTACENTER PLC,Software Maintenance,1001\5109726381,08-Apr-20,"15,000.00",
TRANSPORT TRADING LTD,ORBITAL WITNESS LIMITED,Planning & Development Consultancy,1004\5109754235,29-Apr-20,"15,000.00",
LONDON UNDERGROUND LTD,DELOITTE,Planning & Development Consultancy,1005\5109737862,29-Apr-20,"15,000.00",
TFL CORPORATE,RSM,Financial Statement Audit Fees,1001\5109723342,06-Apr-20,"15,000.00",
LONDON UNDERGROUND LTD,NCP SERVICES LTD,Costs of Disp Inv Prop - TTL Planning,1005\5109740299,22-Apr-20,"15,000.00",
LONDON UNDERGROUND LTD,NCP SERVICES LTD,Costs of Disp Inv Prop - TTL Planning,1005\5109747306,27-Apr-20,"15,000.00",
TFL CORPORATE,CAPITA BUSINESS SERVICES LTD,Recruitment Expenses,1001\5109724930,08-Apr-20,"14,991.00",
LONDON UNDERGROUND LTD,MAXAURA LTD,Signalling Systems,1005\5109741982,27-Apr-20,"14,955.00",
TFL CORPORATE,COMPUTACENTER PLC,Computer Hardware,1001\5109721891,01-Apr-20,"14,900.00",
TFL CORPORATE,COMPUTACENTER PLC,Computer Hardware,1001\5109722267,01-Apr-20,"14,900.00",
RAIL FOR LONDON LIMITED,ATOS IT SERVICES UK LTD,Computer Software,1020\5109728425,08-Apr-20,"14,896.50",
LONDON UNDERGROUND LTD,SIEMENS,Electricity,1005\5109745146,09-Apr-20,"14,852.31",
TFL CORPORATE,XANTA LIMITED,Management & Support Consultancy,1001\5109749108,20-Apr-20,"14,850.00",
LUL NOMINEE BCV LIMITED,CREACTIVE DESIGN LTD,Maintenance Materials,1033\5109754638,30-Apr-20,"14,849.84",
TRANSPORT TRADING LTD,LONDON BOROUGH OF ISLINGTON,Rates,1004\1901672336,15-Apr-20,"14,848.00",
TFL CORPORATE,EQUINIX (UK) LTD,Manage IT Services,1001\5109740587,08-Apr-20,"14,793.66",
LONDON UNDERGROUND LTD,LANES GROUP PLC,Building Maintenance & Repairs,1005\5109751521,27-Apr-20,"14,784.74",
LUL NOMINEE SSL LIMITED,TRACKWORK RESOURCES LTD,Track General Maintenance,1031\5109738409,20-Apr-20,"14,774.00",
RAIL FOR LONDON LIMITED,AECOM LTD,Professional Engineering Services,1020\5109744074,22-Apr-20,"14,763.98",
LONDON UNDERGROUND LTD,FAIVELEY TRANSPORT,Maintenance Materials,1005\5109736734,29-Apr-20,"14,759.92",
LONDON UNDERGROUND LTD,APPLICATION SOLUTIONS LTD,Building Maintenance & Repairs,1005\5109745724,15-Apr-20,"14,756.00",
SURFACE TRANSPORT CORP,CITY OF WESTMINSTER,Borough Services,1002\1900064509,20-Apr-20,"14,750.00",
LUL NOMINEE SSL LIMITED,MITSUBISHI ELECTRIC EUROPE BV,Fleet,1031\5109741169,24-Apr-20,"14,750.00",
TRANSPORT TRADING LTD,CITY OF LONDON ,Rates,1004\1901671745,15-Apr-20,"14,703.00",
LONDON BUS SERVICES LTD,EMINOX,Vehicle Repairs & Maintenance,1006\5109743977,15-Apr-20,"14,695.00",
LONDON BUS SERVICES LTD,EMINOX,Vehicle Repairs & Maintenance,1006\5109742287,08-Apr-20,"14,695.00",
LONDON BUS SERVICES LTD,EMINOX,Vehicle Repairs & Maintenance,1006\5109744124,08-Apr-20,"14,695.00",
LONDON BUS SERVICES LTD,EMINOX,Vehicle Repairs & Maintenance,1006\5109744125,08-Apr-20,"14,695.00",
LONDON BUS SERVICES LTD,EMINOX,Vehicle Repairs & Maintenance,1006\5109744127,08-Apr-20,"14,695.00",
LONDON BUS SERVICES LTD,EMINOX,Vehicle Repairs & Maintenance,1006\5109744641,15-Apr-20,"14,695.00",
LONDON BUS SERVICES LTD,EMINOX,Vehicle Repairs & Maintenance,1006\5109744666,15-Apr-20,"14,695.00",
LONDON BUS SERVICES LTD,EMINOX,Vehicle Repairs & Maintenance,1006\5109744670,20-Apr-20,"14,695.00",
LONDON BUS SERVICES LTD,EMINOX,Vehicle Repairs & Maintenance,1006\5109744674,15-Apr-20,"14,695.00",
LONDON BUS SERVICES LTD,EMINOX,Vehicle Repairs & Maintenance,1006\5109744680,15-Apr-20,"14,695.00",
LONDON BUS SERVICES LTD,EMINOX,Vehicle Repairs & Maintenance,1006\5109744684,15-Apr-20,"14,695.00",
LONDON BUS SERVICES LTD,EMINOX,Vehicle Repairs & Maintenance,1006\5109744686,15-Apr-20,"14,695.00",
LONDON BUS SERVICES LTD,EMINOX,Vehicle Repairs & Maintenance,1006\5109744689,15-Apr-20,"14,695.00",
LONDON BUS SERVICES LTD,EMINOX,Vehicle Repairs & Maintenance,1006\5109744693,15-Apr-20,"14,695.00",
LONDON BUS SERVICES LTD,EMINOX,Vehicle Repairs & Maintenance,1006\5109744696,15-Apr-20,"14,695.00",
LONDON BUS SERVICES LTD,EMINOX,Vehicle Repairs & Maintenance,1006\5109744699,15-Apr-20,"14,695.00",
LONDON BUS SERVICES LTD,ANDERSON ACOUSTICS LTD,Professional Engineering Services,1006\5109751986,30-Apr-20,"14,692.60",
TFL CORPORATE,PROBRAND LTD,Software Maintenance,1001\5109741898,08-Apr-20,"14,649.00",
LUL NOMINEE BCV LIMITED,MODULAR DISTRIBUTION SYSTEMS,Lifts & Escalators stock issues,1033\5109740490,22-Apr-20,"14,636.64",
LONDON UNDERGROUND LTD,SCHWEERBAU GMBH & CO.KG *PAID BACS*,Track General Maintenance,1005\5109737669,20-Apr-20,"14,631.61",
LONDON BUS SERVICES LTD,EDF ENERGY,Electricity,1006\5109751112,27-Apr-20,"14,628.51",
LONDON UNDERGROUND LTD,GPX ENGINEERING LTD,Track General Maintenance,1005\5109754428,29-Apr-20,"14,620.12",
RAIL FOR LONDON LIMITED,AECOM LTD,Professional Engineering Services,1020\5109724211,01-Apr-20,"14,618.13",
LUL NOMINEE SSL LIMITED,SCHAEFFLER (UK) LTD,Fleet,1031\5109740452,06-Apr-20,"14,603.60",
LONDON UNDERGROUND LTD,CORONA ENERGY RETAIL 4 LTD,Gas,1005\5109741733,15-Apr-20,"14,601.85",
TFL CORPORATE,2CV RESEARCH,Customer Research And Counts,1001\5109733393,15-Apr-20,"14,600.00",
TRANSPORT TRADING LTD,CITY OF WESTMINSTER,Rates,1004\1901672251,15-Apr-20,"14,595.75",
TRANSPORT TRADING LTD,LONDON BOROUGH OF ISLINGTON,Rates,1004\1901672324,15-Apr-20,"14,595.75",
LONDON UNDERGROUND LTD,CLESHAR CONTRACT SERVICES LTD,Building Maintenance & Repairs,1005\5109752302,27-Apr-20,"14,580.77",
LONDON UNDERGROUND LTD,SIMOCO EMEA LTD,Building Maintenance & Repairs,1005\5109728234,08-Apr-20,"14,579.42",
LONDON UNDERGROUND LTD,CORONA ENERGY RETAIL 4 LTD,Gas,1005\5109741734,15-Apr-20,"14,572.98",
LONDON UNDERGROUND LTD,GROSVENOR CONTRACTS LEASING LTD,Operating Lease Expense - Motor Vehicles,1005\5109742407,29-Apr-20,"14,558.57",
TFL CORPORATE,"CERTENT, INC",Computer Software,1001\5109741801,29-Apr-20,"14,543.00",
TRANSPORT TRADING LTD,POST OFFICE LTD,Ticket & Pass Production,1004\5109719695,01-Apr-20,"14,533.75",
LONDON UNDERGROUND LTD,1STINRAIL LIMITED,Track General Maintenance,1005\5109748400,20-Apr-20,"14,488.75",
LONDON UNDERGROUND LTD,ENGIE SERVICES LTD,Equipment Repairs & Maintenance,1005\5109745652,29-Apr-20,"14,464.54",
LUL NOMINEE SSL LIMITED,MORS SMITT STS SIGNALS,Electrical & Electronic Engineering,1031\5109751436,27-Apr-20,"14,455.20",
LUL NOMINEE BCV LIMITED,DIRECT TRACK SOLUTIONS LTD,Track General Maintenance,1033\5109739654,01-Apr-20,"14,441.40",
TRANSPORT TRADING LTD,COLLINS RIVER ENTERPRISES LTD,Gross Sales Clearance,1004\1901672588,27-Apr-20,"14,423.69",
SURFACE TRANSPORT CORP,AECOM LTD,Contracted Services - Roads,1002\5109740868,22-Apr-20,"14,420.25",
TFL CORPORATE,GUTTERIDGE HASKINS & DAVEY LIMITED,Professional Engineering Services,1001\5109741771,27-Apr-20,"14,414.98",
DOCKLANDS LIGHT RAILWAY,EKSPAN,Civil Engineering Construction Works,1012\5109740797,08-Apr-20,"14,411.38",
TFL CORPORATE,ASITE SOLUTIONS LTD,Staff Training,1001\5109749324,27-Apr-20,"14,392.00",
TRANSPORT TRADING LTD,ASPIRE,Planning & Development Consultancy,1004\5109742358,07-Apr-20,"14,385.00",
TRANSPORT TRADING LTD,CITY OF WESTMINSTER,Rates,1004\1901672219,15-Apr-20,"14,346.25",
LONDON BUS SERVICES LTD,TRUEFORM ENGINEERING LTD,Purchase of Bus Shelters,1006\5109751325,27-Apr-20,"14,327.30",
RAIL FOR LONDON LIMITED,TRAM OPERATIONS LIMITED,Management & Support Consultancy,1020\5109741079,27-Apr-20,"14,322.95",
LONDON UNDERGROUND LTD,TWIFLEX LIMITED,Escalators,1005\5109737991,01-Apr-20,"14,306.66",
LONDON UNDERGROUND LTD,GPX ENGINEERING LTD,MR Construction Costs,1005\5109754423,29-Apr-20,"14,294.88",
LONDON UNDERGROUND LTD,WILLIAM COOK RAIL LTD,Equipment Repairs & Maintenance,1005\5109737622,15-Apr-20,"14,286.00",
LONDON UNDERGROUND LTD,WILLIAM COOK RAIL LTD,Equipment Repairs & Maintenance,1005\5109737623,15-Apr-20,"14,286.00",
LONDON UNDERGROUND LTD,WILLIAM COOK RAIL LTD,Equipment Repairs & Maintenance,1005\5109737724,15-Apr-20,"14,286.00",
LONDON UNDERGROUND LTD,WILLIAM COOK RAIL LTD,Equipment Repairs & Maintenance,1005\5109742017,22-Apr-20,"14,286.00",
LONDON UNDERGROUND LTD,WILLIAM COOK RAIL LTD,Equipment Repairs & Maintenance,1005\5109742023,22-Apr-20,"14,286.00",
LONDON UNDERGROUND LTD,WILLIAM COOK RAIL LTD,Equipment Repairs & Maintenance,1005\5109742034,22-Apr-20,"14,286.00",
TRANSPORT TRADING LTD,COLLINS RIVER ENTERPRISES LTD,Gross Sales Clearance,1004\1901672585,27-Apr-20,"14,276.49",
TRANSPORT TRADING LTD,GLOBAL REAL ESTATE LIMITED,Property Management Fees,1004\5109736532,01-Apr-20,"14,250.00",
DOCKLANDS LIGHT RAILWAY,SMB ELECTRICAL CONTRACTORS LTD,Civil Engineering Construction Works,1012\5109749195,21-Apr-20,"14,239.60",
LONDON UNDERGROUND LTD,RJC (UK) LTD,Escalators,1005\5109739936,20-Apr-20,"14,201.25",
DOCKLANDS LIGHT RAILWAY,ABBOTT RISK CONSULTING,Professional Engineering Services,1012\5109744103,08-Apr-20,"14,200.00",
RAIL FOR LONDON LIMITED,STOCKTON ENGINEERING MANAGEMENT LTD,Professional Engineering Services,1020\5109747720,17-Apr-20,"14,190.00",
LUL NOMINEE SSL LIMITED,XYLEM FLOW CONTROL LTD,Fleet,1031\5109751466,29-Apr-20,"14,187.60",
LONDON UNDERGROUND LTD,PULLMAN RAIL LTD,Maintenance Materials,1005\5109737383,21-Apr-20,"14,164.00",
LUL NOMINEE BCV LIMITED,KNORR-BREMSE RAIL LTD ,Fleet,1033\5109725930,08-Apr-20,"14,160.00",
LUL NOMINEE BCV LIMITED,KNORR-BREMSE RAIL LTD ,Fleet,1033\5109725933,08-Apr-20,"14,160.00",
LUL NOMINEE BCV LIMITED,KNORR-BREMSE RAIL LTD ,Fleet,1033\5109750480,22-Apr-20,"14,160.00",
TFL CORPORATE,AECOM LTD,Planning & Development Consultancy,1001\5109729820,01-Apr-20,"14,125.15",
LONDON UNDERGROUND LTD,ALLSTAR BUSINESS SOLUTIONS,Vehicle Running Costs,1005\5109754885,29-Apr-20,"14,084.73",
TRANSPORT TRADING LTD,LONDON BOROUGH OF ISLINGTON,Rates,1004\1901672327,15-Apr-20,"14,080.00",
LONDON UNDERGROUND LTD,CLESHAR CONTRACT SERVICES LTD,MR Construction Costs,1005\5109748154,20-Apr-20,"14,070.20",
LONDON UNDERGROUND LTD,AXON SOLUTIONS LTD,Computer Software,1005\5109719903,01-Apr-20,"14,070.00",
SURFACE TRANSPORT CORP,CSTS LTD,Traffic Signals,1002\5109732238,06-Apr-20,"14,058.76",
TFL CORPORATE,SUSTRANS LTD,External Events Roads Shows And Face To Face,1001\5109725554,08-Apr-20,"14,000.00",
TFL CORPORATE,STEER,Planning & Development Consultancy,1001\5109736316,15-Apr-20,"13,984.08",
LONDON UNDERGROUND LTD,CAPTEC LTD,Computer Hardware,1005\5109740218,02-Apr-20,"13,980.00",
LONDON UNDERGROUND LTD,CAPTEC LTD,Computer Hardware,1005\5109740222,02-Apr-20,"13,980.00",
SURFACE TRANSPORT CORP,CSTS LTD,Cameras,1002\5109744672,20-Apr-20,"13,972.14",
TFL CORPORATE,VCCP GROUP LLP,Production Artwork And Design For Marketing,1001\5109733666,20-Apr-20,"13,962.00",
TRANSPORT TRADING LTD,ROYAL BOROUGH KENSINGTON & CHELSEA,Rates,1004\1901672411,15-Apr-20,"13,952.00",
LONDON UNDERGROUND LTD,RJC (UK) LTD,Escalators,1005\5109739939,22-Apr-20,"13,950.38",
RAIL FOR LONDON LIMITED,MOTT MACDONALD LIMITED,Professional Engineering Services,1020\5109723788,06-Apr-20,"13,937.50",
TFL CORPORATE,AECOM LTD,Planning & Development Consultancy,1001\5109733182,15-Apr-20,"13,924.44",
LONDON UNDERGROUND LTD,RJC (UK) LTD,Escalators,1005\5109740885,22-Apr-20,"13,902.65",
TFL CORPORATE,METHODS BUSINESS & DIGITAL TECH LTD,Management & Support Consultancy,1001\5109752237,29-Apr-20,"13,900.00",
TFL CORPORATE,METHODS BUSINESS & DIGITAL TECH LTD,Management & Support Consultancy,1001\5109752243,29-Apr-20,"13,900.00",
SURFACE TRANSPORT CORP,METIS,Professional Engineering Services,1002\5109729662,01-Apr-20,"13,882.50",
LONDON UNDERGROUND LTD,ALLSTAR BUSINESS SOLUTIONS,Vehicle Running Costs,1005\5109744579,08-Apr-20,"13,881.63",
LONDON UNDERGROUND LTD,MCGINLEY SUPPORT SERVICES LTD,Track General Maintenance,1005\5109750782,21-Apr-20,"13,860.80",
TFL CORPORATE,STRATEGIC RAIL CONSULTANTS LTD,Management & Support Consultancy,1001\5109747238,15-Apr-20,"13,860.00",
CYCLE HIRE SCHEME,CSTS LTD,Concession Maintenance Charge,1016\5109721126,01-Apr-20,"13,849.40",
TRANSPORT TRADING LTD,LONDON BOROUGH OF GREENWICH,Rates,1004\1901672539,15-Apr-20,"13,847.25",
TRANSPORT TRADING LTD,ROYAL BOROUGH KENSINGTON & CHELSEA,Rates,1004\1901672418,15-Apr-20,"13,824.00",
TRANSPORT TRADING LTD,INVESTIGO,Property Management Fees,1004\5109755135,01-May-20,"13,822.50",
TRANSPORT TRADING LTD,EVERSHEDS,Legal Fees,1004\5109752122,27-Apr-20,"13,805.20",
LONDON UNDERGROUND LTD,INTERFLEET TECHNOLOGY LIMITED,Professional Engineering Services,1005\5109737869,15-Apr-20,"13,795.63",
LONDON UNDERGROUND LTD,CITYSCAPE,Planning & Development Consultancy,1005\5109754722,29-Apr-20,"13,790.00",
LONDON UNDERGROUND LTD,KNORR-BREMSE RAIL LTD ,Equipment Repairs & Maintenance,1005\5109733699,20-Apr-20,"13,780.00",
SURFACE TRANSPORT CORP,SIEMENS,Cameras,1002\5109740571,08-Apr-20,"13,777.25",
LONDON UNDERGROUND LTD,LANES GROUP PLC,Building Maintenance & Repairs,1005\5109741661,06-Apr-20,"13,773.15",
LUL NOMINEE BCV LIMITED,RJC (UK) LTD,Escalators,1033\5109742458,08-Apr-20,"13,752.00",
LONDON UNDERGROUND LTD,FUSION PEOPLE LIMITED,Vehicle Operating Leases,1005\5109741163,06-Apr-20,"13,741.97",
DIAL A RIDE,GBM SERVICES LTD,Office Cleaning,1010\5109749218,27-Apr-20,"13,735.50",
TFL CORPORATE,MOTT MACDONALD LIMITED,Management & Support Consultancy,1001\5109723943,15-Apr-20,"13,734.00",
TFL CORPORATE,CREACTIVE DESIGN LTD,Management & Support Consultancy,1001\5109742270,14-Apr-20,"13,706.50",
TFL CORPORATE,HAYS ACCOUNTANCY PERSONNEL,Agency Staff,1001\5109731557,20-Apr-20,"13,705.00",
TRANSPORT TRADING LTD,ROYAL BOROUGH KENSINGTON & CHELSEA,Rates,1004\1901672420,15-Apr-20,"13,696.00",
TRANSPORT TRADING LTD,ASPIRE,Planning & Development Consultancy,1004\5109741635,06-Apr-20,"13,680.00",
LONDON UNDERGROUND LTD,SKANSKA CONTRUCTIONS UK LTD,Civil Engineering Construction Works,1005\5109752798,27-Apr-20,"13,668.11",
LUL NOMINEE SSL LIMITED,MOTT MACDONALD LIMITED,MR Construction Costs,1031\5109750709,22-Apr-20,"13,655.00",
TFL CORPORATE,XRAIL GROUP LTD,Management & Support Consultancy,1001\5109736080,22-Apr-20,"13,650.00",
RAIL FOR LONDON LIMITED,LANES GROUP PLC,Management & Support Consultancy,1020\5109745097,15-Apr-20,"13,627.71",
LONDON UNDERGROUND LTD,ENTERPISE AMS GROUP LTD ,IT Consultancy,1005\5109737801,08-Apr-20,"13,612.50",
LUL NOMINEE BCV LIMITED,DENCO LUBRICATION LTD,Escalators,1033\5109739750,07-Apr-20,"13,603.00",
TFL CORPORATE,ICYBERDEFENCE,Management & Support Consultancy,1001\5109744300,29-Apr-20,"13,600.00",
TFL CORPORATE,AB PUBLISHING LIMITED,Storage And Distribution Of Publicity Materials,1001\5109747549,16-Apr-20,"13,539.20",
LONDON UNDERGROUND LTD,MCGINLEY SUPPORT SERVICES LTD,Track General Maintenance,1005\5109751416,22-Apr-20,"13,531.56",
LUL NOMINEE SSL LIMITED,CLESHAR CONTRACT SERVICES LTD,Track General Maintenance,1031\5109748121,20-Apr-20,"13,527.40",
TFL CORPORATE,PROBRAND LTD,Software Maintenance,1001\5109736238,06-Apr-20,"13,520.00",
TRANSPORT TRADING LTD,TURNER & TOWNSEND LLP,Costs of Disp Inv Prop - TTL Man Cons,1004\5109742309,20-Apr-20,"13,510.03",
LUL NOMINEE BCV LIMITED,TRACKWORK RESOURCES LTD,Track General Maintenance,1033\5109738637,22-Apr-20,"13,504.62",
LONDON UNDERGROUND LTD,NETWORK RAIL,National Rail Schedule 4 Payments,1005\5109717118,08-Apr-20,"13,503.91",
LUL NOMINEE SSL LIMITED,MCGINLEY SUPPORT SERVICES LTD,Track General Maintenance,1031\5109750531,21-Apr-20,"13,497.60",
LONDON UNDERGROUND LTD,SKANSKA CONTRUCTIONS UK LTD,Civil Engineering Construction Works,1005\5109740798,08-Apr-20,"13,457.76",
TFL CORPORATE,SIGNALLING INSTALLATION & MAINT,Management & Support Consultancy,1001\5109719777,01-Apr-20,"13,450.00",
LONDON UNDERGROUND LTD,DENCO LUBRICATION LTD,Escalators,1005\5109751150,29-Apr-20,"13,441.34",
LONDON UNDERGROUND LTD,SIEMENS,Maintenance Materials,1005\5109741842,27-Apr-20,"13,440.79",
TRANSPORT TRADING LTD,LONDON BOROUGH OF HAMM& FULHAM,Rates,1004\1901672082,15-Apr-20,"13,440.00",
LUL NOMINEE BCV LIMITED,KNORR-BREMSE RAIL LTD ,Fleet,1033\5109725931,08-Apr-20,"13,440.00",
LONDON UNDERGROUND LTD,ENGIE SERVICES LTD,Equipment Repairs & Maintenance,1005\5109724738,01-Apr-20,"13,432.34",
LONDON UNDERGROUND LTD,HYDER CONSULTING (UK) LTD,MR Construction Costs,1005\5109732944,20-Apr-20,"13,408.39",
SURFACE TRANSPORT CORP,PROBRAND LTD,Software Maintenance,1002\5109741911,27-Apr-20,"13,400.00",
TFL CORPORATE,BONSAI TECHNICAL SERVICES LIMITED,IT Consultancy,1001\5109745156,17-Apr-20,"13,379.12",
SURFACE TRANSPORT CORP,CAPITA BUSINESS SERVICES LTD,Management & Support Consultancy,1002\5109724944,08-Apr-20,"13,362.80",
TRANSPORT TRADING LTD,ROYAL BOROUGH KENSINGTON & CHELSEA,Rates,1004\1901672419,15-Apr-20,"13,348.25",
TFL CORPORATE,GUTTERIDGE HASKINS & DAVEY LIMITED,Professional Engineering Services,1001\5109742173,29-Apr-20,"13,341.54",
TFL CORPORATE,CH2M HILL UNITED KINGDOM,Planning & Development Consultancy,1001\5109730895,15-Apr-20,"13,336.01",
LONDON BUS SERVICES LTD,TRAPEZE PTI LTD,Electrical & Electronic Engineering,1006\5109733636,17-Apr-20,"13,325.27",
CYCLE HIRE SCHEME,CSTS LTD,Concession Maintenance Charge,1016\5109721129,01-Apr-20,"13,321.64",
SURFACE TRANSPORT CORP,BADENOCH & CLARK LTD,Software Maintenance,1002\5109744026,27-Apr-20,"13,300.00",
LONDON UNDERGROUND LTD,CPC PROJECT SERVICES LLP,MR Construction Costs,1005\5109742561,07-Apr-20,"13,299.00",
SURFACE TRANSPORT CORP,LUCY ZODION LTD,Street Lighting,1002\5109748629,22-Apr-20,"13,291.50",
TRANSPORT TRADING LTD,DAISY COMMUNICATIONS LTD,Telephony Fixed,1004\5109740765,22-Apr-20,"13,263.00",
